{"text_format":"1","workbook":"xlsx","n_sheets":6,"sheets":["Sheet2","Projects","Materials","Bid Items","State Wide Totals","Totals By Project"],"not_rendered":{"charts":0,"images":7,"macros":1,"external_links":0,"defined_names":14,"comments":0,"pivot_tables":0},"unopened":[],"bounds":{"document_bytes":16777216,"sheet_cells":100000,"rows_first":2000,"rows_last":500,"rows_between":2000,"halvings":0,"cell_chars":16384,"cell_head_chars":4096},"cells_cut":0,"cells_raw":0,"read":"whole","date_system":"1900"}

{"sheet":"Sheet2","index":0,"n_rows":11,"n_cols":7,"rows_kept":11,"cut":false,"hidden":true,"merged":[]}
["2015-09-01"]
["Sunday","Monday","Tuesday","Wednesday","Thursday","Friday","Saturday"]
[null,null,1,2,3,4,5]
[]
[6,7,8,9,10,11,12]
[]
[13,14,15,16,17,18,19]
[]
[20,21,22,23,24,25,26]
[]
[27,28,29,30]

{"sheet":"Projects","index":1,"n_rows":1,"n_cols":5,"rows_kept":1,"cut":false,"hidden":false,"merged":[]}
["Date","Project Number","County","Road Number","Description"]

{"sheet":"Materials","index":2,"n_rows":29,"n_cols":15,"rows_kept":29,"cut":false,"hidden":false,"merged":[[1,3,1,4],[4,10,4,11]]}
[]
[null,"Project #","Material Type","Bid Item",null,"Quantity"]
[null,null,""]
[]
[null,"Hauling Distance (miles):",null,null,"% Mix Design",null,null,null,null,null,"Quantity",null,"Densities:"]
[null,"Hauling Mode:",null,"Baghouse Fines",0,{"$f":"IF($F$4=\"\",E6*$F$3,E6*$F$4)","v":0},{"$f":"IF($G$3 =\"\", \"\",IF($G$4=\"\",$G$3, $G$4))","v":""},null,null,"Baghouse Fines",{"$f":"IF(G6=\"CY\", F6,IF(G6=\"TON\",F6/M6,IF(G6=\"GAL\",F6/201.974026,\"\")))","v":""},"CY",2.2923565641762478,"TON/CY"]
[null,null,null,"Blast Furnace Slag",0,{"$f":"IF($F$4=\"\",E7*$F$3,E7*$F$4)","v":0},{"$f":"IF($G$3 =\"\", \"\",IF($G$4=\"\",$G$3, $G$4))","v":""},null,null,"Blast Furnace Slag",{"$f":"IF(G7=\"CY\", F7,IF(G7=\"TON\",F7/M7,IF(G7=\"GAL\",F7/201.974026,\"\")))","v":""},"CY",1.8962508343369695,"TON/CY"]
[null,null,null,"Coal Bottom Ash",0,0,"",null,null,"Coal Bottom Ash","","CY",2.022667556626101,"TON/CY"]
[null,null,null,"Coal Fly Ash",0,0,"",null,null,"Coal Fly Ash","","CY",2.149084278915232,"TON/CY"]
[null,null,null,"Foundry Sand",0,0,"",null,null,"Foundry Sand","","CY",2.1448703881722611,"TON/CY"]
[null,null,null,"Kiln Dust",0,0,"",null,null,"Kiln Dust","","CY",2.3597788160637845,"TON/CY"]
[null,null,null,"Mineral Processing Waste",0,0,"",null,null,"Mineral Processing Waste","","CY",2.2755010012043635,"TON/CY"]
[null,null,null,"MSW Combuster Ash",0,0,"",null,null,"MSW Combuster Ash","","CY",1.2757499999999999,"TON/CY"]
[null,null,null,"Nickel Slag",0,0,"",null,null,"Nickel Slag","","CY",2.9497148496235277,"TON/CY"]
[null,null,null,"Copper Slag",0,0,"",null,null,"Copper Slag","","CY",2.7811597153593262,"TON/CY"]
[null,null,null,"Phosphorus Slag",0,0,"",null,null,"Phosphorus Slag","","CY",1.179885939849411,"TON/CY"]
[null,null,null,"Lead, Lead-Zinc and Zinc Slag",0,0,"",null,null,"Lead, Lead-Zinc and Zinc Slag","","CY",2.5704657975290739,"TON/CY"]
[null,null,null,"Reclaimed Asphalt Pavement",0,0,"",null,null,"Reclaimed Asphalt Pavement","","CY",1.7550000000000001,"TON/CY"]
[null,null,null,"Recycled Asphalt Shingles",0,0,"",null,null,"Reclaimed Asphalt Shingles","","CY",1.18,"TON/CY"]
[null,null,null,"Reclaimed Concrete Material",0,0,"",null,null,"Reclaimed Concrete Material","","CY",1.8962508343369695,"TON/CY"]
[null,null,null,"Scrap Tires",0,0,"",null,null,"Scrap Tires","","CY",0.621,"TON/CY"]
[null,null,null,"Sewage Sludge Ash",0,0,"",null,null,"Sewage Sludge Ash","","CY",1.158819954317037,"TON/CY"]
[null,null,null,"Reinforcing Steel",0,0,"",null,null,"Reinforcing Steel","","CY",0.24,"TON/CY"]
[null,null,null,"Steel Slag",0,0,"",null,null,"Steel Slag","","CY",1.4850000000000001,"TON/CY"]
[null,null,null,"Sulfate Wastes",0,0,"",null,null,"Sulfate Wastes","","CY",2.106945371485522,"TON/CY"]
[null,null,null,"Waste Glass (Fine)",0,0,"",null,null,"Waste Glass (Fine)","","CY",2.1111592622284925,"TON/CY"]
[null,null,null,"Waste Glass (Coarse)",0,0,"",null,null,"Waste Glass (Course)","","CY",1.8414702546783457,"TON/CY"]
[]
[null,null,null,"Total:",{"$f":"SUM(E6:E27)","v":0},{"$f":"SUM(F6:F27)","v":0},{"$f":"IF($F$3 =\"\", \"\",IF($G$4=\"\",$F$3, $G$4))","v":""},null,null,"Total:",{"$f":"SUM(K6:K27)","v":0},"CY","1 CY = ",201.97402600000001,"GAL"]

{"sheet":"Bid Items","index":3,"n_rows":2362,"n_cols":32,"rows_kept":2362,"cut":false,"hidden":false,"merged":[[0,17,0,19],[0,21,0,23],[0,9,0,11],[0,5,0,7],[0,0,0,2],[0,13,0,15]]}
["Wisconsin Dot Bid Items",null,null,null,null,"Concrete Pavement",null,null,null,"Asphaltic/HMA Pavement",null,null,null,"Base Aggregate",null,null,null,"Steel",null,null,null,"Other",null,null,null,null,null,"Concrete","Asphalt_HMA","Base_Course","Steel","Other"]
["Bid  #","Description","Unit",null,null,"Bid  #","Description","Unit",null,"Bid  #","Description","Unit",null,"Bid  #","Description","Unit",null,"Bid  #","Description","Unit",null,"Bid  #","Description","Unit",null,null,null,"concreteunit","asphaltunit","basecourseunit","steelunit","otherunit"]
[201.01050000000001,"Clearing            ","STA","base",null,405.01,"Coloring Concrete Red (CY)","CY",null,455.01049999999998,"Asphaltic Material PG58-28 (TON)","TON",null,208.01,"Borrow (CY)","CY",null,416.06099999999998,"Drilled Tie Bars (EACH)","EACH"]
[201.011,"Clearing            ","SY","concrete",null,415.00599999999997,"Concrete Pavement 6-Inch (SY)","SY",null,455.01100000000002,"Asphaltic Material PG58-34 (TON)","TON",null,208.11,"Select Borrow (CY)","CY",null,416.06200000000001,"Drilled Dowel Bars (EACH)","EACH"]
[201.01150000000001,"Clearing            ","ACRE","asphalt",null,415.00650000000002,"Concrete Pavement 6 1/2-Inch (SY)","SY",null,455.012,"Asphaltic Material PG64-28 (TON)","TON",null,"208.2100.S","Fly Ash for Subgr Stabil Furn (TON)","TON",null,"416.0623.S","Pavement Dowel Bars Retrofit Warranted (EACH)","EACH"]
[201.012,"Clearing            ","ID","steel",null,415.00700000000001,"Concrete Pavement 7-Inch (SY)","SY",null,455.01220000000001,"Asphaltic Material PG64-34 (TON)","TON",null,"208.2110.S","Fly Ash Subgrade Stabilization (SY)","SY"]
[201.0205,"Grubbing            ","STA",null,null,415.00749999999999,"Concrete Pavement 7 1/2-Inch (SY)","SY",null,455.01249999999999,"Asphaltic Material PG70-28 (TON)","TON",null,209.01,"Backfill Granular (CY)","CY"]
[201.02099999999999,"Grubbing            ","SY",null,null,415.00799999999998,"Concrete Pavement 8-Inch (SY)","SY",null,455.01350000000002,"Asphaltic Material PG58-34P (TON)","TON",null,"209.0200.S","Backfill Controlled Low Strength (CY)","CY"]
[201.0215,"Grubbing            ","ACRE",null,null,415.00850000000003,"Concrete Pavement 8 1/2-Inch (SY)","SY",null,455.01400000000001,"Asphaltic Material PG64-28P (TON)","TON",null,"209.0300.S","Backfill Coarse Aggregate (size) (CY)","CY"]
[201.02199999999999,"Grubbing            ","ID",null,null,415.00900000000001,"Concrete Pavement 9-Inch (SY)","SY",null,455.0145,"Asphaltic Material PG64-34P (TON)","TON",null,305.01100000000002,"Base Aggregate Dense 3/4-Inch (TON)","TON"]
[202.01050000000001,"Roadside Clearing Clearing           ","STA",null,null,415.0095,"Concrete Pavement 9 1/2-Inch (SY)","SY",null,455.01499999999999,"Asphaltic Material PG70-28P (TON)","TON",null,305.01150000000001,"Base Aggregate Dense 3/4-Inch (CY)","CY"]
[202.011,"Roadside Clearing          ","SY",null,null,415.01,"Concrete Pavement 10-Inch (SY)","SY",null,455.02050000000003,"Asphaltic Material PG58-28 (GAL)","GAL",null,305.012,"Base Aggregate Dense 1 1/4-Inch (TON)","TON"]
[202.01150000000001,"Roadside Clearing        ","ACRE",null,null,415.01049999999998,"Concrete Pavement 10 1/2-Inch (SY)","SY",null,455.02100000000002,"Asphaltic Material PG58-34 (GAL)","GAL",null,305.01249999999999,"Base Aggregate Dense 1 1/4-Inch (CY)","CY"]
[203.01,"Removing Small Pipe Culverts         ","EACH",null,null,415.01100000000002,"Concrete Pavement 11-Inch (SY)","SY",null,455.02199999999999,"Asphaltic Material PG64-28 (GAL)","GAL",null,305.01299999999998,"Base Aggregate Dense 3-Inch (TON)","TON"]
[203.02,"Removing Old Structure (station)         ","LS",null,null,415.01150000000001,"Concrete Pavement 11 1/2-Inch (SY)","SY",null,455.0222,"Asphaltic Material PG64-34 (GAL)","GAL",null,305.01350000000002,"Base Aggregate Dense 3-Inch (CY)","CY"]
["203.0210.S","Abatement Asbestos Material (structure)         ","LS",null,null,415.012,"Concrete Pavement 12-Inch (SY)","SY",null,455.02249999999998,"Asphaltic Material PG70-28 (GAL)","GAL",null,305.041,"Aggregate Detours (TON)","TON"]
["203.0225.S","Debris Containment (structure)          ","LS",null,null,415.01249999999999,"Concrete Pavement 12 1/2-Inch (SY)","SY",null,455.02350000000001,"Asphaltic Material PG58-34P (GAL)","GAL",null,305.04149999999998,"Aggregate Detours (CY)","CY"]
["203.0500.S","Rem Old Struct Over Waterway (station)      ","LS",null,null,415.01299999999998,"Concrete Pavement 13-Inch (SY) ","SY",null,455.024,"Asphaltic Material PG64-28P (GAL)","GAL",null,306.01100000000002,"Salvaged Asphaltic Pavement Base (TON)","TON"]
["203.0600.S","Rem Old Str Ovr Water Min Debris (sta)  ","LS",null,null,415.01350000000002,"Concrete Pavement 1/2-Inch (SY)","SY",null,455.02449999999999,"Asphaltic Material PG64-34P (GAL)","GAL",null,306.01150000000001,"Salvaged Asphaltic Pavement Base (CY)","CY"]
["203.0700.S","Rem Old Str Ovr Water W Capture Sys (sta ","LS",null,null,415.108,"Concrete Pavement HES 8-Inch (SY)","SY",null,455.02499999999998,"Asphaltic Material PG70-28P (GAL)","GAL",null,310.01100000000002,"Base Aggregate Open Graded (TON)","TON"]
[204.01,"Removing Pavement           ","SY",null,null,415.10849999999999,"Concrete Pavement HES 8 1/2-Inch (SY)","SY",null,455.03,"Asphaltic Material Special (TON)","TON",null,310.01150000000001,"Base Aggregate Open Graded (CY)","CY"]
[204.01050000000001,"Removing Pavement Butt Joints         ","SY",null,null,415.10899999999998,"Concrete Pavement HES 9-Inch (SY)","SY",null,455.04,"Asphaltic Material Special (GAL)","GAL",null,312.01100000000002,"Select Crushed Material (TON)","TON"]
["204.0109.S","Removing Conc Surface Partial Depth        ","SF",null,null,415.10950000000003,"Concrete Pavement HES 9 1/2-Inch (SY)","SY",null,455.05,"Asphaltic Material Seal Coat (TON)","TON",null,312.01150000000001,"Select Crushed Material (CY)","CY"]
[204.011,"Removing Asphaltic Surface          ","SY",null,null,415.11,"Concrete Pavement HES 10-Inch (SY)","SY",null,455.0505,"Asphaltic Material Seal Coat (GAL)","GAL",null,315.01,"Asphaltic Base (TON)","TON"]
[204.01150000000001,"Removing Asphaltic Surface Butt Joints        ","SY",null,null,415.1105,"Concrete Pavement HES 10 1/2-Inch (SY)","SY",null,455.06,"Tack Coat (TON)","TON",null,315.02,"Asphaltic Base Widening (TON)","TON"]
[204.012,"Removing Asphaltic Surface Milling         ","SY",null,null,415.11099999999999,"Concrete Pavement HES 11-Inch (SY)","SY",null,455.06049999999999,"Tack Coat (GAL)","GAL",null,320.01049999999998,"Concrete Base 4-Inch (SY)","SY"]
[204.01249999999999,"Removing Asphaltic Surface Milling         ","TON",null,null,415.11149999999998,"Concrete Pavement HES 11 1/2-Inch (SY)","SY",null,460.11,"HMA Pavement Type E-0.3 (TON)","TON",null,320.01100000000002,"Concrete Base 4 1/2-Inch (SY)","SY"]
[204.01300000000001,"Removing Curb           ","LF",null,null,415.11200000000002,"Concrete Pavement HES 12-Inch (SY)","SY",null,460.11009999999999,"HMA Pavement Type E-1 (TON)","TON",null,320.01150000000001,"Concrete Base 5-Inch (SY)","SY"]
[204.01400000000001,"Removing Gutter         ","LF",null,null,415.11250000000001,"Concrete Pavement HES 12 1/2-Inch (SY)","SY",null,460.1103,"HMA Pavement Type E-3 (TON)","TON",null,320.012,"Concrete Base 5 1/2-Inch (SY)","SY"]
[204.01499999999999,"Removing Curb & Gutter         ","LF",null,null,415.113,"Concrete Pavement HES 13-Inch (SY)","SY",null,460.11099999999999,"HMA Pavement Type E-10 (TON)","TON",null,320.01249999999999,"Concrete Base 6-Inch (SY)","SY"]
[204.0155,"Removing Concrete Sidewalk          ","SY",null,null,415.11349999999999,"Concrete Pavement HES 1/2-Inch SY","SY",null,460.113,"HMA Pavement Type E-30 (TON)","TON",null,320.01299999999998,"Concrete Base 6 1/2-Inch (SY)","SY"]
[204.01570000000001,"Removing Concrete Barrier          ","LF",null,null,"415.1150.S","Concrete Pavement Fast Track (inch) (SY)","SY",null,460.11320000000001,"HMA Pavement Type E-30X (TON)","TON",null,320.01350000000002,"Concrete Base 7-Inch (SY)","SY"]
[204.01599999999999,"Removing Lip Curb         ","LF",null,null,415.13099999999997,"Concrete Alley HES (SY)","SY",null,460.17,"HMA Pavement Type SMA (TON)","TON",null,320.01400000000001,"Concrete Base 7 1/2-Inch (SY)","SY"]
[204.01650000000001,"Removing Guardrail           ","LF",null,null,415.14100000000002,"Concrete Pavement Approach Slab HES (SY)","SY",null,460.2,"Asphaltic Surface (TON)","DOL",null,320.0145,"Concrete Base 8-Inch (SY)","SY"]
[204.017,"Removing Fence           ","LF",null,null,416.01600000000002,"Concrete Driveway 6-Inch (SY)","SY",null,465.01049999999998,"Asphaltic Surface Patching (TON)","TON",null,320.01499999999999,"Concrete Base 8 1/2-Inch (SY)","SY"]
[204.01750000000001,"Removing Concrete Slope Paving         ","SY",null,null,416.017,"Concrete Driveway 7-Inch (SY)","SY",null,465.01100000000002,"Asphaltic Surface Detours (TON)","TON",null,320.01549999999997,"Concrete Base 9-Inch (SY)","SY"]
[204.018,"Removing Delineators and Markers         ","EACH",null,null,416.01799999999997,"Concrete Driveway 8-Inch (SY)","SY",null,465.01150000000001,"Asph Surface Driveways & Field Entrances (TON)","TON",null,320.01600000000002,"Concrete Base 9 1/2-Inch (SY)","SY"]
[204.01849999999999,"Removing Masonry           ","CY",null,null,416.01900000000001,"Concrete Driveway 9-Inch (SY)","SY",null,465.012,"Asphaltic Surface Temporary (TON)","TON",null,320.01650000000001,"Concrete Base 10-Inch (SY)","SY"]
[204.01900000000001,"Removing Surface Drains          ","EACH",null,null,416.02600000000001,"Concrete Driveway HES 6-Inch (SY)","SY",null,465.01249999999999,"Asphaltic Surface Safety Islands (TON)","TON",null,320.017,"Concrete Base 10 1/2-Inch (SY)","SY"]
[204.01949999999999,"Removing Concrete Bases          ","EACH",null,null,416.02699999999999,"Concrete Driveway HES 7-Inch (SY)","SY",null,465.03050000000002,"Asphaltic Flumes (SY)","TON",null,320.03050000000002,"Concrete Base HES 4-Inch (SY)","SY"]
[204.02,"Removing Railroad Track          ","LF",null,null,416.02800000000002,"Concrete Driveway HES 8-Inch (SY)","SY",null,465.03149999999999,"Seal Coat (CY)","SY",null,320.03100000000001,"Concrete Base HES 4 1/2-Inch (SY)","SY"]
[204.0205,"Removing Utility Poles          ","EACH",null,null,416.029,"Concrete Driveway HES 9-Inch (SY)","SY",null,475.01,"Seal Coat (TON)","CY",null,320.03149999999999,"Concrete Base HES 5-Inch (SY)","SY"]
[204.02099999999999,"Removing Manholes          ","EACH",null,null,416.05079999999998,"Conc Roundabout Truck Apron 8-Inch (SY)","SY",null,475.01049999999998,"Salvaged Asphaltic Pavement (SY)","TON",null,320.03199999999998,"Concrete Base HES 5 1/2-Inch (SY)","SY"]
[204.0215,"Removing Catch Basins          ","EACH",null,null,416.05119999999999,"Conc Roundabout Truck Apron 12-Inch (SY)","SY",null,490.01,"Salvaged Asphaltic Pavement (TON)","SY",null,320.03250000000003,"Concrete Base HES 6-Inch (SY)","SY"]
[204.02199999999999,"Removing Inlets          ","EACH",null,null,416.17099999999999,"Concrete Pavement Repair (SY)","SY",null,490.01049999999998,"Salvaged Asphaltic Pavement Milling (SY)","TON",null,320.03300000000002,"Concrete Base HES 6 1/2-Inch (SY)","SY"]
[204.02250000000001,"Removing Septic Tanks          ","EACH",null,null,416.17149999999998,"Concrete Pavement Repair SHES (SY)","SY",null,490.02,"Salvaged Asphaltic Pavement Milling (TON)","SY",null,320.0335,"Concrete Base HES 7-Inch (SY)","SY"]
[204.023,"Removing Building (station)          ","LS",null,null,416.17200000000003,"Concrete Pavement Replacement (SY)","SY",null,490.02050000000003,"Seal Cracks Joints with Hot Sealant (GAL)","TON",null,320.03399999999999,"Concrete Base HES 7 1/2-Inch (SY)","SY"]
[204.02350000000001,"Removing Buildings (parcel)          ","LS",null,null,416.17250000000001,"Concrete Pavement Replacement SHES (SY)","SY",null,"492.2010.S","Warranted HMA Pvt Overlay Mainline (TON)","GAL",null,320.03449999999998,"Concrete Base HES 8-Inch (SY)","SY"]
[204.024,"Site Clearance (parcel)          ","LS",null,null,"N/A","Concrete Other (CY)","CY",null,"495.0100.S","Warranted HMA Pvt Ovrlay Ancillary (TON)","TON",null,320.03500000000003,"Concrete Base HES 8 1/2-Inch (SY)","SY"]
[204.02449999999999,"Removing Storm Sewer (size)         ","LF",null,null,"N/A","Concrete Other (SY)","SY",null,"N/A","HMA Other (TON)","TON",null,320.03550000000001,"Concrete Base HES 9-Inch (SY)","SY"]
[204.02500000000001,"Abandoning Manholes           ","EACH",null,null,null,null,null,null,"N/A","HMA Other (GAL)","GAL",null,320.036,"Concrete Base HES 9 1/2-Inch (SY)","SY"]
[204.02549999999999,"Abandoning Catch Basins         ","EACH",null,null,null,null,null,null,null,null,null,null,320.03649999999999,"Concrete Base HES 10-Inch (SY)","SY"]
[204.02600000000001,"Abandoning Inlets          ","EACH",null,null,null,null,null,null,null,null,null,null,320.03699999999998,"Concrete Base HES 10 1/2-Inch (SY)","SY"]
[204.0265,"Abandoning Wells          ","EACH",null,null,null,null,null,null,null,null,null,null,325.01,"Pulverize and Relay (SY)","SY"]
[204.02699999999999,"Abandoning Culvert Pipes          ","EACH",null,null,null,null,null,null,null,null,null,null,330.01,"Mill and Relay (SY)","SY"]
[204.0275,"Closing Culvert Pipes        ","EACH",null,null,null,null,null,null,null,null,null,null,335.01,"Rubblizing (SY)","SY"]
[204.02799999999999,"Sealing Pipes          ","EACH",null,null,null,null,null,null,null,null,null,null,350.0102,"Subbase (CY)","CY"]
["204.0291.S","Abandoning Sewer          ","CY",null,null,null,null,null,null,null,null,null,null,350.0104,"Subbase (TON)","TON"]
["204.9025.S","Removing ( )       ","CF",null,null,null,null,null,null,null,null,null,null,350.01150000000001,"Subbase 6-Inch (SY)","SY"]
["204.9035.S","Removing ( )         ","CY",null,null,null,null,null,null,null,null,null,null,350.012,"Subbase 7-Inch (SY)","SY"]
["204.9060.S","Removing ( )          ","EACH",null,null,null,null,null,null,null,null,null,null,350.01249999999999,"Subbase 8-Inch (SY)","SY"]
["204.9070.S","Removing ( )       ","GAL",null,null,null,null,null,null,null,null,null,null,350.01299999999998,"Subbase 9-Inch (SY)","SY"]
["204.9090.S","Removing ( )          ","LF",null,null,null,null,null,null,null,null,null,null,350.01350000000002,"Subbase 10-Inch (SY)","SY"]
["204.9105.S","Removing ( )          ","LS",null,null,null,null,null,null,null,null,null,null,350.01400000000001,"Subbase 11-Inch (SY)","SY"]
["204.9125.S","Removing ( )       ","MI",null,null,null,null,null,null,null,null,null,null,350.0145,"Subbase 12-Inch (SY)","SY"]
["204.9165.S","Removing ( )          ","SF",null,null,null,null,null,null,null,null,null,null,390.01029999999997,"Base Patching (SY)","SY"]
["204.9170.S","Removing ( )       ","STA",null,null,null,null,null,null,null,null,null,null,390.02010000000001,"Base Patching Asphaltic (TON)","TON"]
["204.9180.S","Removing ( )         ","SY",null,null,null,null,null,null,null,null,null,null,390.02030000000002,"Base Patching Asphaltic (SY)","SY"]
["204.9195.S","Removing ( )       ","TON",null,null,null,null,null,null,null,null,null,null,390.03030000000001,"Base Patching Concrete (SY)","SY"]
[205.01,"Excavation Common           ","CY",null,null,null,null,null,null,null,null,null,null,390.0403,"Base Patching Concrete Shes (SY)","SY"]
[205.02,"Excavation Rock           ","CY",null,null,null,null,null,null,null,null,null,null,"N/A","Base Other (TON)","TON"]
[205.03,"Excavation Stone Piles and Stone Fences      ","CY",null,null,null,null,null,null,null,null,null,null,"N/A","Base Other (SY)","SY"]
[205.04,"Excavation Marsh           ","CY",null,null,null,null,null,null,null,null,null,null,"N/A","Base Other (CY)","CY"]
["205.0500.S","Exc & Hauling Petroleum Cont Soil    ","CY"]
["205.0501.S","Excavat, Haul, Dispos Petrl Contamd Soil      ","TON"]
[205.13,"Presplitting Rock         ","LF"]
["205.2000.S","Settlement Gauges        ","EACH"]
["205.3000.S","Temporary Emergency Pullouts         ","EACH"]
["205.9006.S","Grding Shping Finish Barrier Terminals     ","EACH"]
["205.9010.S","Grading & Shaping Intersection (location        ","LS"]
["205.9015.S","Grading Shaping & Finishing Intersection        ","LS"]
[206.1,"Exc for Structure Bridges (structure)        ","LS"]
["206.1050.S","Underwater Foundation Inspection        ","EACH"]
[206.2,"Exc for Structures Culverts (structure)        ","LS"]
[206.3,"Exc for Struct Retaining Walls (struct)      ","LS"]
[206.4,"Exc for Struct Structal Plt Pipe or Arch  ","LS"]
[206.5,"Cofferdams (structure)           ","LS"]
[208.01,"Borrow           ","CY"]
[208.11,"Select Borrow           ","CY"]
["208.2100.S","Fly Ash for Subgr Stabil Furn    ","TON"]
["208.2110.S","Fly Ash Subgrade Stabilization      ","SY"]
[209.01,"Backfill Granular          ","CY"]
["209.0200.S","Backfill Controlled Low Strength         ","CY"]
["209.0300.S","Backfill Coarse Aggregate (size)         ","CY"]
[210.01,"Backfill Structure           ","CY"]
[211.01,"Prepare Foundation for Asphaltic Paving        ","LS"]
[211.02,"Prepare Foundation for Conc Pvt (proj)      ","LS"]
[211.03,"Prepare Foundation for Conc Base (proj)      ","LS"]
[211.04,"Prepare Foundation for Aspht Shlders        ","STA"]
[211.05,"Prepare Foundation for Base Aggregate        ","STA"]
[213.01,"Finishing Roadway (project)          ","EACH"]
[214.01,"Obliterating Old Road          ","STA"]
[305.01100000000002,"Base Aggregate Dense 3/4-Inch         ","TON"]
[305.01150000000001,"Base Aggregate Dense 3/4-Inch         ","CY"]
[305.012,"Base Aggregate Dense 1 1/4-Inch        ","TON"]
[305.01249999999999,"Base Aggregate Dense 1 1/4-Inch        ","CY"]
[305.01299999999998,"Base Aggregate Dense 3-Inch         ","TON"]
[305.01350000000002,"Base Aggregate Dense 3-Inch      ","CY"]
[305.041,"Aggregate Detours           ","TON"]
[305.04149999999998,"Aggregate Detours        ","CY"]
[305.05,"Shaping Shoulders           ","STA"]
["305.0502.S","Shaping Roadway         ","STA"]
["305.0504.S","Hauling Excess Shoulder Material        ","CY"]
[306.01100000000002,"Salvaged Asphaltic Pavement Base        ","TON"]
[306.01150000000001,"Salvaged Asphaltic Pavement Base        ","CY"]
[310.01100000000002,"Base Aggregate Open Graded         ","TON"]
[310.01150000000001,"Base Aggregate Open Graded         ","CY"]
[311.01100000000002,"Breaker Run           ","TON"]
[311.01150000000001,"Breaker Run           ","CY"]
[312.01100000000002,"Select Crushed Material          ","TON"]
[312.01150000000001,"Select Crushed Material          ","CY"]
[313.01100000000002,"Pit Run           ","TON"]
[313.01150000000001,"Pit Run         ","CY"]
[315.01,"Asphaltic Base           ","TON"]
[315.02,"Asphaltic Base Widening         ","TON"]
[320.01049999999998,"Concrete Base 4-Inch        ","SY"]
[320.01100000000002,"Concrete Base 4 1/2-Inch      ","SY"]
[320.01150000000001,"Concrete Base 5-Inch        ","SY"]
[320.012,"Concrete Base 5 1/2-Inch      ","SY"]
[320.01249999999999,"Concrete Base 6-Inch         ","SY"]
[320.01299999999998,"Concrete Base 6 1/2-Inch      ","SY"]
[320.01350000000002,"Concrete Base 7-Inch         ","SY"]
[320.01400000000001,"Concrete Base 7 1/2-Inch       ","SY"]
[320.0145,"Concrete Base 8-Inch         ","SY"]
[320.01499999999999,"Concrete Base 8 1/2-Inch         ","SY"]
[320.01549999999997,"Concrete Base 9-Inch         ","SY"]
[320.01600000000002,"Concrete Base 9 1/2-Inch       ","SY"]
[320.01650000000001,"Concrete Base 10-Inch       ","SY"]
[320.017,"Concrete Base 10 1/2-Inch      ","SY"]
[320.03050000000002,"Concrete Base HES 4-Inch      ","SY"]
[320.03100000000001,"Concrete Base HES 4 1/2-Inch     ","SY"]
[320.03149999999999,"Concrete Base HES 5-Inch      ","SY"]
[320.03199999999998,"Concrete Base HES 5 1/2-Inch     ","SY"]
[320.03250000000003,"Concrete Base HES 6-Inch      ","SY"]
[320.03300000000002,"Concrete Base HES 6 1/2-Inch     ","SY"]
[320.0335,"Concrete Base HES 7-Inch      ","SY"]
[320.03399999999999,"Concrete Base HES 7 1/2-Inch     ","SY"]
[320.03449999999998,"Concrete Base HES 8-Inch        ","SY"]
[320.03500000000003,"Concrete Base HES 8 1/2-Inch     ","SY"]
[320.03550000000001,"Concrete Base HES 9-Inch      ","SY"]
[320.036,"Concrete Base HES 9 1/2-Inch     ","SY"]
[320.03649999999999,"Concrete Base HES 10-Inch      ","SY"]
[320.03699999999998,"Concrete Base HES 10 1/2-Inch     ","SY"]
[325.01,"Pulverize and Relay          ","SY"]
[330.01,"Mill and Relay          ","SY"]
[335.01,"Rubblizing           ","SY"]
[340.01,"Cracking and Seating         ","SY"]
[350.0102,"Subbase           ","CY"]
[350.0104,"Subbase          ","TON"]
[350.01150000000001,"Subbase 6-Inch        ","SY"]
[350.012,"Subbase 7-Inch        ","SY"]
[350.01249999999999,"Subbase 8-Inch         ","SY"]
[350.01299999999998,"Subbase 9-Inch        ","SY"]
[350.01350000000002,"Subbase 10-Inch        ","SY"]
[350.01400000000001,"Subbase 11-Inch        ","SY"]
[350.0145,"Subbase 12-Inch           ","SY"]
[390.01029999999997,"Base Patching         ","SY"]
[390.02010000000001,"Base Patching Asphaltic          ","TON"]
[390.02030000000002,"Base Patching Asphaltic          ","SY"]
[390.03030000000001,"Base Patching Concrete          ","SY"]
[390.0403,"Base Patching Concrete Shes         ","SY"]
[405.01,"Coloring Concrete Red         ","CY"]
[415.00599999999997,"Concrete Pavement 6-Inch         ","SY"]
[415.00650000000002,"Concrete Pavement 6 1/2-Inch      ","SY"]
[415.00700000000001,"Concrete Pavement 7-Inch SY        ","SY"]
[415.00749999999999,"Concrete Pavement 7 1/2-Inch         ","SY"]
[415.00799999999998,"Concrete Pavement 8-Inch SY        ","SY"]
[415.00850000000003,"Concrete Pavement 8 1/2-Inch         ","SY"]
[415.00900000000001,"Concrete Pavement 9-Inch SY        ","SY"]
[415.0095,"Concrete Pavement 9 1/2-Inch         ","SY"]
[415.01,"Concrete Pavement 10-Inch SY        ","SY"]
[415.01049999999998,"Concrete Pavement 10 1/2-Inch         ","SY"]
[415.01100000000002,"Concrete Pavement 11-Inch SY        ","SY"]
[415.01150000000001,"Concrete Pavement 11 1/2-Inch        ","SY"]
[415.012,"Concrete Pavement 12-Inch SY        ","SY"]
[415.01249999999999,"Concrete Pavement 12 1/2-Inch        ","SY"]
[415.01299999999998,"Concrete Pavement 13-Inch SY      ","SY"]
[415.01350000000002,"Concrete Pavement  1/2-Inch       ","SY"]
[415.02100000000002,"Concrete Pavement Gaps         ","EACH"]
[415.03100000000001,"Concrete Alley         ","SY"]
[415.041,"Concrete Pavement Approach Slab         ","SY"]
[415.108,"Concrete Pavement HES 8-Inch         ","SY"]
[415.10849999999999,"Concrete Pavement HES 8 1/2-Inch        ","SY"]
[415.10899999999998,"Concrete Pavement HES 9-Inch        ","SY"]
[415.10950000000003,"Concrete Pavement HES 9 1/2-Inch        ","SY"]
[415.11,"Concrete Pavement HES 10-Inch        ","SY"]
[415.1105,"Concrete Pavement HES 10 1/2-Inch     ","SY"]
[415.11099999999999,"Concrete Pavement HES 11-Inch       ","SY"]
[415.11149999999998,"Concrete Pavement HES 11 1/2-Inch     ","SY"]
[415.11200000000002,"Concrete Pavement HES 12-Inch      ","SY"]
[415.11250000000001,"Concrete Pavement HES 12 1/2-Inch     ","SY"]
[415.113,"Concrete Pavement HES 13-Inch      ","SY"]
[415.11349999999999,"Concrete Pavement HES  1/2-Inch     ","SY"]
["415.1150.S","Concrete Pavement Fast Track (inch)       ","SY"]
[415.13099999999997,"Concrete Alley HES SY       ","SY"]
[415.14100000000002,"Concrete Pavement Approach Slab HES        ","SY"]
["415.6000.S","Rout and Seal          ","LF"]
[416.01600000000002,"Concrete Driveway 6-Inch          ","SY"]
[416.017,"Concrete Driveway 7-Inch          ","SY"]
[416.01799999999997,"Concrete Driveway 8-Inch          ","SY"]
[416.01900000000001,"Concrete Driveway 9-Inch         ","SY"]
[416.02600000000001,"Concrete Driveway HES 6-Inch         ","SY"]
[416.02699999999999,"Concrete Driveway HES 7-Inch         ","SY"]
[416.02800000000002,"Concrete Driveway HES 8-Inch         ","SY"]
[416.029,"Concrete Driveway HES 9-Inch        ","SY"]
[416.05079999999998,"Conc Roundabout Truck Apron 8-Inch        ","SY"]
[416.05119999999999,"Conc Roundabout Truck Apron 12-Inch        ","SY"]
[416.06099999999998,"Drilled Tie Bars          ","EACH"]
[416.06200000000001,"Drilled Dowel Bars          ","EACH"]
["416.0623.S","Pavement Dowel Bars Retrofit Warranted     ","EACH"]
["416.0750.S","Conc Pvt Ptl Depth Repair Joint Repair    ","LF"]
["416.0752.S","Conc Pvt Ptl Depth Repair Crack Repair    ","LF"]
["416.0754.S","Conc Pvt Ptl Depth Repair Surface Repair    ","SF"]
["416.0756.S","Conc Pvt Ptl Depth Repair Edge Repair   ","LF"]
["416.0758.S","Conc Pvt Ptl Depth Repair Full Depth    ","SF"]
[416.101,"Concrete Surface Drains          ","CY"]
[416.10149999999999,"Concrete Surface Drains HES         ","CY"]
[416.11099999999999,"Conc Shoulder Rumble Strips         ","LF"]
[416.11799999999999,"Conc Intersection Rumble Strips      ","SY"]
[416.17099999999999,"Concrete Pavement Repair          ","SY"]
[416.17149999999998,"Concrete Pavement Repair SHES         ","SY"]
[416.17200000000003,"Concrete Pavement Replacement          ","SY"]
[416.17250000000001,"Concrete Pavement Replacement SHES         ","SY"]
[420.1,"Continuous Diamond Grind Concrete Pvmnt     ","SY"]
["420.1000.S","Conc Pvmt Continuous Diamond Grinding        ","SY"]
[440.44099999999997,"Incentive IRI Ride       ","DOL"]
["440.4410.S","Incentive IRI Ride          ","DOL"]
[440.50200000000001,"Incentive IRI Ride Bridge      ","DOL"]
[455.01049999999998,"Asphaltic Material PG58-28          ","TON"]
[455.01100000000002,"Asphaltic Material PG58-34          ","TON"]
[455.012,"Asphaltic Material PG64-28          ","TON"]
[455.01220000000001,"Asphaltic Material PG64-34          ","TON"]
[455.01249999999999,"Asphaltic Material PG70-28        ","TON"]
[455.01350000000002,"Asphaltic Material PG58-34P          ","TON"]
[455.01400000000001,"Asphaltic Material PG64-28P          ","TON"]
[455.0145,"Asphaltic Material PG64-34P          ","TON"]
[455.01499999999999,"Asphaltic Material PG70-28P          ","TON"]
[455.02050000000003,"Asphaltic Material PG58-28       ","GAL"]
[455.02100000000002,"Asphaltic Material PG58-34       ","GAL"]
[455.02199999999999,"Asphaltic Material PG64-28       ","GAL"]
[455.0222,"Asphaltic Material PG64-34       ","GAL"]
[455.02249999999998,"Asphaltic Material PG70-28       ","GAL"]
[455.02350000000001,"Asphaltic Material PG58-34P       ","GAL"]
[455.024,"Asphaltic Material PG64-28P        ","GAL"]
[455.02449999999999,"Asphaltic Material PG64-34P       ","GAL"]
[455.02499999999998,"Asphaltic Material PG70-28P       ","GAL"]
[455.03,"Asphaltic Material Special       ","TON"]
[455.04,"Asphaltic Material Special       ","GAL"]
[455.05,"Asphaltic Material Seal Coat       ","TON"]
[455.0505,"Asphaltic Material Seal Coat        ","GAL"]
[455.06,"Tack Coat         ","TON"]
[455.06049999999999,"Tack Coat           ","GAL"]
[460.11,"HMA Pavement Type E-0.3         ","TON"]
[460.11009999999999,"HMA Pavement Type E-1         ","TON"]
[460.1103,"HMA Pavement Type E-3         ","TON"]
[460.11099999999999,"HMA Pavement Type E-10         ","TON"]
[460.113,"HMA Pavement Type E-30         ","TON"]
[460.11320000000001,"HMA Pavement Type E-30X        ","TON"]
[460.17,"HMA Pavement Type SMA        ","TON"]
[460.2,"Incentive Density HMA Pavement         ","DOL"]
[460.4,"HMA Cold Weather Paving       ","TON"]
["460.4110.S","Reheating HMA Pvmt Longitudinal Joints        ","LF"]
[465.01049999999998,"Asphaltic Surface           ","TON"]
[465.01100000000002,"Asphaltic Surface Patching          ","TON"]
[465.01150000000001,"Asphaltic Surface Detours          ","TON"]
[465.012,"Asph Surface Driveways & Field Entrances      ","TON"]
[465.01249999999999,"Asphaltic Surface Temporary          ","TON"]
[465.03050000000002,"Asphaltic Surface Safety Islands         ","TON"]
[465.03100000000001,"Asphaltic Curb           ","LF"]
[465.03149999999999,"Asphaltic Flumes           ","SY"]
[465.04,"Asphaltic Shoulder Rumble Strips         ","LF"]
[465.04250000000002,"Asphalt Shoulder Rmble Strp 2-Lane Rural      ","LF"]
[465.04500000000002,"Asphaltic Intersection Rumble Strips         ","SY"]
[465.04750000000001,"Asphalt Ctr Line Rmble Strp 2-Lane Rural    ","LF"]
[475.01,"Seal Coat         ","CY"]
[475.01049999999998,"Seal Coat        ","TON"]
[490.01,"Salvaged Asphaltic Pavement        ","SY"]
[490.01049999999998,"Salvaged Asphaltic Pavement       ","TON"]
[490.02,"Salvaged Asphaltic Pavement Milling         ","SY"]
[490.02050000000003,"Salvaged Asphaltic Pavement Milling        ","TON"]
["492.2010.S","Seal Cracks Joints with Hot Sealant      ","GAL"]
["495.0100.S","Warranted HMA Pvt Overlay Mainline      ","TON"]
["495.0200.S","Warranted HMA Pvt Ovrlay Ancillary      ","TON"]
["501.1000.S","Ice Hot Weather Concreting       ","LB"]
[502.01,"Concrete Masonry Bridges         ","CY"]
[502.02,"Concrete Masonry Bridges HES       ","CY"]
["502.0717.S","Crack Sealing Epoxy          ","LF"]
[502.11,"Concrete Masonry Seal          ","CY"]
[502.2,"Comp Joint Sealer Preformed Elastomeric        ","LF"]
[502.31,"Expansion Device (structure)          ","LS"]
["502.3110.S","Expansion Device Modular (structure)         ","LS"]
[502.32,"Protective Surface Treatment          ","SY"]
[502.32100000000003,"Pigmented Surface Sealer       ","SY"]
["502.3210.S","Pigmented Protective Surface Treatment         ","SY"]
["502.3215.S","Protective Surface Treatment Reseal         ","SY"]
["502.4200.S","Ruptured Void Repair         ","SY"]
[502.50020000000001,"Masonry Anchors Type L No. 4 Bars    ","EACH"]
[502.50049999999999,"Masonry Anchors Type L No. 5 Bars    ","EACH"]
[502.50099999999998,"Masonry Anchors Type L No. 6 Bars    ","EACH"]
[502.50150000000002,"Masonry Anchors Type L No. 7 Bars    ","EACH"]
[502.50200000000001,"Masonry Anchors Type L No. 8 Bars    ","EACH"]
[502.5025,"Masonry Anchors Type L No. 9 Bars    ","EACH"]
[502.50299999999999,"Masonry Anchors Type L No. 10 Bars    ","EACH"]
[502.61020000000002,"Masonry Anchors Type S 1/2-Inch        ","EACH"]
[502.6105,"Masonry Anchors Type S 5/8-Inch        ","EACH"]
[502.61099999999999,"Masonry Anchors Type S 3/4-Inch        ","EACH"]
[502.61149999999998,"Masonry Anchors Type S 7/8-Inch      ","EACH"]
[502.61200000000002,"Masonry Anchors Type S 1-Inch     ","EACH"]
[502.61250000000001,"Masonry Anchors Type S 1 1/8-Inch    ","EACH"]
[502.613,"Masonry Anchors Type S 1 1/4-Inch     ","EACH"]
[502.61349999999999,"Masonry Anchors Type S 1 3/8-Inch    ","EACH"]
[502.61399999999998,"Masonry Anchors Type S 1 1/2-Inch     ","EACH"]
[502.65,"Protective Coating Clear          ","GAL"]
[503.01280000000003,"Prestressed Girder Type I 28-Inch        ","LF"]
[503.0136,"Prestressed Girder Type I 36-Inch        ","LF"]
[503.01369999999997,"Prestressed Girder Type I 36W-Inch        ","LF"]
[503.0145,"Prestressed Girder Type I 45-Inch        ","LF"]
[503.01459999999997,"Prestressed Girder Type I 45W-Inch        ","LF"]
[503.0154,"Prestressed Girder Type I 54-Inch     ","LF"]
[503.01549999999997,"Prestressed Girder Type I 54W-Inch        ","LF"]
[503.017,"Prestressed Girder Type I 70-Inch     ","LF"]
[503.0172,"Prestressed Girder Type I 72W-Inch        ","LF"]
[503.01819999999998,"Prestressed Girder Type I 82W-Inch     ","LF"]
["503.0200.S","Prestressed Girders Box (type)      ","LF"]
[503.02170000000001,"Prestressed Girder Box Type 17-Inch     ","LF"]
[503.02210000000002,"Prestressed Girder Box Type 21-Inch     ","LF"]
[503.02269999999999,"Prestressed Girder Box Type 27-Inch     ","LF"]
[503.02330000000001,"Prestressed Girder Box Type 33-Inch     ","LF"]
[503.02420000000001,"Prestressed Girder Box Type 42-Inch     ","LF"]
[503.03120000000001,"Prestressed Girder Slab Type 12-Inch     ","LF"]
["503.0400.S","Precst Prestrss Concret Deck Pnl (struc)    ","SF"]
["503.1005.S","Remov & Reset Prestrssd Girder (struct)    ","LS"]
[504.01,"Concrete Masonry Culverts          ","CY"]
[504.02,"Concrete Masonry Culverts HES      ","CY"]
[504.05,"Concrete Masonry Retaining Walls         ","CY"]
[504.06,"Concrete Masonry Retaining Walls HES     ","CY"]
[504.09,"Concrete Masonry Endwalls          ","CY"]
["504.1000.S","Precast Conc Wingwalls (structure)      ","LS"]
["504.2000.S","Precast Conc Box Culvert (ft X ft)    ","LF"]
[505.01,"Bar Steel Reinforcement Structures      ","LB"]
[505.01049999999998,"Bar Steel Reinforcement Bridges      ","LB"]
[505.01100000000002,"Bar Steel Reinforcement Culverts        ","LB"]
[505.01150000000001,"Bar Steel Reinforcement Retaining Walls     ","LB"]
[505.04,"Bar Steel Reinforcement HS Structures     ","LB"]
[505.04050000000001,"Bar Steel Reinforcement HS Bridges        ","LB"]
[505.041,"Bar Steel Reinforcement HS Culverts        ","LB"]
[505.04149999999998,"Bar Steel Reinf HS Retaining Walls      ","LB"]
[505.06,"Bar Steel Reinforcemnt HS Coated Strctrs    ","LB"]
[505.06049999999999,"Bar Steel Reinf HS Coated Bridge      ","LB"]
[505.06099999999998,"Bar Steel Reinf HS Coated Culverts      ","LB"]
[505.06150000000002,"Bar Steel Reinf HS Coated Retaining Wall    ","LB"]
["505.0650.S","Steel Fabric Reinforcement Bridges      ","SY"]
["505.0800.S","Bar Steel Reinf HS Stainless Structures     ","LB"]
[505.09039999999999,"Bar Couplers No. 4         ","EACH"]
[505.09050000000002,"Bar Couplers No. 5         ","EACH"]
[505.09059999999999,"Bar Couplers No. 6         ","EACH"]
[505.09070000000003,"Bar Couplers No. 7         ","EACH"]
[505.0908,"Bar Couplers No. 8         ","EACH"]
[505.09089999999998,"Bar Couplers No. 9         ","EACH"]
[505.09100000000001,"Bar Couplers No. 10       ","EACH"]
[505.09109999999998,"Bar Couplers No. 11       ","EACH"]
["505.0984.S","Bar Couplers Stainless No. 4     ","EACH"]
["505.0985.S","Bar Couplers Stainless No. 5     ","EACH"]
["505.0986.S","Bar Couplers Stainless No. 6     ","EACH"]
["505.0987.S","Bar Couplers Stainless No. 7     ","EACH"]
["505.0988.S","Bar Couplers Stainless No. 8     ","EACH"]
["505.0989.S","Bar Couplers Stainless No. 9     ","EACH"]
["505.0990.S","Bar Couplers Stainless No. 10     ","EACH"]
["505.0991.S","Bar Couplers Stainless No. 11     ","EACH"]
[506.01049999999998,"Structural Steel Carbon          ","LB"]
[506.06049999999999,"Structural Steel           ","LB"]
[506.10050000000001,"Castings Steel        ","HS"]
[506.101,"Castings Bronze        ","LB"]
[506.1105,"Forgings Steel Carbon       ","LB"]
[506.14049999999997,"Lubricated Plates Bronze       ","LB"]
[506.15050000000002,"Sheet Copper        ","LB"]
[506.15100000000001,"Sheet Zinc         ","LB"]
[506.21050000000002,"Bearing Pads        ","SF"]
[506.26049999999998,"Bearing Pads Elastomeric Non-Laminated         ","EACH"]
[506.26100000000002,"Bearing Pads Elastomeric Laminated         ","EACH"]
[506.30029999999999,"Welded Stud Shear Connectors 5/8x4-Inch     ","EACH"]
[506.30040000000002,"Welded Stud Shear Connectors 3/4x4-Inch      ","EACH"]
[506.3005,"Welded Stud Shear Connectors 7/8x4-Inch      ","EACH"]
[506.30079999999998,"Welded Stud Shear Connectors 5/8x5-Inch       ","EACH"]
[506.30090000000001,"Welded Stud Shear Connectors 3/4x5-Inch     ","EACH"]
[506.30099999999999,"Welded Stud Shear Connectors 7/8x5-Inch        ","EACH"]
[506.30130000000003,"Welded Stud Shear Connectors 5/8x6-Inch     ","EACH"]
[506.3014,"Welded Stud Shear Connectors 3/4x6-Inch      ","EACH"]
[506.30149999999998,"Welded Stud Shear Connectors 7/8x6-Inch        ","EACH"]
[506.30180000000001,"Welded Stud Shear Connectors 5/8x7-Inch     ","EACH"]
[506.30189999999999,"Welded Stud Shear Connectors 3/4x7-Inch     ","EACH"]
[506.30200000000002,"Welded Stud Shear Connectors 7/8x7-Inch        ","EACH"]
[506.3023,"Welded Stud Shear Connectors 5/8x8-Inch     ","EACH"]
[506.30239999999998,"Welded Stud Shear Connectors 3/4x8-Inch     ","EACH"]
[506.30250000000001,"Welded Stud Shear Connectors 7/8x8-Inch        ","EACH"]
[506.303,"Welded Stud Shear Connectors 7/8x9-Inch      ","EACH"]
[506.30349999999999,"Welded Stud Shear Connectors 7/8x10-Inch      ","EACH"]
[506.4,"Steel Diaphragms (structure)          ","EACH"]
[506.5,"Bearing Assemblies Fixed (structure)         ","EACH"]
[506.6,"Bearing Assemblies Expansion (structure)         ","EACH"]
["506.7000.S","Bearing Replacement (structure)         ","EACH"]
["506.7050.S","Removing Bearings (structure)          ","EACH"]
["506.7060.S","Bridge Jacking (structure)          ","LS"]
["506.7070.S","Hinge Replacement        ","EACH"]
["506.8000.S","Prefab Steel Truss Ped Brdge (structure)     ","LS"]
["506.8005.S","Prefab Steel Truss Ped Brdge LRFD (strc)    ","LS"]
[507.02,"Treated Lumber and Timber        ","MBM"]
[509.0301,"Preparation Decks Type 1         ","SY"]
[509.03019999999998,"Preparation Decks Type 2         ","SY"]
[509.05,"Cleaning Decks           ","SY"]
[509.06,"Cleaning Approaches         ","SY"]
[509.1,"Joint Repair           ","SY"]
[509.12,"Curb Repair           ","LF"]
[509.15,"Concrete Surface Repair          ","SF"]
[509.2,"Full-Depth Deck Repair          ","SY"]
[509.25,"Concrete Masonry Overlay Decks         ","CY"]
[509.26,"Concrete Masonry Overlay Approaches        ","CY"]
["509.3500.S","HMA Overlay Polymer-Modified        ","TON"]
["509.5100.S","Polymer Overlay           ","SY"]
["509.9005.S","Remov Concrte Masnry Deck Ovrlay (struc)      ","SY"]
["509.9010.S","Remov Asphalt Concret Dck Ovrlay (struc)      ","SY"]
["509.9020.S","Epoxy Crack Sealing          ","LF"]
["509.9025.S","Epoxy Injection Crack Repair        ","LF"]
["509.9026.S","Cored Holes 2-Inch Diameter        ","EACH"]
["509.9050.S","Cleaning Parapets           ","LF"]
[511.11,"Temporary Shoring         ","SF"]
[511.12,"Temporary Shoring (structure)        ","SF"]
[511.13,"Temporary Shoring (location)        ","SF"]
[511.22,"Temp Shoring Left in Place (structure)     ","SF"]
[511.23,"Temp Shoring Left in Place (location)     ","SF"]
[512.04999999999995,"Piling Steel Sheet Permanent Delivered        ","SF"]
[512.05999999999995,"Piling Steel Sheet Permanent Driven        ","SF"]
[512.1,"Piling Steel Sheet Temporary         ","SF"]
[513.20000000000005,"Railing Pipe (structure)          ","LS"]
[513.20010000000002,"Railing Pipe (structure)       ","LF"]
["513.2050.S","Railing Pipe           ","LF"]
[513.40499999999997,"Railing Tubular Type F (structure)       ","LS"]
[513.40509999999995,"Railing Tubular Type F (structure)     ","LF"]
[513.40520000000004,"Railing Tubular Type F-4 Modified (strc)      ","LS"]
[513.40530000000001,"Railing Tubular Type F-5 Modified (strc)    ","LS"]
[513.40549999999996,"Railing Tubular Type H (structure)       ","LS"]
[513.40560000000005,"Railing Tubular Type H (structure)     ","LF"]
[513.40599999999995,"Railing Tubular Type M (structure)        ","LS"]
[513.40610000000004,"Railing Tubular Type M (structure)     ","LF"]
[513.40650000000005,"Railing Tubular Type PF (structure)      ","LS"]
[513.40660000000003,"Railing Tubular Type PF (structure)     ","LF"]
[513.40800000000002,"Railing Tubular Special (structure)        ","LS"]
[513.40899999999999,"Railing Tubular Screening (structure)         ","LS"]
[513.40909999999997,"Railing Tubular Screening (structure)      ","LF"]
[513.6,"Railing Steel (structure)       ","LS"]
[513.70050000000003,"Railing Steel Type C1 (structure)      ","LS"]
[513.70060000000001,"Railing Steel Type C1 (structure)     ","LF"]
[513.70100000000002,"Railing Steel Type C2 (structure)      ","LS"]
[513.7011,"Railing Steel Type C2 (structure)     ","LF"]
[513.70150000000001,"Railing Steel Type C3 (structure)        ","LS"]
[513.70159999999998,"Railing Steel Type C3 (structure)     ","LF"]
[513.702,"Railing Steel Type C4 (structure)       ","LS"]
[513.70209999999997,"Railing Steel Type C4 (structure)     ","LF"]
[513.70249999999999,"Railing Steel Type C5 (structure)      ","LS"]
[513.70259999999996,"Railing Steel Type C5 (structure)     ","LF"]
[513.70299999999997,"Railing Steel Type C6 (structure)     ","LS"]
[513.70309999999995,"Railing Steel Type C6 (structure)     ","LF"]
[513.70500000000004,"Railing Steel Type W (structure)        ","LS"]
[513.70510000000002,"Railing Steel Type W (structure)     ","LF"]
[513.70830000000001,"Railing Steel Type NY3 (structure)     ","LF"]
[513.70839999999998,"Railing Steel Type NY4 (structure)     ","LF"]
[513.70899999999995,"Railing Steel Special (structure)       ","LS"]
[513.80060000000003,"Railing Steel Pedestrian Type C1 (struc)    ","LF"]
[513.80110000000002,"Railing Steel Pedestrian Type C2 (struc)    ","LF"]
[513.80160000000001,"Railing Steel Pedestrian Type C3 (struc)    ","LF"]
[513.8021,"Railing Steel Pedestrian Type C4 (struc)    ","LF"]
[513.80259999999998,"Railing Steel Pedestrian Type C5 (struc)    ","LF"]
[513.80309999999997,"Railing Steel Pedestrian Type C6 (struc)    ","LF"]
["513.9005.S","Remov & Reset Tubular Railng (structure)      ","LS"]
[514.04449999999997,"Floor Drains Type GC         ","EACH"]
[514.04499999999996,"Floor Drains Type WF        ","EACH"]
[514.04600000000005,"Floor Drains Type H        ","EACH"]
[514.09,"Adjusting Floor Drains          ","EACH"]
[514.1,"Deck Drains (structure)       ","LS"]
[514.26080000000002,"Downspout 8-Inch          ","LF"]
[514.26250000000005,"Downspout 6-Inch           ","LF"]
[515.4,"Steel Grid Floor Open (inch)     ","SF"]
[515.5,"Steel Grid Floor Concrete Filled (inch)    ","SF"]
[516.01,"Dampproofing            ","SY"]
[516.04999999999995,"Rubberized Membrane Waterproofing          ","SY"]
["516.0600.S","Sheet Membrane Waterproofing         ","SY"]
["516.0610.S","Sheet Membrane Waterproof Top Slab (str)      ","SY"]
[517.05999999999995,"Painting Epoxy System (structure)         ","LS"]
["517.0650.S","Painting Polysiloxane System (structure)      ","LS"]
["517.0700.S","Painting Vinyl System (structure)      ","LS"]
["517.0900.S","Prep and Coat of Top Flanges (structure)    ","LS"]
[517.1,"Paint Epoxy Sys Steel Truss (structure)    ","LS"]
["517.1000.S","Struct Repaint Organic Zinc Rich System    ","LS"]
["517.1010.S","Concrete Staining (structure)          ","SF"]
["517.1015.S","Concrete Staining Multi-Color (structur)         ","SF"]
["517.1050.S","Architecturl Surfce Treatmnt (structure)         ","SF"]
["517.1800.S","Struct Repaint Recycld Abrasive (struct)        ","LS"]
["517.2000.S","Painting Warranted (structure)       ","LS"]
["517.3000.S","Struct Overcoating Cleaning and Priming       ","LS"]
["517.4000.S","Containment&Collection Waste Materials          ","LS"]
["517.4500.S","Neg Pres Contain&Collect Waste Matrials        ","LS"]
["517.6001.S","Portable Decontamination Facility          ","EACH"]
[518.01,"Rubble Masonry Mortar       ","CY"]
[518.02,"Rubble Masonry Dry       ","CY"]
[520.01120000000003,"Culvert Pipe Class III 12-Inch        ","LF"]
[520.01149999999996,"Culvert Pipe Class III 15-Inch        ","LF"]
[520.01179999999999,"Culvert Pipe Class III 18-Inch        ","LF"]
[520.01210000000003,"Culvert Pipe Class III 21-Inch        ","LF"]
[520.01239999999996,"Culvert Pipe Class III 24-Inch        ","LF"]
[520.01300000000003,"Culvert Pipe Class III 30-Inch        ","LF"]
[520.0136,"Culvert Pipe Class III 36-Inch        ","LF"]
[520.01419999999996,"Culvert Pipe Class III 42-Inch        ","LF"]
[520.01480000000004,"Culvert Pipe Class III 48-Inch        ","LF"]
[520.0154,"Culvert Pipe Class III 54-Inch     ","LF"]
[520.01599999999996,"Culvert Pipe Class III 60-Inch     ","LF"]
[520.0172,"Culvert Pipe Class III 72-Inch        ","LF"]
[520.01840000000004,"Culvert Pipe Class III 84-Inch     ","LF"]
[520.03120000000001,"Culvert Pipe Class IV 12-Inch     ","LF"]
[520.03150000000005,"Culvert Pipe Class IV 15-Inch     ","LF"]
[520.03179999999998,"Culvert Pipe Class IV 18-Inch       ","LF"]
[520.03210000000001,"Culvert Pipe Class IV 21-Inch     ","LF"]
[520.03240000000005,"Culvert Pipe Class IV 24-Inch      ","LF"]
[520.03300000000002,"Culvert Pipe Class IV 30-Inch       ","LF"]
[520.03359999999998,"Culvert Pipe Class IV 36-Inch      ","LF"]
[520.03420000000006,"Culvert Pipe Class IV 42-Inch      ","LF"]
[520.03480000000002,"Culvert Pipe Class IV 48-Inch      ","LF"]
[520.03539999999998,"Culvert Pipe Class IV 54-Inch      ","LF"]
[520.03599999999994,"Culvert Pipe Class IV 60-Inch     ","LF"]
[520.03719999999998,"Culvert Pipe Class IV 72-Inch     ","LF"]
[520.03840000000002,"Culvert Pipe Class IV 84-Inch     ","LF"]
[520.06119999999999,"Culvert Pipe Class V 12-Inch     ","LF"]
[520.06150000000002,"Culvert Pipe Class V 15-Inch     ","LF"]
[520.06179999999995,"Culvert Pipe Class V 18-Inch     ","LF"]
[520.06209999999999,"Culvert Pipe Class V 21-Inch     ","LF"]
[520.06240000000003,"Culvert Pipe Class V 24-Inch     ","LF"]
[520.06299999999999,"Culvert Pipe Class V 30-Inch     ","LF"]
[520.06359999999995,"Culvert Pipe Class V 36-Inch     ","LF"]
[520.06420000000003,"Culvert Pipe Class V 42-Inch     ","LF"]
[520.06479999999999,"Culvert Pipe Class V 48-Inch     ","LF"]
[520.06539999999995,"Culvert Pipe Class V 54-Inch     ","LF"]
[520.06600000000003,"Culvert Pipe Class V 60-Inch     ","LF"]
[520.06719999999996,"Culvert Pipe Class V 72-Inch     ","LF"]
[520.0684,"Culvert Pipe Class V 84-Inch     ","LF"]
[520.10119999999995,"Apron Endwalls for Culvert Pipe 12-Inch      ","EACH"]
[520.10149999999999,"Apron Endwalls for Culvert Pipe 15-Inch      ","EACH"]
[520.10180000000003,"Apron Endwalls for Culvert Pipe 18-Inch      ","EACH"]
[520.10209999999995,"Apron Endwalls for Culvert Pipe 21-Inch      ","EACH"]
[520.10239999999999,"Apron Endwalls for Culvert Pipe 24-Inch      ","EACH"]
[520.10299999999995,"Apron Endwalls for Culvert Pipe 30-Inch      ","EACH"]
[520.10360000000003,"Apron Endwalls for Culvert Pipe 36-Inch      ","EACH"]
[520.10419999999999,"Apron Endwalls for Culvert Pipe 42-Inch      ","EACH"]
[520.10479999999995,"Apron Endwalls for Culvert Pipe 48-Inch      ","EACH"]
[520.10540000000003,"Apron Endwalls for Culvert Pipe 54-Inch      ","EACH"]
[520.10599999999999,"Apron Endwalls for Culvert Pipe 60-Inch     ","EACH"]
[520.10720000000003,"Apron Endwalls for Culvert Pipe 72-Inch      ","EACH"]
[520.10839999999996,"Apron Endwalls for Culvert Pipe 84-Inch    ","EACH"]
[520.20119999999997,"Culvert Pipe Temporary 12-Inch      ","LF"]
[520.20150000000001,"Culvert Pipe Temporary 15-Inch      ","LF"]
[520.20180000000005,"Culvert Pipe Temporary 18-Inch      ","LF"]
[520.20209999999997,"Culvert Pipe Temporary 21-Inch      ","LF"]
[520.20240000000001,"Culvert Pipe Temporary 24-Inch      ","LF"]
[520.20299999999997,"Culvert Pipe Temporary 30-Inch      ","LF"]
[520.20360000000005,"Culvert Pipe Temporary 36-Inch      ","LF"]
[520.20420000000001,"Culvert Pipe Temporary 42-Inch      ","LF"]
[520.20479999999998,"Culvert Pipe Temporary 48-Inch      ","LF"]
[520.20540000000005,"Culvert Pipe Temporary 54-Inch      ","LF"]
[520.20600000000002,"Culvert Pipe Temporary 60-Inch      ","LF"]
[520.20719999999994,"Culvert Pipe Temporary 72-Inch      ","LF"]
[520.20839999999998,"Culvert Pipe Temporary 84-Inch      ","LF"]
[520.31420000000003,"Culvert Pipe Class III 42-Inch     ","LF"]
[520.31479999999999,"Culvert Pipe Class III 48-Inch     ","LF"]
[520.31539999999995,"Culvert Pipe Class III 54-Inch     ","LF"]
[520.31600000000003,"Culvert Pipe Class III 60-Inch     ","LF"]
[520.31719999999996,"Culvert Pipe Class III 72-Inch     ","LF"]
[520.3184,"Culvert Pipe Class III 84-Inch     ","LF"]
[520.33119999999997,"Culvert Pipe Class III-A 12-Inch     ","LF"]
[520.33150000000001,"Culvert Pipe Class III-A 15-Inch     ","LF"]
[520.33180000000004,"Culvert Pipe Class III-A 18-Inch     ","LF"]
[520.33209999999997,"Culvert Pipe Class III-A 21-Inch     ","LF"]
[520.33240000000001,"Culvert Pipe Class III-A 24-Inch     ","LF"]
[520.33270000000005,"Culvert Pipe Class III-A 27-Inch     ","LF"]
[520.33299999999997,"Culvert Pipe Class III-A 30-Inch     ","LF"]
[520.33360000000005,"Culvert Pipe Class III-A 36-Inch     ","LF"]
[520.34119999999996,"Culvert Pipe Class III-A Non-metal 12-In    ","LF"]
[520.3415,"Culvert Pipe Class III-A Non-metal 15-In    ","LF"]
[520.34180000000003,"Culvert Pipe Class III-A Non-metal 18-In    ","LF"]
[520.34209999999996,"Culvert Pipe Class III-A Non-metal 21-In    ","LF"]
[520.3424,"Culvert Pipe Class III-A Non-metal 24-In    ","LF"]
[520.34270000000004,"Culvert Pipe Class III-A Non-metal 27-In    ","LF"]
[520.34299999999996,"Culvert Pipe Class III-A Non-metal 30-In    ","LF"]
[520.34360000000004,"Culvert Pipe Class III-A Non-metal 36-In    ","LF"]
[520.35119999999995,"Culvert Pipe Class III-B 12-Inch     ","LF"]
[520.35149999999999,"Culvert Pipe Class III-B 15-Inch     ","LF"]
[520.35180000000003,"Culvert Pipe Class III-B 18-Inch     ","LF"]
[520.35209999999995,"Culvert Pipe Class III-B 21-Inch     ","LF"]
[520.35239999999999,"Culvert Pipe Class III-B 24-Inch     ","LF"]
[520.35270000000003,"Culvert Pipe Class III-B 27-Inch     ","LF"]
[520.35299999999995,"Culvert Pipe Class III-B 30-Inch     ","LF"]
[520.35360000000003,"Culvert Pipe Class III-B 36-Inch     ","LF"]
[520.36120000000005,"Culvert Pipe Class III-B Non-metal 12-In    ","LF"]
[520.36149999999998,"Culvert Pipe Class III-B Non-metal 15-In    ","LF"]
[520.36180000000002,"Culvert Pipe Class III-B Non-metal 18-In    ","LF"]
[520.36210000000005,"Culvert Pipe Class III-B Non-metal 21-In    ","LF"]
[520.36239999999998,"Culvert Pipe Class III-B Non-metal 24-In    ","LF"]
[520.36270000000002,"Culvert Pipe Class III-B Non-metal 27-In    ","LF"]
[520.36300000000006,"Culvert Pipe Class III-B Non-metal 30-In    ","LF"]
[520.36360000000002,"Culvert Pipe Class III-B Non-metal 36-In    ","LF"]
[520.40120000000002,"Culvert Pipe Temporary 12-Inch         ","LF"]
[520.40150000000006,"Culvert Pipe Temporary 15-Inch         ","LF"]
[520.40179999999998,"Culvert Pipe Temporary 18-Inch         ","LF"]
[520.40210000000002,"Culvert Pipe Temporary 21-Inch      ","LF"]
[520.40239999999994,"Culvert Pipe Temporary 24-Inch         ","LF"]
[520.40300000000002,"Culvert Pipe Temporary 30-Inch         ","LF"]
[520.40359999999998,"Culvert Pipe Temporary 36-Inch        ","LF"]
[520.40419999999995,"Culvert Pipe Temporary 42-Inch        ","LF"]
[520.40480000000002,"Culvert Pipe Temporary 48-Inch        ","LF"]
[520.40539999999999,"Culvert Pipe Temporary 54-Inch       ","LF"]
[520.40599999999995,"Culvert Pipe Temporary 60-Inch       ","LF"]
[520.40719999999999,"Culvert Pipe Temporary 72-Inch       ","LF"]
[520.40840000000003,"Culvert Pipe Temporary 84-Inch      ","LF"]
[520.41120000000001,"Culvert Pipe Class IV 12-Inch     ","LF"]
[520.41150000000005,"Culvert Pipe Class IV 15-Inch     ","LF"]
[520.41179999999997,"Culvert Pipe Class IV 18-Inch     ","LF"]
[520.41210000000001,"Culvert Pipe Class IV 21-Inch     ","LF"]
[520.41240000000005,"Culvert Pipe Class IV 24-Inch     ","LF"]
[520.41300000000001,"Culvert Pipe Class IV 30-Inch     ","LF"]
[520.41359999999997,"Culvert Pipe Class IV 36-Inch     ","LF"]
[520.41420000000005,"Culvert Pipe Class IV 42-Inch     ","LF"]
[520.41480000000001,"Culvert Pipe Class IV 48-Inch     ","LF"]
[520.41539999999998,"Culvert Pipe Class IV 54-Inch     ","LF"]
[520.41600000000005,"Culvert Pipe Class IV 60-Inch     ","LF"]
[520.41719999999998,"Culvert Pipe Class IV 72-Inch     ","LF"]
[520.41840000000002,"Culvert Pipe Class IV 84-Inch     ","LF"]
[520.5,"Pipe Cattle Pass       ","LF"]
[520.51120000000003,"Culvert Pipe Class V 12-Inch     ","LF"]
[520.51149999999996,"Culvert Pipe Class V 15-Inch     ","LF"]
[520.51179999999999,"Culvert Pipe Class V 18-Inch     ","LF"]
[520.51210000000003,"Culvert Pipe Class V 21-Inch     ","LF"]
[520.51239999999996,"Culvert Pipe Class V 24-Inch     ","LF"]
[520.51300000000003,"Culvert Pipe Class V 30-Inch     ","LF"]
[520.5136,"Culvert Pipe Class V 36-Inch     ","LF"]
[520.51419999999996,"Culvert Pipe Class V 42-Inch     ","LF"]
[520.51480000000004,"Culvert Pipe Class V 48-Inch     ","LF"]
[520.5154,"Culvert Pipe Class V 54-Inch     ","LF"]
[520.51599999999996,"Culvert Pipe Class V 60-Inch     ","LF"]
[520.5172,"Culvert Pipe Class V 72-Inch     ","LF"]
[520.51840000000004,"Culvert Pipe Class V 84-Inch     ","LF"]
[520.70000000000005,"Cleaning Culvert Pipes          ","EACH"]
[520.79999999999995,"Concrete Collars for Pipe         ","EACH"]
[520.85,"Pipe Cattle Pass       ","LF"]
[520.87,"Cleaning Culvert Pipes       ","EACH"]
["520.9700.S","Culvert Pipe Liners (size)        ","LF"]
["520.9750.S","Clean Culvrt Pipe for Liner Verification      ","EACH"]
[521.01120000000003,"Culvert Pipe Corrugated Steel 12-Inch        ","LF"]
[521.01149999999996,"Culvert Pipe Corrugated Steel 15-Inch        ","LF"]
[521.01179999999999,"Culvert Pipe Corrugated Steel 18-Inch        ","LF"]
[521.01210000000003,"Culvert Pipe Corrugated Steel 21-Inch      ","LF"]
[521.01239999999996,"Culvert Pipe Corrugated Steel 24-Inch        ","LF"]
[521.01300000000003,"Culvert Pipe Corrugated Steel 30-Inch        ","LF"]
[521.0136,"Culvert Pipe Corrugated Steel 36-Inch        ","LF"]
[521.01419999999996,"Culvert Pipe Corrugated Steel 42-Inch        ","LF"]
[521.01480000000004,"Culvert Pipe Corrugated Steel 48-Inch        ","LF"]
[521.0154,"Culvert Pipe Corrugated Steel 54-Inch      ","LF"]
[521.01599999999996,"Culvert Pipe Corrugated Steel 60-Inch       ","LF"]
[521.0172,"Culvert Pipe Corrugated Steel 72-Inch       ","LF"]
[521.01840000000004,"Culvert Pipe Corrugated Steel 84-Inch     ","LF"]
[521.01959999999997,"Culvert Pipe Corrugated Steel 96-Inch     ","LF"]
[521.03359999999998,"Apr Endwls Slpd Cross Drn St 36in 4 to 1","EACH"]
[521.03420000000006,"Apr Endwls Slpd Cross Drn St 42in 4 to 1","EACH"]
[521.03480000000002,"Apr Endwls Slpd Cross Drn St 48in 4 to 1","EACH"]
[521.03539999999998,"Apr Endwls Slpd Cross Drn St 54in 4 to 1","EACH"]
[521.03599999999994,"Apr Endwls Slpd Cross Drn St 60in 4 to 1","EACH"]
[521.04359999999997,"Aprn End Culv Pipe Slpd X-Drn 36-In 42156   ","EACH"]
[521.04420000000005,"Aprn End Culv Pipe Slpd X-Drn 42-In 42156   ","EACH"]
[521.04480000000001,"Aprn End Culv Pipe Slpd X-Drn 48-In 42156   ","EACH"]
[521.04539999999997,"Aprn End Culv Pipe Slpd X-Drn 54-In 42156  ","EACH"]
[521.04600000000005,"Aprn End Culv Pipe Slpd X-Drn 60-In 42156  ","EACH"]
[521.05349999999999,"Apr End Pipe Arc Slp X-Drn Stl 35x24 42095 ","EACH"]
[521.05420000000004,"Apr End Pipe Arc Slp X-Drn Stl 42x29 42095 ","EACH"]
[521.05489999999998,"Apr End Pipe Arc Slp X-Drn Stl 49x33 42095 ","EACH"]
[521.0557,"Apr End Pipe Arc Slp X-Drn Stl 57x38 42095 ","EACH"]
[521.05640000000005,"Apr End Pipe Arc Slp X-Drn Stl 64x43 42095 ","EACH"]
[521.05709999999999,"Apr End Pipe Arc Slp X-Drn Stl 71x47 42095 ","EACH"]
[521.06349999999998,"Apr End Pipe Arc Slp X-Drn St 35x24\" 42156 ","EACH"]
[521.06420000000003,"Apr End Pipe Arc Slp X-Drn St 42x29\" 42156 ","EACH"]
[521.06489999999997,"Apr End Pipe Arc Slp X-Drn St 49x33\" 42156 ","EACH"]
[521.06569999999999,"Apr End Pipe Arc Slp X-Drn St 57x38\" 42156 ","EACH"]
[521.06640000000004,"Apr End Pipe Arc Slp X-Drn St 64x43\" 42156 ","EACH"]
[521.06709999999998,"Apr End Pipe Arc Slp X-Drn St 71x47\" 42156 ","EACH"]
[521.07169999999996,"Pipe Arch Corrugated Steel 17x13-Inch      ","LF"]
[521.07209999999998,"Pipe Arch Corrugated Steel 21x15-Inch        ","LF"]
[521.07240000000002,"Pipe Arch Corrugated Steel 24x18-Inch        ","LF"]
[521.07280000000003,"Pipe Arch Corrugated Steel 28x20-Inch        ","LF"]
[521.07349999999997,"Pipe Arch Corrugated Steel 35x24-Inch       ","LF"]
[521.07420000000002,"Pipe Arch Corrugated Steel 42x29-Inch       ","LF"]
[521.07489999999996,"Pipe Arch Corrugated Steel 49x33-Inch        ","LF"]
[521.07569999999998,"Pipe Arch Corrugated Steel 57x38-Inch       ","LF"]
[521.07640000000004,"Pipe Arch Corrugated Steel 64x43-Inch       ","LF"]
[521.07709999999997,"Pipe Arch Corrugated Steel 71x47-Inch     ","LF"]
[521.07770000000005,"Pipe Arch Corrugated Steel 77x52-Inch     ","LF"]
[521.07830000000001,"Pipe Arch Corrugated Steel 83x57-Inch     ","LF"]
[521.10119999999995,"Apr Endwls for Culvert Pipe Steel 12-In     ","EACH"]
[521.10149999999999,"Apr Endwls for Culvert Pipe Steel 15-In     ","EACH"]
[521.10180000000003,"Apr Endwls for Culvert Pipe Steel 18-In     ","EACH"]
[521.10209999999995,"Apr Endwls for Culvert Pipe Steel 21-In    ","EACH"]
[521.10239999999999,"Apr Endwls for Culvert Pipe Steel 24-In     ","EACH"]
[521.10299999999995,"Apr Endwls for Culvert Pipe Steel 30-In     ","EACH"]
[521.10360000000003,"Apr Endwls for Culvert Pipe Steel 36-In     ","EACH"]
[521.10419999999999,"Apr Endwls for Culvert Pipe Steel 42-In     ","EACH"]
[521.10479999999995,"Apr Endwls for Culvert Pipe Steel 48-In     ","EACH"]
[521.10540000000003,"Apr Endwls for Culvert Pipe Steel 54-In    ","EACH"]
[521.10599999999999,"Apr Endwls for Culvert Pipe Steel 60-In     ","EACH"]
[521.10720000000003,"Apr Endwls for Culvert Pipe Steel 72-In     ","EACH"]
[521.10839999999996,"Apr Endwls for Culvert Pipe Steel 84-In   ","EACH"]
[521.12170000000003,"Apr Endwls for Pipe Arch Steel 17x13-In    ","EACH"]
[521.12210000000005,"Apr Endwls for Pipe Arch Steel 21x15-In     ","EACH"]
[521.12239999999997,"Apr Endwls for Pipe Arch Steel 24x18-In     ","EACH"]
[521.12279999999998,"Apr Endwls for Pipe Arch Steel 28x20-In     ","EACH"]
[521.12350000000004,"Apr Endwls for Pipe Arch Steel 35x24-In     ","EACH"]
[521.12419999999997,"Apr Endwls for Pipe Arch Steel 42x29-In     ","EACH"]
[521.12490000000003,"Apr Endwls for Pipe Arch Steel 49x33-In     ","EACH"]
[521.12570000000005,"Apr Endwls for Pipe Arch Steel 57x38-In    ","EACH"]
[521.12639999999999,"Apr Endwls for Pipe Arch Steel 64x43-In    ","EACH"]
[521.12710000000004,"Apr Endwls for Pipe Arch Steel 71x47-In   ","EACH"]
[521.1277,"Apr Endwls for Pipe Arch Steel 77x52-In   ","EACH"]
[521.12829999999997,"Apr Endwls for Pipe Arch Steel 83x57-In   ","EACH"]
[521.15020000000004,"Aprn End Cul Pipe Slp Side Drn 15-In 42095 ","EACH"]
[521.15030000000002,"Aprn End Cul Pip Slp Side Dran 18-In 42095 ","EACH"]
[521.15039999999999,"Aprn End Cul Pipe Slp Side Drn 21-In 42095 ","EACH"]
[521.15049999999997,"Aprn End Cul Pipe Slp Side Drn 24-In 42095 ","EACH"]
[521.15060000000005,"Aprn End Cul Pipe Slp Side Drn 30-In 42095 ","EACH"]
[521.15070000000003,"Aprn End Cul Pipe Slp Side Drn 36-In 42095 ","EACH"]
[521.1508,"Aprn End Cul Pipe Slp Side Drn 42-In 42095 ","EACH"]
[521.15089999999998,"Aprn End Cul Pipe Slp Side Drn 48-In 42095 ","EACH"]
[521.15099999999995,"Aprn End Cul Pipe Slp Side Drn 54-In 42095 ","EACH"]
[521.15110000000004,"Aprn End Cul Pipe Slp Side Drn 60-In 42095 ","EACH"]
[521.15150000000006,"Aprn End Cul Pipe Slp Side Drn 15-In 42156 ","EACH"]
[521.15179999999998,"Aprn End Cul Pipe Slp Side Drn 18-In 42156 ","EACH"]
[521.15210000000002,"Aprn End Cul Pipe Slp Side Drn 21-In 42156 ","EACH"]
[521.15239999999994,"Aprn End Cul Pipe Slp Side Drn 24-In 42156 ","EACH"]
[521.15300000000002,"Aprn End Cul Pipe Slp Side Drn 30-In 42156 ","EACH"]
[521.15359999999998,"Aprn End Cul Pipe Slp Side Drn 36-In 42156 ","EACH"]
[521.15419999999995,"Aprn End Cul Pipe Slp Side Drn 42-In 42156 ","EACH"]
[521.15480000000002,"Aprn End Cul Pipe Slp Side Drn 48-In 42156 ","EACH"]
[521.15539999999999,"Aprn End Cul Pipe Slp Side Drn 54-In 42156 ","EACH"]
[521.15599999999995,"Aprn End Cul Pipe Slp Side Drn 60-In 42156 ","EACH"]
[521.16150000000005,"Aprn End Cul Pipe Slp Side Drn 15in 42278 ","EACH"]
[521.16179999999997,"Aprn End Cul Pipe Slp Side Drn 18in 42278 ","EACH"]
[521.16210000000001,"Aprn End Cul Pipe Slp Side Drn 21in 42278 ","EACH"]
[521.16240000000005,"Aprn End Cul Pipe Slp Side Drn 24in 42278 ","EACH"]
[521.16300000000001,"Aprn End Cul Pipe Slp Side Drn 30in 42278 ","EACH"]
[521.16359999999997,"Aprn End Cul Pipe Slp Side Drn 36in 42278 ","EACH"]
[521.17039999999997,"Aprn End Pipe Arc Slp Side Drn 17x13 42095 ","EACH"]
[521.17049999999995,"Aprn End Pipe Arc Slp Side Drn 21x15 42095 ","EACH"]
[521.17060000000004,"Aprn End Pipe Arc Slp Side Drn 24x18 42095 ","EACH"]
[521.17070000000001,"Aprn End Pipe Arc Slp Side Drn 28x20 42095 ","EACH"]
[521.17079999999999,"Aprn End Pipe Arc Slp Side Drn 35x24 42095 ","EACH"]
[521.17089999999996,"Aprn End Pipe Arc Slp Side Drn 42x29 42095 ","EACH"]
[521.17100000000005,"Aprn End Pipe Arc Slp Side Drn 49x33 42095 ","EACH"]
[521.17110000000002,"Aprn End Pipe Arc Slp Side Drn 57x38 42095 ","EACH"]
[521.1712,"Aprn End Pipe Arc Slp Side Drn 64x43 42095 ","EACH"]
[521.17169999999999,"Apr End Pipe Arc Slp Side Drn 17x13\" 42156 ","EACH"]
[521.1721,"Apr End Pipe Arc Slp Side Drn 21x15\" 42156 ","EACH"]
[521.17240000000004,"Apr End Pipe Arc Slp Side Drn 24x18\" 42156 ","EACH"]
[521.17280000000005,"Apr End Pipe Arc Slp Side Drn 28x20\" 42156 ","EACH"]
[521.17349999999999,"Apr End Pipe Arc Slp Side Drn 35x24\" 42156 ","EACH"]
[521.17420000000004,"Apr End Pipe Arc Slp Side Drn 42x29\" 42156 ","EACH"]
[521.17489999999998,"Apr End Pipe Arc Slp Side Drn 49x33\" 42156 ","EACH"]
[521.17570000000001,"Apr End Pipe Arc Slp Side Drn 57x38\" 42156 ","EACH"]
[521.17639999999994,"Apr End Pipe Arc Slp Side Drn 64x43\" 42156 ","EACH"]
[521.18169999999998,"Apr End Pipe Arc Slp Side Drn 17x13 42278 ","EACH"]
[521.18209999999999,"Apr End Pipe Arc Slp Side Drn 21x15 42278 ","EACH"]
[521.18240000000003,"Apr End Pipe Arc Slp Side Drn 24x18 42278 ","EACH"]
[521.18280000000004,"Apr End Pipe Arc Slp Side Drn 28x20 42278 ","EACH"]
[521.18349999999998,"Apr End Pipe Arc Slp Side Drn 35x24 42278 ","EACH"]
[521.18420000000003,"Apr End Pipe Arc Slp Side Drn 42x29 42278 ","EACH"]
[521.19000000000005,"Pipe Cattle Pass Corrugated Steel       ","LF"]
["521.2005.S","Surface Drain Pipe Corr Metal Slotted       ","LF"]
[522.01120000000003,"Culv Pipe Reinf Concrete Class III 12-In     ","LF"]
[522.01149999999996,"Culv Pipe Reinf Concrete Class III 15-In     ","LF"]
[522.01179999999999,"Culv Pipe Reinf Concrete Class III 18-In     ","LF"]
[522.01210000000003,"Culv Pipe Reinf Concrete Class III 21-In     ","LF"]
[522.01239999999996,"Culv Pipe Reinf Concrete Class III 24-In     ","LF"]
[522.0127,"Culv Pipe Reinf Concrete Class III 27-In    ","LF"]
[522.01300000000003,"Culv Pipe Reinf Concrete Class III 30-In     ","LF"]
[522.0136,"Culv Pipe Reinf Concrete Class III 36-In     ","LF"]
[522.01419999999996,"Culv Pipe Reinf Concrete Class III 42-In     ","LF"]
[522.01480000000004,"Culv Pipe Reinf Concrete Class III 48-In     ","LF"]
[522.0154,"Culv Pipe Reinf Concrete Class III 54-In     ","LF"]
[522.01599999999996,"Culv Pipe Reinf Concrete Class III 60-In     ","LF"]
[522.01660000000004,"Culv Pipe Reinf Concrete Class III 66-In    ","LF"]
[522.0172,"Culv Pipe Reinf Concrete Class III 72-In     ","LF"]
[522.01779999999997,"Culv Pipe Reinf Concrete Class III 78-In   ","LF"]
[522.01840000000004,"Culv Pipe Reinf Concrete Class III 84-In     ","LF"]
[522.01900000000001,"Culv Pipe Reinf Concrete Class III 90-In   ","LF"]
[522.01959999999997,"Culv Pipe Reinf Concrete Class III 96-In   ","LF"]
[522.02020000000005,"Culv Pipe Reinf Conc Class III 102-In   ","LF"]
[522.02080000000001,"Culv Pipe Reinf Conc Class III 108-In    ","LF"]
[522.03120000000001,"Culv Pipe Reinf Concrete Class IV 12-In     ","LF"]
[522.03150000000005,"Culv Pipe Reinf Concrete Class IV 15-In     ","LF"]
[522.03179999999998,"Culv Pipe Reinf Concrete Class IV 18-In     ","LF"]
[522.03210000000001,"Culv Pipe Reinf Concrete Class IV 21-In   ","LF"]
[522.03240000000005,"Culv Pipe Reinf Concrete Class IV 24-In     ","LF"]
[522.03269999999998,"Culv Pipe Reinf Concrete Class IV 27-In   ","LF"]
[522.03300000000002,"Culv Pipe Reinf Concrete Class IV 30-In     ","LF"]
[522.03359999999998,"Culv Pipe Reinf Concrete Class IV 36-In     ","LF"]
[522.03420000000006,"Culv Pipe Reinf Concrete Class IV 42-In     ","LF"]
[522.03480000000002,"Culv Pipe Reinf Concrete Class IV 48-In     ","LF"]
[522.03539999999998,"Culv Pipe Reinf Concrete Class IV 54-In    ","LF"]
[522.03599999999994,"Culv Pipe Reinf Concrete Class IV 60-In    ","LF"]
[522.03660000000002,"Culv Pipe Reinf Concrete Class IV 66-In    ","LF"]
[522.03719999999998,"Culv Pipe Reinf Concrete Class IV 72-In    ","LF"]
[522.03779999999995,"Culv Pipe Reinf Concrete Class IV 78-In   ","LF"]
[522.03840000000002,"Culv Pipe Reinf Concrete Class IV 84-In   ","LF"]
[522.05119999999999,"Culv Pipe Reinf Concrete Class V 12-In    ","LF"]
[522.05150000000003,"Culv Pipe Reinf Concrete Class V 15-In    ","LF"]
[522.05179999999996,"Culv Pipe Reinf Concrete Class V 18-In     ","LF"]
[522.0521,"Culv Pipe Reinf Concrete Class V 21-In    ","LF"]
[522.05240000000003,"Culv Pipe Reinf Concrete Class V 24-In     ","LF"]
[522.05269999999996,"Culv Pipe Reinf Concrete Class V 27-In   ","LF"]
[522.053,"Culv Pipe Reinf Concrete Class V 30-In     ","LF"]
[522.05359999999996,"Culv Pipe Reinf Concrete Class V 36-In     ","LF"]
[522.05420000000004,"Culv Pipe Reinf Concrete Class V 42-In   ","LF"]
[522.0548,"Culv Pipe Reinf Concrete Class V 48-In     ","LF"]
[522.05539999999996,"Culv Pipe Reinf Concrete Class V 54-In   ","LF"]
[522.05600000000004,"Culv Pipe Reinf Concrete Class V 60-In    ","LF"]
[522.0566,"Culv Pipe Reinf Concrete Class V 66-In    ","LF"]
[522.05719999999997,"Culv Pipe Reinf Concrete Class V 72-In     ","LF"]
[522.05840000000001,"Culv Pipe Reinf Concrete Class V 84-In   ","LF"]
[522.10119999999995,"Apr Endwls Culv Pipe Reinf Conc 12-In     ","EACH"]
[522.10149999999999,"Apr Endwls Culv Pipe Reinf Conc 15-In     ","EACH"]
[522.10180000000003,"Apr Endwls Culv Pipe Reinf Conc 18-In     ","EACH"]
[522.10209999999995,"Apr Endwls Culv Pipe Reinf Conc 21-In     ","EACH"]
[522.10239999999999,"Apr Endwls Culv Pipe Reinf Conc 24-In     ","EACH"]
[522.10270000000003,"Apr Endwls Culv Pipe Reinf Conc 27-In     ","EACH"]
[522.10299999999995,"Apr Endwls Culv Pipe Reinf Conc 30-In     ","EACH"]
[522.10360000000003,"Apr Endwls Culv Pipe Reinf Conc 36-In     ","EACH"]
[522.10419999999999,"Apr Endwls Culv Pipe Reinf Conc 42-In     ","EACH"]
[522.10479999999995,"Apr Endwls Culv Pipe Reinf Conc 48-In     ","EACH"]
[522.10540000000003,"Apr Endwls Culv Pipe Reinf Conc 54-In     ","EACH"]
[522.10599999999999,"Apr Endwls Culv Pipe Reinf Conc 60-In     ","EACH"]
[522.10659999999996,"Apr Endwls Culv Pipe Reinf Conc 66-In     ","EACH"]
[522.10720000000003,"Apr Endwls Culv Pipe Reinf Conc 72-In     ","EACH"]
[522.10839999999996,"Apr Endwls Culv Pipe Reinf Conc 84-In     ","EACH"]
[522.20000000000005,"Pipe Cattle Pass Reinforced Concrete     ","LF"]
[523.01139999999998,"Culv Pipe Reinf Conc Hor El HE-III 14x23   ","LF"]
[523.01189999999997,"Culv Pipe Reinf Conc Hor El HE-III 19x30   ","LF"]
[523.01239999999996,"Culv Pipe Reinf Conc Hor El HE-III 24x38   ","LF"]
[523.01289999999995,"Culv Pipe Reinf Conc Hor El HE-III 29x45   ","LF"]
[523.01340000000005,"Culv Pipe Reinf Conc Hor El HE-III 34x53   ","LF"]
[523.01379999999995,"Culv Pipe Reinf Conc Hor El HE-III 38x60   ","LF"]
[523.01430000000005,"Culv Pipe Reinf Conc Hor El HE-III 43x68   ","LF"]
[523.01480000000004,"Culv Pipe Reinf Conc Hor El HE-III 48x76   ","LF"]
[523.01530000000002,"Culv Pipe Reinf Conc Hor El HE-III 53x83   ","LF"]
[523.01580000000001,"Culv Pipe Reinf Conc Hor El HE-III 58x91   ","LF"]
[523.0163,"Culv Pipe Reinf Conc Hor El HE-III 63x98   ","LF"]
[523.01679999999999,"Culv Pipe Rein Conc Hor El HE-III 68x106   ","LF"]
[523.04139999999995,"Cp Rnf Conc Horz Ell Cl HE-IV 14x23-Inch   ","LF"]
[523.04190000000006,"Cp Rnf Conc Horz Ell Cl HE-IV 19x30-Inch   ","LF"]
[523.04240000000004,"Cp Rnf Conc Horz Ell Cl HE-IV 24x38-Inch   ","LF"]
[523.04290000000003,"Cp Rnf Conc Horz Ell Cl HE-IV 29x45-Inch   ","LF"]
[523.04340000000002,"Cp Rnf Conc Horz Ell Cl HE-IV 34x53-Inch   ","LF"]
[523.05139999999994,"Apr Edwls Culv Reinf Conc Hor El 14x23   ","EACH"]
[523.05190000000005,"Apr Edwls Culv Reinf Conc Hor El 19x30   ","EACH"]
[523.05240000000003,"Apr Edwls Culv Reinf Conc Hor El 24x38   ","EACH"]
[523.05290000000002,"Apr Edwls Culv Reinf Conc Hor El 29x45   ","EACH"]
[523.05340000000001,"Apr Edwls Culv Reinf Conc Hor El 34x53   ","EACH"]
[523.05380000000002,"Apr Edwls Culv Reinf Conc Hor El 38x60   ","EACH"]
[523.05430000000001,"Apr Edwls Culv Reinf Conc Hor El 43x68   ","EACH"]
[523.0548,"Apr Edwls Culv Reinf Conc Hor El 48x76   ","EACH"]
[523.05529999999999,"Apr Edwls Culv Reinf Conc Hor El 53x83   ","EACH"]
[523.05579999999998,"Apr Edwls Culv Reinf Conc Hor El 58x91   ","EACH"]
[523.05629999999996,"Apr Edwls Culv Reinf Conc Hor El 63x98   ","EACH"]
[523.05679999999995,"Apr Edwls Culv Reinf Conc Hor El 68x106  ","EACH"]
[524.01120000000003,"Culvert Pipe Salvaged 12-Inch       ","LF"]
[524.01149999999996,"Culvert Pipe Salvaged 15-Inch        ","LF"]
[524.01179999999999,"Culvert Pipe Salvaged 18-Inch         ","LF"]
[524.01210000000003,"Culvert Pipe Salvaged 21-Inch      ","LF"]
[524.01239999999996,"Culvert Pipe Salvaged 24-Inch         ","LF"]
[524.0127,"Culvert Pipe Salvaged 27-Inch      ","LF"]
[524.01300000000003,"Culvert Pipe Salvaged 30-Inch         ","LF"]
[524.01329999999996,"Culvert Pipe Salvaged 33-Inch      ","LF"]
[524.0136,"Culvert Pipe Salvaged 36-Inch        ","LF"]
[524.01419999999996,"Culvert Pipe Salvaged 42-Inch        ","LF"]
[524.01480000000004,"Culvert Pipe Salvaged 48-Inch        ","LF"]
[524.0154,"Culvert Pipe Salvaged 54-Inch       ","LF"]
[524.01599999999996,"Culvert Pipe Salvaged 60-Inch        ","LF"]
[524.01660000000004,"Culvert Pipe Salvaged 66-Inch      ","LF"]
[524.0172,"Culvert Pipe Salvaged 72-Inch      ","LF"]
[524.01779999999997,"Culvert Pipe Salvaged 78-Inch      ","LF"]
[524.01840000000004,"Culvert Pipe Salvaged 84-Inch      ","LF"]
[524.01900000000001,"Culvert Pipe Salvaged 90-Inch      ","LF"]
[524.01959999999997,"Culvert Pipe Salvaged 96-Inch      ","LF"]
[524.02020000000005,"Culvert Pipe Salvaged 102-Inch      ","LF"]
[524.02080000000001,"Culvert Pipe Salvaged 108-Inch      ","LF"]
[524.06119999999999,"Apr Endwls Culvert Pipe Salvaged 12-In      ","EACH"]
[524.06150000000002,"Apr Endwls Culvert Pipe Salvaged 15-In     ","EACH"]
[524.06179999999995,"Apr Endwls Culvert Pipe Salvaged 18-In       ","EACH"]
[524.06209999999999,"Apr Endwls Culvert Pipe Salvaged 21-In     ","EACH"]
[524.06240000000003,"Apr Endwls Culvert Pipe Salvaged 24-In       ","EACH"]
[524.06269999999995,"Apr Endwls Culvert Pipe Salvaged 27-In    ","EACH"]
[524.06299999999999,"Apr Endwls Culvert Pipe Salvaged 30-In       ","EACH"]
[524.06330000000003,"Apr Endwls Culvert Pipe Salvaged 33-In    ","EACH"]
[524.06359999999995,"Apr Endwls Culvert Pipe Salvaged 36-In       ","EACH"]
[524.06420000000003,"Apr Endwls Culvert Pipe Salvaged 42-In       ","EACH"]
[524.06479999999999,"Apr Endwls Culvert Pipe Salvaged 48-In       ","EACH"]
[524.06539999999995,"Apr Endwls Culvert Pipe Salvaged 54-In      ","EACH"]
[524.06600000000003,"Apr Endwls Culvert Pipe Salvaged 60-In     ","EACH"]
[524.06659999999999,"Apr Endwls Culvert Pipe Salvaged 66-In    ","EACH"]
[524.06719999999996,"Apr Endwls Culvert Pipe Salvaged 72-In    ","EACH"]
[524.06780000000003,"Apr Endwls Culvert Pipe Salvaged 78-In    ","EACH"]
[524.0684,"Apr Endwls Culvert Pipe Salvaged 84-In    ","EACH"]
[524.08000000000004,"Pipe Cattle Pass Salvaged      ","LF"]
[524.09,"Pipe Arch Salvaged Corrugated Steel     ","LF"]
[525.01120000000003,"Culvert Pipe Corrugated Aluminum 12-In      ","LF"]
[525.01149999999996,"Culvert Pipe Corrugated Aluminum 15-In     ","LF"]
[525.01179999999999,"Culvert Pipe Corrugated Aluminum 18-In        ","LF"]
[525.01210000000003,"Culvert Pipe Corrugated Aluminum 21-In     ","LF"]
[525.01239999999996,"Culvert Pipe Corrugated Aluminum 24-In        ","LF"]
[525.01300000000003,"Culvert Pipe Corrugated Aluminum 30-In       ","LF"]
[525.0136,"Culvert Pipe Corrugated Aluminum 36-In     ","LF"]
[525.01419999999996,"Culvert Pipe Corrugated Aluminum 42-In     ","LF"]
[525.01480000000004,"Culvert Pipe Corrugated Aluminum 48-In      ","LF"]
[525.0154,"Culvert Pipe Corrugated Aluminum 54-In     ","LF"]
[525.01599999999996,"Culvert Pipe Corrugated Aluminum 60-In     ","LF"]
[525.0172,"Culvert Pipe Corrugated Aluminum 72-In     ","LF"]
[525.01840000000004,"Culvert Pipe Corrugated Aluminum 84-In     ","LF"]
[525.03120000000001,"Alum Apron Endwalls for Alum CP 12-Inch    ","EACH"]
[525.03150000000005,"Alum Apron Endwalls for Alum CP 15-Inch    ","EACH"]
[525.03179999999998,"Alum Apron Endwalls for Alum CP 18-Inch     ","EACH"]
[525.03210000000001,"Alum Apron Endwalls for Alum CP 21-Inch   ","EACH"]
[525.03240000000005,"Alum Apron Endwalls for Alum CP 24-Inch     ","EACH"]
[525.03300000000002,"Alum Apron Endwalls for Alum CP 30-Inch     ","EACH"]
[525.03359999999998,"Alum Apron Endwalls for Alum CP 36-Inch     ","EACH"]
[525.03420000000006,"Alum Apron Endwalls for Alum CP 42-Inch   ","EACH"]
[525.03480000000002,"Alum Apron Endwalls for Alum CP 48-Inch     ","EACH"]
[525.03539999999998,"Alum Apron Endwalls for Alum CP 54-Inch   ","EACH"]
[525.03599999999994,"Alum Apron Endwalls for Alum CP 60-Inch    ","EACH"]
[525.03719999999998,"Alum Apron Endwalls for Alum CP 72-Inch   ","EACH"]
[525.03840000000002,"Alum Apron Endwalls for Alum CP 84-Inch   ","EACH"]
[525.0412,"Steel Apron Endwalls for Alum CP 12-Inch    ","EACH"]
[525.04150000000004,"Steel Apron Endwalls for Alum CP 15-Inch   ","EACH"]
[525.04179999999997,"Steel Apron Endwalls for Alum CP 18-Inch   ","EACH"]
[525.0421,"Steel Apron Endwalls for Alum CP 21-Inch   ","EACH"]
[525.04240000000004,"Steel Apron Endwalls for Alum CP 24-Inch    ","EACH"]
[525.04300000000001,"Steel Apron Endwalls for Alum CP 30-Inch    ","EACH"]
[525.04359999999997,"Steel Apron Endwalls for Alum CP 36-Inch    ","EACH"]
[525.04420000000005,"Steel Apron Endwalls for Alum CP 42-Inch   ","EACH"]
[525.04480000000001,"Steel Apron Endwalls for Alum CP 48-Inch    ","EACH"]
[525.04539999999997,"Steel Apron Endwalls for Alum CP 54-Inch    ","EACH"]
[525.04600000000005,"Steel Apron Endwalls for Alum CP 60-Inch   ","EACH"]
[525.04719999999998,"Steel Apron Endwalls for Alum CP 72-Inch   ","EACH"]
[525.04840000000002,"Steel Apron Endwalls for Alum CP 84-Inch   ","EACH"]
[526.01,"Temporary Structure (station)          ","LS"]
["526.0200.S","Temporary Pedestrian Structure (station)      ","LS"]
[527.01599999999996,"Pipe Structural Plate 60-Inch      ","LF"]
[527.0172,"Pipe Structural Plate 72-Inch      ","LF"]
[527.01840000000004,"Pipe Structural Plate 84-Inch      ","LF"]
[527.01959999999997,"Pipe Structural Plate 96-Inch      ","LF"]
[527.02080000000001,"Pipe Structural Plate 108-Inch      ","LF"]
[527.02200000000005,"Pipe Structural Plate 120-Inch      ","LF"]
[527.02319999999997,"Pipe Structural Plate 132-Inch      ","LF"]
[527.02440000000001,"Pipe Structural Plate 144-Inch      ","LF"]
[527.02560000000005,"Pipe Structural Plate 156-Inch      ","LF"]
[527.02679999999998,"Pipe Structural Plate 168-Inch      ","LF"]
[527.02800000000002,"Pipe Structural Plate 180-Inch      ","LF"]
[527.03049999999996,"Pipe Arch Structural Plate 6-FT Span    ","LF"]
[527.03099999999995,"Pipe Arch Structural Plate 7-FT Span    ","LF"]
[527.03150000000005,"Pipe Arch Structural Plate 8-FT Span    ","LF"]
[527.03200000000004,"Pipe Arch Structural Plate 9-FT Span    ","LF"]
[527.03250000000003,"Pipe Arch Structural Plate 10-FT Span    ","LF"]
[527.03300000000002,"Pipe Arch Structural Plate 11-FT Span    ","LF"]
[527.0335,"Pipe Arch Structural Plate 12-FT Span    ","LF"]
[527.03399999999999,"Pipe Arch Structural Plate 13-FT Span    ","LF"]
[527.03449999999998,"Pipe Arch Structural Plate 14-FT Span    ","LF"]
[527.03499999999997,"Pipe Arch Structural Plate 15-FT Span    ","LF"]
[527.03549999999996,"Pipe Arch Structural Plate 16-FT Span    ","LF"]
[527.03599999999994,"Pipe Arch Structural Plate 16.5-FT Span    ","LF"]
[528.01120000000003,"Culv Pipe Corr Stl Polymer Coated 12-In   ","LF"]
[528.01149999999996,"Culv Pipe Corr Stl Polymer Coated 15-In   ","LF"]
[528.01179999999999,"Culv Pipe Corr Stl Polymer Coated 18-In    ","LF"]
[528.01210000000003,"Culv Pipe Corr Stl Polymer Coated 21-In   ","LF"]
[528.01239999999996,"Culv Pipe Corr Stl Polymer Coated 24-In   ","LF"]
[528.01300000000003,"Culv Pipe Corr Stl Polymer Coated 30-In   ","LF"]
[528.0136,"Culv Pipe Corr Stl Polymer Coated 36-In   ","LF"]
[528.01419999999996,"Culv Pipe Corr Stl Polymer Coated 42-In   ","LF"]
[528.01480000000004,"Culv Pipe Corr Stl Polymer Coated 48-In   ","LF"]
[528.0154,"Culv Pipe Corr Stl Polymer Coated 54-In   ","LF"]
[528.01599999999996,"Culv Pipe Corr Stl Polymer Coated 60-In   ","LF"]
[528.0172,"Culv Pipe Corr Stl Polymer Coated 72-In   ","LF"]
[528.01840000000004,"Culv Pipe Corr Stl Polymer Coated 84-In   ","LF"]
[528.01959999999997,"Culv Pipe Corr Stl Polymer Coated 96-In   ","LF"]
[528.0317,"Pipe Arch Polymer Coated Corr Stl 17x13   ","LF"]
[528.03210000000001,"Pipe Arch Polymer Coated Corr Stl 21x15    ","LF"]
[528.03240000000005,"Pipe Arch Polymer Coated Corr Stl 24x18   ","LF"]
[528.03279999999995,"Pipe Arch Polymer Coated Corr Stl 28x20    ","LF"]
[528.0335,"Pipe Arch Polymer Coated Corr Stl 35x24   ","LF"]
[528.03420000000006,"Pipe Arch Polymer Coated Corr Stl 42x29   ","LF"]
[528.03489999999999,"Pipe Arch Polymer Coated Corr Stl 49x33   ","LF"]
[528.03570000000002,"Pipe Arch Polymer Coated Corr Stl 57x38   ","LF"]
[528.03639999999996,"Pipe Arch Polymer Coated Corr Stl 64x43   ","LF"]
[528.03710000000001,"Pipe Arch Polymer Coated Corr Stl 71x47   ","LF"]
[528.03769999999997,"Pipe Arch Polymer Coated Corr Stl 77x52   ","LF"]
[528.03830000000005,"Pipe Arch Polymer Coated Corr Stl 83x57   ","LF"]
[529.01120000000003,"Cul Pipe Corr Stl Aluminum Coated 12-In   ","LF"]
[529.01149999999996,"Cul Pipe Corr Stl Aluminum Coated 15-In   ","LF"]
[529.01179999999999,"Cul Pipe Corr Stl Aluminum Coated 18-In   ","LF"]
[529.01210000000003,"Cul Pipe Corr Stl Aluminum Coated 21-In   ","LF"]
[529.01239999999996,"Cul Pipe Corr Stl Aluminum Coated 24-In   ","LF"]
[529.01300000000003,"Cul Pipe Corr Stl Aluminum Coated 30-In   ","LF"]
[529.0136,"Cul Pipe Corr Stl Aluminum Coated 36-In   ","LF"]
[529.01419999999996,"Cul Pipe Corr Stl Aluminum Coated 42-In   ","LF"]
[529.01480000000004,"Cul Pipe Corr Stl Aluminum Coated 48-In   ","LF"]
[529.0154,"Cul Pipe Corr Stl Aluminum Coated 54-In   ","LF"]
[529.01599999999996,"Cul Pipe Corr Stl Aluminum Coated 60-In   ","LF"]
[529.0172,"Cul Pipe Corr Stl Aluminum Coated 72-In   ","LF"]
[529.01840000000004,"Cul Pipe Corr Stl Aluminum Coated 84-In   ","LF"]
[529.01959999999997,"Cul Pipe Corr Stl Aluminum Coated 96-In   ","LF"]
[529.0317,"Pipe Arch Corr Stl Aluminum Coated 17x13   ","LF"]
[529.03210000000001,"Pipe Arch Corr Stl Aluminum Coated 21x15   ","LF"]
[529.03240000000005,"Pipe Arch Corr Stl Aluminum Coated 24x18   ","LF"]
[529.03279999999995,"Pipe Arch Corr Stl Aluminum Coated 28x20    ","LF"]
[529.0335,"Pipe Arch Corr Stl Aluminum Coated 35x24    ","LF"]
[529.03420000000006,"Pipe Arch Corr Stl Aluminum Coated 42x29   ","LF"]
[529.03489999999999,"Pipe Arch Corr Stl Aluminum Coated 49x33   ","LF"]
[529.03570000000002,"Pipe Arch Corr Stl Aluminum Coated 57x38   ","LF"]
[529.03639999999996,"Pipe Arch Corr Stl Aluminum Coated 64x43    ","LF"]
[529.03710000000001,"Pipe Arch Corr Stl Aluminum Coated 71x47   ","LF"]
[529.03769999999997,"Pipe Arch Corr Stl Aluminum Coated 77x52   ","LF"]
[529.03830000000005,"Pipe Arch Corr Stl Aluminum Coated 83x57   ","LF"]
[530.01120000000003,"Culvert Pipe Corrugated Polyethyl 12-In       ","LF"]
[530.01149999999996,"Culvert Pipe Corrugated Polyethyl 15-In        ","LF"]
[530.01179999999999,"Culvert Pipe Corrugated Polyethyl 18-In        ","LF"]
[530.01239999999996,"Culvert Pipe Corrugated Polyethyl 24-In        ","LF"]
[530.01300000000003,"Culvert Pipe Corrugated Polyethyl 30-In       ","LF"]
[530.0136,"Culvert Pipe Corrugated Polyethyl 36-In      ","LF"]
[530.11120000000005,"Culvert Pipe Corrugated Polypropyl 12-In     ","LF"]
[530.11149999999998,"Culvert Pipe Corrugated Polypropyl 15-In     ","LF"]
[530.11180000000002,"Culvert Pipe Corrugated Polypropyl 18-In     ","LF"]
[530.11210000000005,"Culvert Pipe Corrugated Polypropyl 21-In     ","LF"]
[530.11239999999998,"Culvert Pipe Corrugated Polypropyl 24-In     ","LF"]
[530.11270000000002,"Culvert Pipe Corrugated Polypropyl 27-In     ","LF"]
[530.11300000000006,"Culvert Pipe Corrugated Polypropyl 30-In     ","LF"]
[530.11360000000002,"Culvert Pipe Corrugated Polypropyl 36-In     ","LF"]
["531.0200.S","Noise Barriers Ss Sound Absorptive       ","SF"]
["531.0300.S","Noise Barriers Ds Sound Absorptive        ","SF"]
["531.0400.S","Noise Barriers Non-Absorptive (struc)      ","SF"]
["532.0200.S","Wall Modular Block Gravity        ","SF"]
["532.0201.S","Wall Modular Block Gravity LRFD     ","SF"]
["532.0225.S","Wall Modular Block Gravity Landscape     ","SF"]
["532.0300.S","Wall Mod Block Mech Stabilized Earth       ","SF"]
["532.0301.S","Wall Mod Block Mech Stabilized Erth LRFD   ","SF"]
["532.0500.S","Wall Conc Panel Mech Stabilized Earth       ","SF"]
["532.0501.S","Wall Conc Panel Mech Stabilize Erth LRFD   ","SF"]
["532.0600.S","Wall CIP Facing Mechanically Stabilized     ","SF"]
["532.0601.S","Wall CIP Facing Mech Stabilized LRFD    ","SF"]
["532.0700.S","Wall Wire Faced Mechanically Stabilized       ","SF"]
["532.0701.S","Wall Wire Faced Mech Stabilized LRFD    ","SF"]
["532.0750.S","Temp Wall Wire Faced Mech Stab Earth     ","SF"]
["532.0751.S","Temp Wall Wire Faced Mech Stab Earh LRFD  ","SF"]
["532.0800.S","Wall Gabion        ","CY"]
["532.0801.S","Wall Gabion LRFD       ","CY"]
["532.0900.S","Wall Modular Bin or Crib     ","SF"]
["532.0901.S","Wall Modular Bin or Crib LRFD    ","SF"]
[550.00099999999998,"Pre-Boring Unconsolidated Materials          ","LF"]
[550.00199999999995,"Pre-Boring Rock or Consolidated Material        ","LF"]
[550.04999999999995,"Pile Points           ","EACH"]
[550.05999999999995,"Pile Redriving           ","EACH"]
[550.11,"Piling Steel HP 10-Inch X 42 Lb     ","LF"]
[550.11199999999997,"Piling Steel HP 12-Inch X 53 Lb     ","LF"]
[550.11249999999995,"Piling Steel HP 12-Inch X 74 Lb   ","LF"]
[550.11400000000003,"Piling Steel HP 14-Inch X 73 Lb     ","LF"]
[550.21019999999999,"Piling CIP Concrete 10 42067 X 0.219-Inch     ","LF"]
[550.21040000000005,"Piling CIP Concrete 10 42067 X 0.25-Inch     ","LF"]
[550.2106,"Piling CIP Concrete 10 42067 X 0.365-Inch     ","LF"]
[550.21079999999995,"Piling CIP Concrete 10 42067 X 0.50-Inch    ","LF"]
[550.21220000000005,"Piling CIP Concrete 12 42067 X 0.219-Inch   ","LF"]
[550.2124,"Piling CIP Concrete 12 42067 X 0.25-Inch     ","LF"]
[550.21259999999995,"Piling CIP Concrete 12 42067 X 0.375-Inch     ","LF"]
[550.21280000000002,"Piling CIP Concrete 12 42067 X 0.50-Inch    ","LF"]
[550.21420000000001,"Piling CIP Concrete  X 0.219-Inch    ","LF"]
[550.21439999999996,"Piling CIP Concrete  X 0.25-Inch    ","LF"]
[550.21460000000002,"Piling CIP Concrete  X 0.375-Inch       ","LF"]
[550.21479999999997,"Piling CIP Concrete  X 0.50-Inch      ","LF"]
[550.21619999999996,"Piling CIP Concrete 16 X 0.219-Inch    ","LF"]
[550.21640000000002,"Piling CIP Concrete 16 X 0.25-Inch    ","LF"]
[550.21659999999997,"Piling CIP Concrete 16 X 0.375-Inch    ","LF"]
[550.21680000000003,"Piling CIP Concrete 16 X 0.50-Inch     ","LF"]
["550.3010.S","Piling Precast Concrete Testing      ","LF"]
[550.30999999999995,"Piling Precast Concrete 10-Inch      ","LF"]
[550.31200000000001,"Piling Precast Concrete 12-Inch      ","LF"]
[550.31399999999996,"Piling Precast Concrete 14-Inch      ","LF"]
[550.31600000000003,"Piling Precast Concrete 16-Inch      ","LF"]
[550.38099999999997,"Pile Splices Precast Concrete 10-Inch     ","LF"]
[550.38120000000004,"Pile Splices Precast Concrete 12-Inch     ","LF"]
[550.38139999999999,"Pile Splices Precast Concrete 14-Inch     ","LF"]
[550.38160000000005,"Pile Splices Precast Concrete 16-Inch     ","LF"]
["550.5100.S","Piling Wav Analysis Steel HP 10\" X 42 Lb ","LF"]
["550.5120.S","Piling Wav Analysis Steel HP 12\" X 53 Lb ","LF"]
["550.5125.S","Piling Wav Analysis Steel HP 12\" X 74 Lb ","LF"]
["550.5140.S","Piling Wav Analysis Steel HP 14\" X 73 Lb ","LF"]
["550.6102.S","Pile Wv Anlys CIP Conc 10 42067 X 0.219-In ","LF"]
["550.6104.S","Pile Wv Anlys CIP Conc 10 42067 X 0.25-In ","LF"]
["550.6106.S","Pile Wv Anlys CIP Conc 10 42067 X 0.365-In ","LF"]
["550.6108.S","Pile Wv Anlys CIP Conc 10 42067 X 0.50-In ","LF"]
["550.6122.S","Pile Wv Anlys CIP Conc 12 42067 X 0.219-In ","LF"]
["550.6124.S","Pile Wv Anlys CIP Conc 12 42067 X 0.25-In ","LF"]
["550.6126.S","Pile Wv Anlys CIP Conc 12 42067 X 0.375-In ","LF"]
["550.6128.S","Pile Wv Anlys CIP Conc 12 42067 X 0.50-In ","LF"]
["550.6142.S","Pile Wv Anlys CIP Conc  X 0.219-In  ","LF"]
["550.6144.S","Pile Wv Anlys CIP Conc  X 0.25-In  ","LF"]
["550.6146.S","Pile Wv Anlys CIP Conc  X 0.375-In  ","LF"]
["550.6148.S","Pile Wv Anlys CIP Conc  X 0.50-In  ","LF"]
["550.6162.S","Pile Wv Anlys CIP Conc 16 X 0.219-In  ","LF"]
["550.6164.S","Pile Wv Anlys CIP Conc 16 X 0.25-In  ","LF"]
["550.6166.S","Pile Wv Anlys CIP Conc 16 X 0.375-In  ","LF"]
["550.6168.S","Pile Wv Anlys CIP Conc 16 X 0.50-In  ","LF"]
["550.7100.S","Pile Wv Anlys Pcast Conc 10-Inch    ","LF"]
["550.7120.S","Pile Wv Anlys Pcast Conc 12-Inch    ","LF"]
["550.7140.S","Pile Wv Anlys Pcast Conc 14-Inch    ","LF"]
["550.7160.S","Pile Wv Anlys Pcast Conc 16-Inch    ","LF"]
[601.01049999999998,"Concrete Curb Type A         ","LF"]
[601.01099999999997,"Concrete Curb Type D         ","LF"]
[601.01149999999996,"Concrete Curb Type G         ","LF"]
[601.01199999999994,"Concrete Curb Type J         ","LF"]
[601.01499999999999,"Concrete Curb Integral Type D       ","LF"]
[601.01549999999997,"Concrete Curb Integral Type J      ","LF"]
["601.0199.S","Concrete Curb Precast         ","EACH"]
[601.02049999999997,"Concrete Gutter 24-Inch         ","LF"]
[601.03189999999995,"Concrete Curb & Gutter 19-Inch        ","LF"]
[601.03219999999999,"Concrete Curb & Gutter 22-Inch        ","LF"]
[601.03309999999999,"Concrete Curb & Gutter 31-Inch        ","LF"]
[601.03420000000006,"Concrete Curb & Gutter Integral 18-Inch       ","LF"]
[601.03440000000001,"Concrete Curb & Gutter Integral 36-Inch    ","LF"]
[601.04049999999995,"Concrete Curb & Gutter 18-Inch Type A     ","LF"]
[601.04070000000002,"Concrete Curb & Gutter 18-Inch Type D     ","LF"]
[601.04089999999997,"Concrete Curb & Gutter 30-Inch Type A     ","LF"]
[601.04110000000003,"Concrete Curb & Gutter 30-Inch Type D     ","LF"]
[601.04129999999998,"Conc C & G 6-In Sloped 30-In Type G ","LF"]
[601.04150000000004,"Conc C & G 6-In Sloped 30-In Type J ","LF"]
[601.04169999999999,"Concrete Curb & Gutter 30-Inch Type K     ","LF"]
[601.04190000000006,"Concrete Curb & Gutter 30-Inch Type L     ","LF"]
[601.04520000000002,"Concrete Curb & Gutter Integral 30-Inch       ","LF"]
[601.04539999999997,"Concrete Curb & Gutter Integral 30-Inch      ","LF"]
[601.04560000000004,"Concrete Curb & Gutter Integral 30-Inch    ","LF"]
[601.05010000000004,"Conc Curb/Guttr Integrl 4-In Slope 36-In      ","LF"]
[601.05110000000002,"Conc Curb/Guttr Integrl 6-In Slope 36-In       ","LF"]
[601.05510000000004,"Conc Curb/Guttr 4-In Sloped 36-In Type A     ","LF"]
[601.05529999999999,"Conc Curb/Guttr 4-In Sloped 36-In Type D     ","LF"]
[601.05550000000005,"Conc Curb/Guttr 6-In Sloped 36-In Type A     ","LF"]
[601.0557,"Conc Curb/Guttr 6-In Sloped 36-In Type D     ","LF"]
[601.05740000000003,"Conc C & G 4-In Sloped 30-In Type G ","LF"]
[601.05759999999998,"Conc C & G 4-In Sloped 30-In Type J ","LF"]
[601.05799999999999,"Conc C & G 4-In Sloped 36-In Type R ","LF"]
[601.05820000000006,"Conc C & G 4-In Sloped 36-In Type T ","LF"]
[601.05999999999995,"Concrete Curb Pedestrian          ","LF"]
[602.04049999999995,"Concrete Sidewalk 4-Inch          ","SF"]
[602.04100000000005,"Concrete Sidewalk 5-Inch          ","SF"]
[602.04150000000004,"Concrete Sidewalk 6-Inch          ","SF"]
[602.04200000000003,"Concrete Sidewalk 7-Inch          ","SF"]
[602.05050000000006,"Curb Ramp Detectable Warnng Field Yellow       ","SF"]
[602.05100000000004,"Curb Ramp Detectable Warning Field White      ","SF"]
[602.05150000000003,"Curb Ramp Detect Wrning Fld Natrl Patina     ","SF"]
[602.1,"Concrete Loading Zone          ","SF"]
[602.15,"Concrete Steps          ","SF"]
[602.24,"Concrete Safety Islands          ","SF"]
[603.01049999999998,"Concrete Barrier Single-Faced 32-Inch         ","LF"]
[603.02049999999997,"Concrete Barrier Double-Faced 32-Inch       ","LF"]
[603.04049999999995,"Conc Barrier Transition Section 32-Inch      ","LF"]
[603.11320000000001,"Concrete Barrier Type S32         ","LF"]
[603.11360000000002,"Concrete Barrier Type S36         ","LF"]
[603.11419999999998,"Concrete Barrier Type S42         ","LF"]
[603.11559999999997,"Concrete Barrier Type S56         ","LF"]
[603.1232,"Concrete Barrier Type S32A       ","LF"]
[603.12360000000001,"Concrete Barrier Type S36A        ","LF"]
[603.12419999999997,"Concrete Barrier Type S42A       ","LF"]
[603.12559999999996,"Concrete Barrier Type S56A       ","LF"]
[603.13319999999999,"Concrete Barrier Type S32B       ","LF"]
[603.1336,"Concrete Barrier Type S36B       ","LF"]
[603.13419999999996,"Concrete Barrier Type S42B         ","LF"]
[603.13559999999995,"Concrete Barrier Type S56B       ","LF"]
[603.14359999999999,"Concrete Barrier Type S36C        ","LF"]
[603.14419999999996,"Concrete Barrier Type S42C         ","LF"]
[603.14559999999994,"Concrete Barrier Type S56C        ","LF"]
[603.21320000000003,"Conc Barrier Fixed Obj Protect Type S32   ","LF"]
[603.21360000000004,"Conc Barrier Fixed Obj Protect Type S36    ","LF"]
[603.21420000000001,"Conc Barrier Fixed Obj Protect Type S42     ","LF"]
[603.21559999999999,"Conc Barrier Fixed Obj Protect Type S56    ","LF"]
[603.31110000000001,"Conc Barrier Trans Type NJ32SF to S32    ","EACH"]
[603.31129999999996,"Conc Barrier Trans Type NJ32SF to S36     ","EACH"]
[603.31550000000004,"Conc Barrier Trans Type NJ42SF to S42   ","EACH"]
[603.3175,"Conc Barrier Trans Type NJ51SF to S42   ","EACH"]
[603.3211,"Conc Barrier Trans Type F32SF to S32     ","EACH"]
[603.32129999999995,"Conc Barrier Trans Type F32SF to S36     ","EACH"]
[603.32550000000003,"Conc Barrier Trans Type F42SF to S42    ","EACH"]
[603.32749999999999,"Conc Barrier Trans Type F51SF to S42    ","EACH"]
[603.3279,"Conc Barrier Trans Type F51SF to S56     ","EACH"]
[603.33109999999999,"Conc Barrier Trans Type NJ32DF to S32   ","EACH"]
[603.33130000000006,"Conc Barrier Trans Type NJ32DF to S36     ","EACH"]
[603.33550000000002,"Conc Barrier Trans Type NJ42DF to S42   ","EACH"]
[603.33749999999998,"Conc Barrier Trans Type NJ51DF to S42   ","EACH"]
[603.34109999999998,"Conc Barrier Trans Type F32DF to S32   ","EACH"]
[603.34130000000005,"Conc Barrier Trans Type F32dDF to S36   ","EACH"]
[603.34550000000002,"Conc Barrier Trans Type F42DF to S42   ","EACH"]
[603.34749999999997,"Conc Barrier Trans Type F51DF to S42   ","EACH"]
[603.35130000000004,"Conc Barrier Trans Type S32 to S36     ","EACH"]
[603.35350000000005,"Conc Barrier Trans Type S36 to S42     ","EACH"]
[603.35590000000002,"Conc Barrier Trans Type S42 to S56     ","EACH"]
[603.36109999999996,"Conc Barrier Trans Type V32 to S32   ","EACH"]
[603.36130000000003,"Conc Barrier Trans Type V32 to S36    ","EACH"]
[603.3655,"Conc Barrier Trans Type V42 to S42    ","EACH"]
[603.36749999999995,"Conc Barrier Trans Type V51 to S42   ","EACH"]
[603.36990000000003,"Conc Barrier Trans Type V56 to S56   ","EACH"]
[603.79999999999995,"Concrete Barrier Temp Precast Delivered        ","LF"]
[603.8125,"Concrete Barrier Temp Precast Installed        ","LF"]
[604.04,"Slope Paving Concrete         ","SY"]
[604.04999999999995,"Slope Paving Crushed Aggregate        ","SY"]
[604.05999999999995,"Slope Paving Select Crushed Material        ","SY"]
["604.9010.S","Slope Paving Repair Crushed Aggregrate        ","CY"]
["604.9015.S","Reseal Crushed Aggregate Slope Paving        ","SY"]
[605.03049999999996,"Ditch Checks Mortar Rubble       ","CY"]
[605.04049999999995,"Ditch Checks Concrete       ","CY"]
[606.01,"Riprap Light           ","CY"]
[606.02,"Riprap Medium           ","CY"]
[606.03,"Riprap Heavy           ","CY"]
[606.04,"Riprap Extra-Heavy           ","CY"]
[606.04999999999995,"Grouted Riprap Light        ","CY"]
[606.05999999999995,"Grouted Riprap Medium        ","CY"]
[606.07000000000005,"Grouted Riprap Heavy          ","CY"]
[606.08000000000004,"Grouted Riprap Extra-Heavy        ","CY"]
["606.1100.S","Transition Mat         ","SY"]
[607.01059999999995,"St Sewer Pipe Nonreinf Conc Cls 1 6-In  ","LF"]
[607.01080000000002,"St Sewer Pipe Nonreinf Conc Cls 1 8-In  ","LF"]
[607.01099999999997,"St Sewer Pipe Nonreinf Conc Cls 1 10-In  ","LF"]
[607.01120000000003,"St Sewer Pipe Nonreinf Conc Cls 1 12-In  ","LF"]
[607.01149999999996,"St Sewer Pipe Nonreinf Conc Cls 1 15-In  ","LF"]
[607.01179999999999,"St Sewer Pipe Nonreinf Conc Cls 1 18-In  ","LF"]
[607.01210000000003,"St Sewer Pipe Nonreinf Conc Cls 1 21-In  ","LF"]
[607.01239999999996,"St Sewer Pipe Nonreinf Conc Cls 1 24-In  ","LF"]
[607.01300000000003,"St Sewer Pipe Nonreinf Conc Cls 1 30-In  ","LF"]
[607.0136,"St Sewer Pipe Nonreinf Conc Cls 1 36-In  ","LF"]
[607.03060000000005,"St Sewer Pipe Nonreinf Conc Cls 3 6-In   ","LF"]
[607.0308,"St Sewer Pipe Nonreinf Conc Cls 3 8-In   ","LF"]
[607.03099999999995,"St Sewer Pipe Nonreinf Conc Cls 3 10-In  ","LF"]
[607.03120000000001,"St Sewer Pipe Nonreinf Conc Cls 3 12-In  ","LF"]
[607.03150000000005,"St Sewer Pipe Nonreinf Conc Cls 3 15-In  ","LF"]
[607.03179999999998,"St Sewer Pipe Nonreinf Conc Cls 3 18-In  ","LF"]
[607.03210000000001,"St Sewer Pipe Nonreinf Conc Cls 3 21-In  ","LF"]
[607.03240000000005,"St Sewer Pipe Nonreinf Conc Cls 3 24-In  ","LF"]
[607.03300000000002,"St Sewer Pipe Nonreinf Conc Cls 3 30-In  ","LF"]
[607.03359999999998,"St Sewer Pipe Nonreinf Conc Cls 3 36-In  ","LF"]
[607.04060000000004,"Storm Sewer Pipe Composite 6-Inch        ","LF"]
[607.04079999999999,"Storm Sewer Pipe Composite 8-Inch        ","LF"]
[607.04100000000005,"Storm Sewer Pipe Composite 10-Inch      ","LF"]
[607.0412,"Storm Sewer Pipe Composite 12-Inch      ","LF"]
[607.04150000000004,"Storm Sewer Pipe Composite 15-Inch     ","LF"]
["607.0600.S","Storm Sewer Pipe (inch)        ","LF"]
[607.5,"Storm Sewer Rock Excavation         ","CY"]
[608.00049999999999,"Storm Sewer Rock Excavation      ","CY"]
[608.02120000000002,"St Sewer Pipe Reinf Conc Class II 12-In   ","LF"]
[608.02149999999995,"St Sewer Pipe Reinf Conc Class II 15-In  ","LF"]
[608.02179999999998,"St Sewer Pipe Reinf Conc Class II 18-In  ","LF"]
[608.02210000000002,"St Sewer Pipe Reinf Conc Class II 21-In  ","LF"]
[608.02239999999995,"St Sewer Pipe Reinf Conc Class II 24-In  ","LF"]
[608.02269999999999,"St Sewer Pipe Reinf Conc Class II 27-In  ","LF"]
[608.02300000000002,"St Sewer Pipe Reinf Conc Class II 30-In  ","LF"]
[608.02359999999999,"St Sewer Pipe Reinf Conc Class II 36-In   ","LF"]
[608.02419999999995,"St Sewer Pipe Reinf Conc Class II 42-In  ","LF"]
[608.02480000000003,"St Sewer Pipe Reinf Conc Class II 48-In  ","LF"]
[608.02539999999999,"St Sewer Pipe Reinf Conc Class II 54-In  ","LF"]
[608.02599999999995,"St Sewer Pipe Reinf Conc Class II 60-In  ","LF"]
[608.02660000000003,"St Sewer Pipe Reinf Conc Class II 66-In  ","LF"]
[608.02719999999999,"St Sewer Pipe Reinf Conc Class II 72-In  ","LF"]
[608.02779999999996,"St Sewer Pipe Reinf Conc Class II 78-In  ","LF"]
[608.02840000000003,"St Sewer Pipe Reinf Conc Class II 84-In  ","LF"]
[608.029,"St Sewer Pipe Reinf Conc Class II 90-In  ","LF"]
[608.02959999999996,"St Sewer Pipe Reinf Conc Class II 96-In  ","LF"]
[608.02970000000005,"St Sewer Pipe Reinf Conc Class II 102-In  ","LF"]
[608.02980000000002,"St Sewer Pipe Reinf Conc Class II 108-In  ","LF"]
[608.03120000000001,"St Sewer Pipe Reinf Conc Class III 12-In   ","LF"]
[608.03150000000005,"St Sewer Pipe Reinf Conc Class III 15-In   ","LF"]
[608.03179999999998,"St Sewer Pipe Reinf Conc Class III 18-In   ","LF"]
[608.03210000000001,"St Sewer Pipe Reinf Conc Class III 21-In   ","LF"]
[608.03240000000005,"St Sewer Pipe Reinf Conc Class III 24-In   ","LF"]
[608.03269999999998,"St Sewer Pipe Reinf Conc Class III 27-In   ","LF"]
[608.03300000000002,"St Sewer Pipe Reinf Conc Class III 30-In   ","LF"]
[608.03359999999998,"St Sewer Pipe Reinf Conc Class III 36-In   ","LF"]
[608.03420000000006,"St Sewer Pipe Reinf Conc Class III 42-In   ","LF"]
[608.03480000000002,"St Sewer Pipe Reinf Conc Class III 48-In   ","LF"]
[608.03539999999998,"St Sewer Pipe Reinf Conc Class III 54-In   ","LF"]
[608.03599999999994,"St Sewer Pipe Reinf Conc Class III 60-In   ","LF"]
[608.03660000000002,"St Sewer Pipe Reinf Conc Class III 66-In   ","LF"]
[608.03719999999998,"St Sewer Pipe Reinf Conc Class III 72-In   ","LF"]
[608.03779999999995,"St Sewer Pipe Reinf Conc Class III 78-In  ","LF"]
[608.03840000000002,"St Sewer Pipe Reinf Conc Class III 84-In   ","LF"]
[608.03899999999999,"St Sewer Pipe Reinf Conc Class III 90-In  ","LF"]
[608.03959999999995,"St Sewer Pipe Reinf Conc Class III 96-In   ","LF"]
[608.03970000000004,"St Sewer Pipe Reinf Conc Cls III 102-In  ","LF"]
[608.03980000000001,"St Sewer Pipe Reinf Conc Cls III 108-In  ","LF"]
[608.0412,"St Sewer Pipe Reinf Conc Class IV 12-In   ","LF"]
[608.04150000000004,"St Sewer Pipe Reinf Conc Class IV 15-In   ","LF"]
[608.04179999999997,"St Sewer Pipe Reinf Conc Class IV 18-In   ","LF"]
[608.0421,"St Sewer Pipe Reinf Conc Class IV 21-In   ","LF"]
[608.04240000000004,"St Sewer Pipe Reinf Conc Class IV 24-In   ","LF"]
[608.04269999999997,"St Sewer Pipe Reinf Conc Class IV 27-In   ","LF"]
[608.04300000000001,"St Sewer Pipe Reinf Conc Class IV 30-In   ","LF"]
[608.04359999999997,"St Sewer Pipe Reinf Conc Class IV 36-In   ","LF"]
[608.04420000000005,"St Sewer Pipe Reinf Conc Class IV 42-In   ","LF"]
[608.04480000000001,"St Sewer Pipe Reinf Conc Class IV 48-In   ","LF"]
[608.04539999999997,"St Sewer Pipe Reinf Conc Class IV 54-In   ","LF"]
[608.04600000000005,"St Sewer Pipe Reinf Conc Class IV 60-In   ","LF"]
[608.04660000000001,"St Sewer Pipe Reinf Conc Class IV 66-In   ","LF"]
[608.04719999999998,"St Sewer Pipe Reinf Conc Class IV 72-In   ","LF"]
[608.04780000000005,"St Sewer Pipe Reinf Conc Class IV 78-In   ","LF"]
[608.04840000000002,"St Sewer Pipe Reinf Conc Class IV 84-In  ","LF"]
[608.05119999999999,"Storm Sewer Pipe Reinf Conc Cls V 12-In   ","LF"]
[608.05150000000003,"Storm Sewer Pipe Reinf Conc Cls V 15-In   ","LF"]
[608.05179999999996,"Storm Sewer Pipe Reinf Conc Cls V 18-In   ","LF"]
[608.0521,"Storm Sewer Pipe Reinf Conc Cls V 21-In   ","LF"]
[608.05240000000003,"Storm Sewer Pipe Reinf Conc Cls V 24-In   ","LF"]
[608.05269999999996,"Storm Sewer Pipe Reinf Conc Cls V 27-In  ","LF"]
[608.053,"Storm Sewer Pipe Reinf Conc Cls V 30-In   ","LF"]
[608.05359999999996,"Storm Sewer Pipe Reinf Conc Cls V 36-In   ","LF"]
[608.05420000000004,"Storm Sewer Pipe Reinf Conc Cls V 42-In   ","LF"]
[608.0548,"Storm Sewer Pipe Reinf Conc Cls V 48-In   ","LF"]
[608.05539999999996,"Storm Sewer Pipe Reinf Conc Cls V 54-In   ","LF"]
[608.05600000000004,"Storm Sewer Pipe Reinf Conc Cls V 60-In  ","LF"]
[608.0566,"Storm Sewer Pipe Reinf Conc Cls V 66-In   ","LF"]
[608.05719999999997,"Storm Sewer Pipe Reinf Conc Cls V 72-In   ","LF"]
[608.30119999999999,"Storm Sewer Pipe Class III-A 12-Inch    ","LF"]
[608.30150000000003,"Storm Sewer Pipe Class III-A 15-Inch    ","LF"]
[608.30179999999996,"Storm Sewer Pipe Class III-A 18-Inch    ","LF"]
[608.3021,"Storm Sewer Pipe Class III-A 21-Inch    ","LF"]
[608.30240000000003,"Storm Sewer Pipe Class III-A 24-Inch    ","LF"]
[608.30269999999996,"Storm Sewer Pipe Class III-A 27-Inch    ","LF"]
[608.303,"Storm Sewer Pipe Class III-A 30-Inch    ","LF"]
[608.30359999999996,"Storm Sewer Pipe Class III-A 36-Inch    ","LF"]
[608.36120000000005,"Storm Sewer Pipe Class III-B 12-Inch    ","LF"]
[608.36149999999998,"Storm Sewer Pipe Class III-B 15-Inch    ","LF"]
[608.36180000000002,"Storm Sewer Pipe Class III-B 18-Inch    ","LF"]
[608.36210000000005,"Storm Sewer Pipe Class III-B 21-Inch    ","LF"]
[608.36239999999998,"Storm Sewer Pipe Class III-B 24-Inch    ","LF"]
[608.36270000000002,"Storm Sewer Pipe Class III-B 27-Inch    ","LF"]
[608.36300000000006,"Storm Sewer Pipe Class III-B 30-Inch    ","LF"]
[608.36360000000002,"Storm Sewer Pipe Class III-B 36-Inch    ","LF"]
[608.60059999999999,"Storm Sewer Pipe Composite 6-Inch     ","LF"]
[608.60080000000005,"Storm Sewer Pipe Composite 8-Inch     ","LF"]
[608.601,"Storm Sewer Pipe Composite 10-Inch     ","LF"]
[608.60119999999995,"Storm Sewer Pipe Composite 12-Inch     ","LF"]
[608.60149999999999,"Storm Sewer Pipe Composite 15-Inch     ","LF"]
[609.01059999999995,"Relaid Storm Sewer 6-Inch      ","LF"]
[609.01080000000002,"Relaid Storm Sewer 8-Inch      ","LF"]
[609.01099999999997,"Relaid Storm Sewer 10-Inch      ","LF"]
[609.01120000000003,"Relaid Storm Sewer 12-Inch       ","LF"]
[609.01149999999996,"Relaid Storm Sewer 15-Inch        ","LF"]
[609.01179999999999,"Relaid Storm Sewer 18-Inch       ","LF"]
[609.01210000000003,"Relaid Storm Sewer 21-Inch       ","LF"]
[609.01239999999996,"Relaid Storm Sewer 24-Inch         ","LF"]
[609.0127,"Relaid Storm Sewer 27-Inch      ","LF"]
[609.01300000000003,"Relaid Storm Sewer 30-Inch         ","LF"]
[609.0136,"Relaid Storm Sewer 36-Inch        ","LF"]
[609.01419999999996,"Relaid Storm Sewer 42-Inch       ","LF"]
[609.01480000000004,"Relaid Storm Sewer 48-Inch       ","LF"]
[609.0154,"Relaid Storm Sewer 54-Inch      ","LF"]
[609.01599999999996,"Relaid Storm Sewer 60-Inch       ","LF"]
[609.01660000000004,"Relaid Storm Sewer 66-Inch      ","LF"]
[609.0172,"Relaid Storm Sewer 72-Inch        ","LF"]
[609.01779999999997,"Relaid Storm Sewer 78-Inch      ","LF"]
[609.01840000000004,"Relaid Storm Sewer 84-Inch      ","LF"]
[609.01900000000001,"Relaid Storm Sewer 90-Inch      ","LF"]
[609.01959999999997,"Relaid Storm Sewer 96-Inch      ","LF"]
[610.01139999999998,"St Swr Pip Reinf Conc H El HE-III 14x23 ","LF"]
[610.01189999999997,"St Swr Pip Reinf Conc H El HE-III 19x30 ","LF"]
[610.01239999999996,"St Swr Pip Reinf Conc H El HE-III 24x38 ","LF"]
[610.01289999999995,"St Swr Pip Reinf Conc H El HE-III 29x45 ","LF"]
[610.01340000000005,"St Swr Pip Reinf Conc H El HE-III 34x53 ","LF"]
[610.01379999999995,"St Swr Pip Reinf Conc H El HE-III 38x60 ","LF"]
[610.01430000000005,"St Swr Pip Reinf Conc H El HE-III 43x68 ","LF"]
[610.01480000000004,"St Swr Pip Reinf Conc H El HE-III 48x76 ","LF"]
[610.01530000000002,"St Swr Pip Reinf Conc H El HE-III 53x83 ","LF"]
[610.01580000000001,"St Swr Pip Reinf Conc H El HE-III 58x91 ","LF"]
[610.0163,"St Swr Pip Reinf Conc H El HE-III 63x98 ","LF"]
[610.01679999999999,"St Swr Pip Reinf Conc H El HEIII 68x106 ","LF"]
[610.04139999999995,"Ssp Rnf Con Hz Ellip Cl HE-IV 14x23-In   ","LF"]
[610.04190000000006,"Ssp Rnf Con Hz Ellip Cl HE-IV 19x30-In   ","LF"]
[610.04240000000004,"Ssp Rnf Con Hz Ellip Cl HE-IV 24x38-In   ","LF"]
[610.04290000000003,"Ssp Rnf Con Hz Ellip Cl HE-IV 29x45-In   ","LF"]
[610.04340000000002,"Ssp Rnf Con Hz Ellip Cl HE-IV 34x53-In   ","LF"]
[611.04100000000005,"Reconstructing Catch Basins          ","EACH"]
[611.04200000000003,"Reconstructing Manholes           ","EACH"]
[611.04300000000001,"Reconstructing Inlets           ","EACH"]
[611.053,"Manhole Covers Type J         ","EACH"]
[611.05349999999999,"Manhole Covers Type J-Special         ","EACH"]
[611.05399999999997,"Manhole Covers Type K         ","EACH"]
[611.05449999999996,"Manhole Covers Type L         ","EACH"]
[611.05499999999995,"Manhole Covers Type M         ","EACH"]
[611.05520000000001,"Manhole Covers Type M-Communications      ","EACH"]
[611.05550000000005,"Manhole Covers Type Q        ","EACH"]
[611.0557,"Manhole Covers Type Q-Communications      ","EACH"]
[611.05999999999995,"Inlet Covers Type A         ","EACH"]
[611.06029999999998,"Inlet Covers Type A-S         ","EACH"]
[611.06060000000002,"Inlet Covers Type B         ","EACH"]
[611.06089999999995,"Inlet Covers Type B-A         ","EACH"]
[611.06100000000004,"Inlet Covers Type BW         ","EACH"]
[611.06119999999999,"Inlet Covers Type C         ","EACH"]
[611.06150000000002,"Inlet Covers Type F         ","EACH"]
[611.06240000000003,"Inlet Covers Type H         ","EACH"]
[611.06269999999995,"Inlet Covers Type HM         ","EACH"]
[611.06299999999999,"Inlet Covers Type HM-GJ         ","EACH"]
[611.06330000000003,"Inlet Covers Type HM-GJ-S         ","EACH"]
[611.06359999999995,"Inlet Covers Type HM-S         ","EACH"]
[611.06389999999999,"Inlet Covers Type H-S         ","EACH"]
[611.06420000000003,"Inlet Covers Type MS         ","EACH"]
[611.06449999999995,"Inlet Covers Type MS-A         ","EACH"]
[611.06479999999999,"Inlet Covers Type R         ","EACH"]
[611.06510000000003,"Inlet Covers Type S         ","EACH"]
[611.0652,"Inlet Covers Type T         ","EACH"]
[611.06539999999995,"Inlet Covers Type V         ","EACH"]
[611.06569999999999,"Inlet Covers Type W      ","EACH"]
[611.06600000000003,"Inlet Covers Type WM         ","EACH"]
[611.06629999999996,"Inlet Covers Type X         ","EACH"]
[611.06659999999999,"Inlet Covers Type Z         ","EACH"]
[611.10029999999995,"Catch Basins 3-FT Diameter         ","EACH"]
[611.10040000000004,"Catch Basins 4-FT Diameter         ","EACH"]
[611.10050000000001,"Catch Basins 5-FT Diameter         ","EACH"]
[611.10059999999999,"Catch Basins 6-FT Diameter         ","EACH"]
[611.12300000000005,"Catch Basins 2x3-FT          ","EACH"]
[611.12530000000004,"Catch Basins 2.5x3-FT        ","EACH"]
[611.20029999999997,"Manholes 3-FT Diameter          ","EACH"]
[611.20039999999995,"Manholes 4-FT Diameter          ","EACH"]
[611.20050000000003,"Manholes 5-FT Diameter          ","EACH"]
[611.20060000000001,"Manholes 6-FT Diameter          ","EACH"]
[611.20069999999998,"Manholes 7-FT Diameter          ","EACH"]
[611.20079999999996,"Manholes 8-FT Diameter          ","EACH"]
[611.20330000000001,"Manholes 3x3-FT          ","EACH"]
[611.20439999999996,"Manholes 4x4-FT           ","EACH"]
[611.20550000000003,"Manholes 5x5-FT           ","EACH"]
[611.20659999999998,"Manholes 6x6-FT           ","EACH"]
[611.21040000000005,"Manholes Communication 4-FT Diameter      ","EACH"]
[611.25040000000001,"Manholes Variable Tee 4-FT Diameter       ","EACH"]
[611.2604,"Manholes Variable Special 4-FT Diameter       ","EACH"]
[611.30029999999999,"Inlets 3-FT Diameter          ","EACH"]
[611.30039999999997,"Inlets 4-FT Diameter          ","EACH"]
[611.322,"Inlets 2x2-FT           ","EACH"]
[611.32249999999999,"Inlets 2x2.5-FT           ","EACH"]
[611.32299999999998,"Inlets 2x3-FT           ","EACH"]
[611.32529999999997,"Inlets 2.5x3-FT           ","EACH"]
[611.39009999999996,"Inlets Median 1 Grate         ","EACH"]
[611.39020000000005,"Inlets Median 2 Grate         ","EACH"]
[611.39030000000002,"Inlets Median 3 Grate         ","EACH"]
[611.3904,"Inlets Median 4 Grate         ","EACH"]
[611.81050000000005,"Adjusting Catch Basin Covers         ","EACH"]
[611.81100000000004,"Adjusting Manhole Covers          ","EACH"]
[611.81150000000002,"Adjusting Inlet Covers          ","EACH"]
["611.8120.S","Cover Plates Temporary          ","EACH"]
[611.97050000000002,"Salvaged Manhole Covers          ","EACH"]
[611.971,"Salvaged Inlet Covers          ","EACH"]
["611.9800.S","Pipe Grates           ","EACH"]
["611.9900.S","Drain Slotted Vane        ","EACH"]
[612.0104,"Pipe Underdrain 4-Inch          ","LF"]
[612.01059999999995,"Pipe Underdrain 6-Inch          ","LF"]
[612.01080000000002,"Pipe Underdrain 8-Inch          ","LF"]
[612.01099999999997,"Pipe Underdrain 10-Inch         ","LF"]
[612.01120000000003,"Pipe Underdrain 12-Inch         ","LF"]
[612.01149999999996,"Pipe Underdrain 15-Inch       ","LF"]
[612.01179999999999,"Pipe Underdrain 18-Inch       ","LF"]
[612.01210000000003,"Pipe Underdrain 21-Inch       ","LF"]
[612.0204,"Pipe Underdrain Unperforated 4-Inch         ","LF"]
[612.02059999999994,"Pipe Underdrain Unperforated 6-Inch         ","LF"]
[612.02080000000001,"Pipe Underdrain Unperforated 8-Inch         ","LF"]
[612.02099999999996,"Pipe Underdrain Unperforated 10-Inch        ","LF"]
[612.02120000000002,"Pipe Underdrain Unperforated 12-Inch         ","LF"]
[612.02149999999995,"Pipe Underdrain Unperforated 15-Inch       ","LF"]
[612.02179999999998,"Pipe Underdrain Unperforated 18-Inch       ","LF"]
[612.02210000000002,"Pipe Underdrain Unperforated 21-Inch      ","LF"]
[612.04039999999998,"Pipe Underdrain Wrapped 4-Inch         ","LF"]
[612.04060000000004,"Pipe Underdrain Wrapped 6-Inch         ","LF"]
[612.04079999999999,"Pipe Underdrain Wrapped 8-Inch       ","LF"]
[612.04100000000005,"Pipe Underdrain Wrapped 10-Inch       ","LF"]
[612.0412,"Pipe Underdrain Wrapped 12-Inch      ","LF"]
[612.04150000000004,"Pipe Underdrain Wrapped 15-Inch       ","LF"]
[612.05039999999997,"Pipe Underdrain Wrapped and Plowed 4-In    ","LF"]
[612.05060000000003,"Pipe Underdrain Wrapped and Plowed 6-In     ","LF"]
[612.05999999999995,"Underdrain Trench          ","LF"]
[612.07000000000005,"Drain Tile Exploration          ","LF"]
[612.08040000000005,"Apr Endwls Underdrain Reinf Conc 4-In       ","EACH"]
[612.0806,"Apr Endwls Underdrain Reinf Conc 6-In       ","EACH"]
["612.0902.S","Insulation Board Polystyrene (inch)         ","SY"]
[614.00099999999998,"Barrier System Grade Shape Finish        ","EACH"]
[614.01149999999996,"Anchorages Stl Plt Beam Guard Type 2     ","EACH"]
[614.01499999999999,"Anchor Assemblies Stl Plate Beam Guard       ","EACH"]
[614.02,"Steel Thrie Beam Structure Approach        ","LF"]
[614.02120000000002,"Stl Thrie Bm Str Appr Retro Cant Blunt  ","EACH"]
[614.0213,"Stl Thrie Bm Str Appr Retro Cant Sloped  ","EACH"]
[614.02149999999995,"Stl Thrie Bm Str Appr Retrofit Span   ","EACH"]
[614.02160000000003,"Stl Thrie Bm Str Appr Retrofit Post   ","EACH"]
[614.02200000000005,"Steel Thrie Beam Bullnose Terminal        ","EACH"]
[614.02300000000002,"Steel Thrie Beam          ","LF"]
[614.02499999999998,"Steel Thrie Beam Struct Approach Temp      ","LF"]
[614.03049999999996,"Steel Plate Beam Guard Class A       ","LF"]
[614.03399999999999,"St Plt Beam Gd Over Lowfill Culv Class A ","LF"]
[614.03449999999998,"Steel Plate Beam Guard Short Radius       ","LF"]
[614.03599999999994,"Steel Plate Beam Guard Temporary        ","LF"]
[614.03700000000003,"Stl Plt Beam Gd Energy Absorb Terminal     ","EACH"]
[614.03800000000001,"Stl Plt Beam Gd Engy Abs Terminal Temp   ","EACH"]
[614.03899999999999,"Steel Plate Beam Guard Shrt Rad Terminal     ","EACH"]
[614.03949999999998,"Guardrail Mow Strip Concrete         ","SY"]
[614.03959999999995,"Guardrail Mow Strip Asphalt         ","SY"]
[614.03970000000004,"Guardrail Mow Strip Emulsified Asphalt      ","SY"]
[614.04,"Adjusting Steel Plate Beam Guard        ","LF"]
[614.05100000000004,"Guardrail Stiffened NW       ","LF"]
[614.05150000000003,"Guardrail Stiffened LHW          ","LF"]
[614.07000000000005,"Sand Barrel Arrays         ","EACH"]
[614.08000000000004,"Crash Cushions Permanent          ","EACH"]
[614.08050000000003,"Crash Cushions Perm Low Maintanance        ","EACH"]
[614.09050000000002,"Crash Cushions Temporary          ","EACH"]
[614.09199999999998,"Salvaged Rail           ","LF"]
[614.09249999999997,"Salvaged Guardrail End Treatments         ","EACH"]
[614.09299999999996,"Salvaged Crash Cushions        ","EACH"]
[614.09349999999995,"Salvaged Sand Barrels         ","EACH"]
[614.09500000000003,"Replacing Guardrail Posts and Blocks        ","EACH"]
[614.0951,"Replacing Guardrail Rail and Hardware        ","LF"]
[614.1,"MGS Guardrail Temporary          ","LF"]
[614.11,"MGS Guardrail Temp Thrie Beam Transition       ","LF"]
[614.12,"MGS Guardrail Temporary Transition EAT        ","EACH"]
[614.23,"MGS Guardrail 3          ","LF"]
[614.23099999999999,"MGS Guardrail 3 HS         ","LF"]
[614.23199999999997,"MGS Guardrail 3 QS         ","LF"]
[614.23299999999995,"MGS Guardrail 3 K         ","LF"]
[614.23400000000004,"MGS Guardrail 3 L         ","LF"]
[614.25,"MGS Thrie Beam Transition         ","LF"]
[614.26099999999997,"MGS Guardrail Terminal EAT         ","EACH"]
[614.26199999999994,"MGS Guardrail Terminal Type 2        ","EACH"]
[614.80100000000004,"Anchor Post Assembly Top Mount     ","EACH"]
[615.01,"Guard Fence Timber Rail        ","LF"]
[615.02,"Curbs Treated Timber        ","EACH"]
[615.03,"Guard Posts Timber        ","EACH"]
[615.04,"Marker Posts Rustic       ","EACH"]
[615.1,"Wisconsin Historical Marker (project)      ","LS"]
[616.01,"Fence Woven Wire (height)         ","LF"]
["616.0120.S","Fencing Small Animal       ","LF"]
[616.0204,"Fence Chain Link 4-FT         ","LF"]
[616.02049999999997,"Fence Chain Link 5-FT        ","LF"]
[616.02059999999994,"Fence Chain Link 6-FT         ","LF"]
[616.02070000000003,"Fence Chain Link 7-FT      ","LF"]
[616.02080000000001,"Fence Chain Link 8-FT         ","LF"]
[616.02099999999996,"Fence Chain Link 10-FT      ","LF"]
[616.03290000000004,"Gates Chain Link (width)         ","EACH"]
["616.0350.S","Gates Wood Single Leaf (length)     ","EACH"]
["616.0352.S","Gates Wood Double Leaf (length)      ","EACH"]
["616.0360.S","Gates Pipe Single Leaf (length)      ","EACH"]
[616.04039999999998,"Fence Chain Link Salvaged 4-FT       ","LF"]
[616.04049999999995,"Fence Chain Link Salvaged 5-FT     ","LF"]
[616.04060000000004,"Fence Chain Link Salvaged 6-FT        ","LF"]
[616.04070000000002,"Fence Chain Link Salvaged 7-FT     ","LF"]
[616.04079999999999,"Fence Chain Link Salvaged 8-FT     ","LF"]
[616.04100000000005,"Fence Chain Link Salvaged 10-FT      ","LF"]
["616.0600.S","Fence Temporary           ","LF"]
["616.0700.S","Fence Safety           ","LF"]
["616.0800.S","Fence Track Clearance          ","LF"]
[617.01,"Hauling (material)        ","CYMI"]
[618.01,"Maintenance And Repair of Haul Roads       ","EACH"]
[619.1,"Mobilization            ","EACH"]
[620.01,"Concrete Corrugated Median          ","SF"]
[620.02,"Concrete Median Blunt Nose         ","SF"]
[620.03,"Concrete Median Sloped Nose         ","SF"]
[621.01,"Landmark Reference Monuments          ","EACH"]
[621.11,"Landmark Ref Monuments&Cast Iron Covers      ","EACH"]
[621.12,"Landmark Ref Monuments&Aluminum Covers       ","EACH"]
[623.02,"Dust Control Surface Treatment         ","SY"]
[624.01,"Water            ","MGAL"]
[625.01,"Topsoil            ","SY"]
[625.01049999999998,"Topsoil            ","CY"]
[625.04999999999995,"Salvaged Topsoil           ","SY"]
[626.02,"Peat Humus        ","SY"]
[627.02,"Mulching            ","SY"]
[627.02049999999997,"Mulching         ","TON"]
[628.11040000000003,"Erosion Bales           ","EACH"]
[628.15039999999999,"Silt Fence           ","LF"]
[628.15200000000004,"Silt Fence Maintenance          ","LF"]
[628.15499999999997,"Silt Screen         ","LF"]
[628.19050000000004,"Mobilizations Erosion Control          ","EACH"]
[628.19100000000003,"Mobilization Emergency Erosion Control         ","EACH"]
[628.19200000000001,"Cleaning Sediment Basins          ","CY"]
[628.2002,"Erosion Mat Class I Type A       ","SY"]
[628.20039999999995,"Erosion Mat Class I Type B       ","SY"]
[628.20060000000001,"Erosion Mat Urban Class I Type A     ","SY"]
[628.20079999999996,"Erosion Mat Urban Class I Type B     ","SY"]
[628.20209999999997,"Erosion Mat Class II Type A       ","SY"]
[628.20230000000004,"Erosion Mat Class II Type B       ","SY"]
[628.20270000000005,"Erosion Mat Class II Type C       ","SY"]
[628.20309999999995,"Erosion Mat Class III Type A       ","SY"]
[628.20330000000001,"Erosion Mat Class III Type B       ","SY"]
[628.20370000000003,"Erosion Mat Class III Type C       ","SY"]
[628.20389999999998,"Erosion Mat Class III Type D       ","SY"]
[628.55050000000006,"Polyethylene Sheeting           ","SY"]
[628.60050000000001,"Turbidity Barriers           ","SY"]
[628.65049999999997,"Soil Stabilizer Type A        ","ACRE"]
[628.65099999999995,"Soil Stabilizer Type B         ","ACRE"]
[628.70050000000003,"Inlet Protection Type A         ","EACH"]
[628.70100000000002,"Inlet Protection Type B         ","EACH"]
[628.70150000000001,"Inlet Protection Type C         ","EACH"]
[628.702,"Inlet Protection Type D         ","EACH"]
[628.75040000000001,"Temporary Ditch Checks          ","LF"]
[628.75549999999998,"Culvert Pipe Checks          ","EACH"]
[628.75599999999997,"Tracking Pads           ","EACH"]
["628.7560.S","Stone or Rock Ditch Checks        ","CY"]
[628.75699999999995,"Rock Bags           ","EACH"]
[629.02049999999997,"Fertilizer Type A          ","CWT"]
[629.02099999999996,"Fertilizer Type B          ","CWT"]
[629.11,"Agricultural Limestone Treatment       ","TON"]
[630.01099999999997,"Seeding Mixture No. 10         ","LB"]
[630.01199999999994,"Seeding Mixture No. 20         ","LB"]
[630.01300000000003,"Seeding Mixture No. 30         ","LB"]
[630.01400000000001,"Seeding Mixture No. 40         ","LB"]
[630.01599999999996,"Seeding Mixture No. 60         ","LB"]
[630.01700000000005,"Seeding Mixture No. 70         ","LB"]
[630.01710000000003,"Seeding Mixture No. 70A         ","LB"]
[630.01750000000004,"Seeding Mixture No. 75         ","LB"]
[630.01800000000003,"Seeding Mixture No. 80         ","LB"]
[630.02,"Seeding Temporary           ","LB"]
[630.03,"Seeding Borrow Pit          ","LB"]
[630.04,"Seeding Nurse Crop          ","LB"]
[631.03,"Sod Water          ","MGAL"]
[631.1,"Sod Lawn          ","SY"]
[631.11,"Sod Erosion Control          ","SY"]
[631.12,"Sod Erosion Control Sandy Soil     ","SY"]
[632.01009999999997,"Trees (species) (size) (root)         ","EACH"]
[632.02009999999996,"Shrubs (species) (size) (root)         ","EACH"]
[632.03009999999995,"Vines (species) (size) (root)         ","EACH"]
[632.91010000000006,"Landscape Planting Surv & Care Cycles       ","EACH"]
[633.01,"Delineator Posts Steel          ","EACH"]
[633.02,"Delineators Flexible           ","EACH"]
[633.04999999999995,"Delineator Reflectors           ","EACH"]
[633.1,"Delineator Brackets           ","EACH"]
[633.11,"Delineators Temporary           ","EACH"]
[633.51,"Markers Row           ","EACH"]
[633.52,"Markers Culvert End          ","EACH"]
[633.90099999999995,"Salvaged Delineator Steel        ","EACH"]
[634.04100000000005,"Posts Wood 4x4-Inch X 10-FT        ","EACH"]
[634.0412,"Posts Wood 4x4-Inch X 12-FT        ","EACH"]
[634.04139999999995,"Posts Wood 4x4-Inch X 14-FT        ","EACH"]
[634.04160000000002,"Posts Wood 4x4-Inch X 16-FT       ","EACH"]
[634.04179999999997,"Posts Wood 4x4-Inch X 18-FT        ","EACH"]
[634.06119999999999,"Posts Wood 4x6-Inch X 12-FT        ","EACH"]
[634.06140000000005,"Posts Wood 4x6-Inch X 14-FT        ","EACH"]
[634.0616,"Posts Wood 4x6-Inch X 16-FT        ","EACH"]
[634.06179999999995,"Posts Wood 4x6-Inch X 18-FT        ","EACH"]
[634.06200000000001,"Posts Wood 4x6-Inch X 20-FT        ","EACH"]
[634.06219999999996,"Posts Wood 4x6-Inch X 22-FT        ","EACH"]
[634.06240000000003,"Posts Wood 4x6-Inch X 24-FT     ","EACH"]
[634.08010000000002,"Posts Tubular Steel 2x2-Inch X 1.5-FT     ","EACH"]
[634.08029999999997,"Posts Tubular Steel 2x2-Inch X 3-FT     ","EACH"]
[634.08050000000003,"Posts Tubular Steel 2x2-Inch X 5-FT       ","EACH"]
[634.08079999999995,"Posts Tubular Steel 2x2-Inch X 8-FT       ","EACH"]
[634.08090000000004,"Posts Tubular Steel 2x2-Inch X 9.5-FT       ","EACH"]
[634.08100000000002,"Posts Tubular Steel 2x2-Inch X 10-FT       ","EACH"]
[634.08109999999999,"Posts Tubular Steel 2x2-Inch X 11-FT       ","EACH"]
[634.08119999999997,"Posts Tubular Steel 2x2-Inch X 12-FT       ","EACH"]
[634.08140000000003,"Posts Tubular Steel 2x2-Inch X 14-FT       ","EACH"]
[634.08159999999998,"Posts Tubular Steel 2x2-Inch X 16-FT       ","EACH"]
[634.08180000000004,"Posts Tubular Steel 2x2-Inch X 18-FT    ","EACH"]
[634.08849999999995,"Posts Tubular Steel 2x2-Inch X 8.5-FT       ","EACH"]
[635.02,"Sign Supports Structural Steel HS       ","LB"]
[635.03,"Sign Supports Replac Base Connect Bolts       ","EACH"]
["635.9010.S","Sign Supports Shorten Structural Steel      ","EACH"]
["636.0050.S","Foundation Drilling (diameter)       ","LF"]
[636.01,"Sign Supports Concrete Masonry         ","CY"]
[636.04999999999995,"Sign Supports Steel Reinforcement         ","LB"]
[636.1,"Sign Supports Steel Reinforcement HS        ","LB"]
[636.15,"Sign Supports Steel Coated Reinf HS       ","LB"]
[637.06200000000001,"Sign Flags Permanent Type II        ","EACH"]
[637.06299999999999,"Sign Flags Permanent Type III     ","EACH"]
[637.12099999999998,"Signs Type I Reflective H       ","SF"]
[637.12199999999996,"Signs Type I Reflective SH       ","SF"]
[637.12300000000005,"Signs Type I Reflective F       ","SF"]
[637.21100000000001,"Signs Type II Non Reflective     ","SF"]
[637.2115,"Signs Type II Non Reflective Folding    ","SF"]
[637.221,"Signs Type II Reflective H      ","SF"]
[637.22149999999999,"Signs Type II Reflective H Folding      ","SF"]
[637.22199999999998,"Signs Type II Reflective SH      ","SF"]
[637.22249999999997,"Signs Type II Reflective SH Folding     ","SF"]
[637.22299999999996,"Signs Type II Reflective F      ","SF"]
[637.22349999999994,"Signs Type II Reflective F Folding     ","SF"]
[637.31100000000004,"Signs Type III Non Reflective     ","SF"]
[637.32100000000003,"Sign S Type III Reflective H    ","SF"]
[637.322,"Signs Type III Reflective SH      ","SF"]
[637.32299999999998,"Signs Type III Reflective F     ","SF"]
[638.21010000000001,"Moving Signs Type I         ","EACH"]
[638.21019999999999,"Moving Signs Type II         ","EACH"]
[638.21029999999996,"Moving Signs Type III       ","EACH"]
[638.26009999999997,"Removing Signs Type I         ","EACH"]
[638.26020000000005,"Removing Signs Type II         ","EACH"]
[638.26030000000003,"Removing Signs Type III       ","EACH"]
[638.29999999999995,"Removing Small Sign Supports         ","EACH"]
[638.30999999999995,"Removing Structural Steel Sign Supports        ","EACH"]
[638.32100000000003,"Revising Signs Type I         ","EACH"]
[638.32299999999998,"Revising Signs Type III      ","EACH"]
[638.36099999999999,"Erecting State Owned Signs Type I      ","EACH"]
[638.36199999999997,"Erecting State Owned Signs Type II       ","EACH"]
[638.36300000000006,"Erecting State Owned Signs Type III    ","EACH"]
[638.4,"Moving Small Sign Supports         ","EACH"]
[638.41,"Moving Structural Steel Sign Supports        ","EACH"]
[639.01059999999995,"Drill Hole in Earth 6-Inch     ","LF"]
[639.01080000000002,"Drill Hole in Earth 8-Inch      ","LF"]
[639.01099999999997,"Drill Hole in Earth 10-Inch      ","LF"]
[639.01120000000003,"Drill Hole in Earth 12-Inch     ","LF"]
[639.05039999999997,"Drill Hole in Rock 4-Inch     ","LF"]
[639.05060000000003,"Drill Hole in Rock 6-Inch     ","LF"]
[639.05079999999998,"Drill Hole in Rock 8-Inch      ","LF"]
[639.05100000000004,"Drill Hole in Rock 10-Inch     ","LF"]
[639.05119999999999,"Drill Hole in Rock 12-Inch     ","LF"]
[639.10040000000004,"Well Casing Pipe 4-Inch      ","LF"]
[639.10059999999999,"Well Casing Pipe 6-Inch        ","LF"]
[639.10080000000005,"Well Casing Pipe 8-Inch      ","LF"]
[639.101,"Well Casing Pipe 10-Inch      ","LF"]
[639.10119999999995,"Well Casing Pipe 12-Inch      ","LF"]
[639.16999999999996,"Well Screen          ","LF"]
[639.21,"Grout for Sealing Well Casing       ","CF"]
[639.25,"Pump and Well Platform      ","EACH"]
[639.29999999999995,"Wayside Well Shelter       ","EACH"]
[639.4,"Test Pumping          ","EACH"]
["640.0200.S","Placing Industrial (byproduct)        ","CY"]
["640.0250.S","Hauling Industrial (byproduct)        ","TON"]
["640.0270.S","Maintenance of Cells (byproduct)      ","HRS"]
["640.0400.S","Basin Lysimeter        ","EACH"]
["640.0500.S","Head Monitoring Well       ","EACH"]
["640.1303.S","Pond Liner Clay        ","CY"]
["640.1305.S","Clay Cover        ","CY"]
[641.01,"Sign Brg Single Pole Sign Support 1 Sign   ","LS"]
[641.05999999999995,"Sign Brg Single Pole Sign Support 2 Sign   ","LS"]
[641.12,"Sign Bridge Cantilevered (structure)         ","LS"]
[641.51,"Sign Bridge Structure Mounted (struct)        ","LS"]
[641.66,"Sign Bridge (structure)          ","LS"]
[641.80999999999995,"Overhead Sign Support (structure)         ","LS"]
[642.50009999999997,"Field Office Type B         ","EACH"]
[642.52009999999996,"Field Office Type C         ","EACH"]
[642.54010000000005,"Field Office Type D         ","EACH"]
[642.6001,"Field Laboratory          ","EACH"]
[643.01,"Traffic Control (project)          ","EACH"]
[643.02,"Traffic Control Surv & Maint (project)       ","DAY"]
[643.03,"Traffic Control Drums          ","DAY"]
[643.04049999999995,"Traffic Control Barricades Type I      ","DAY"]
[643.04100000000005,"Traffic Control Barricades Type II        ","DAY"]
[643.04200000000003,"Traffic Control Barricades Type III        ","DAY"]
[643.0453,"Traffic Control Barricades Perm Type III       ","EACH"]
[643.04999999999995,"Traffic Cntrl Flex Tubular Marker Posts       ","EACH"]
[643.05999999999995,"Traffic Cntrl Flex Tubular Marker Bases       ","EACH"]
[643.07050000000004,"Traffic Control Warning Lights Type A       ","DAY"]
[643.07100000000003,"Traffic Control Warning Lights Type B       ","DAY"]
[643.07150000000001,"Traffic Control Warning Lights Type C       ","DAY"]
[643.08000000000004,"Traffic Control Arrow Boards         ","DAY"]
[643.09,"Traffic Control Signs          ","DAY"]
[643.09100000000001,"Traffic Control Covering Signs Type I       ","EACH"]
[643.09199999999998,"Traffic Control Covering Signs Type II       ","EACH"]
[643.1,"Traffic Control Signs Fixed Message        ","SF"]
[643.10500000000002,"Traffic Control Signs PCMS         ","DAY"]
["643.1055.S","Truck or Trailer Mounted Attenuator      ","DAY"]
[643.20000000000005,"Traffic Control Detour (project)         ","EACH"]
[643.29999999999995,"Traffic Control Detour Signs         ","DAY"]
[645.01049999999998,"Geotextile Fabric Type C         ","SY"]
[645.01110000000006,"Geotextile Fabric Type DF Schedule A       ","SY"]
[645.01120000000003,"Geotextile Fabric Type DF Schedule B       ","SY"]
[645.01130000000001,"Geotextile Fabric Type DF Schedule C       ","SY"]
[645.01149999999996,"Geotextile Fabric Type ES        ","SY"]
[645.01199999999994,"Geotextile Fabric Type HR         ","SY"]
[645.01250000000005,"Geotextile Fabric Type MS       ","SY"]
[645.01300000000003,"Geotextile Fabric Type R         ","SY"]
[645.01350000000002,"Geotextile Fabric Type SR         ","SY"]
[645.01400000000001,"Geotextile Fabric Type SAS         ","SY"]
["646.0101.S","Pavement Marking Paint High Build 4-Inch    ","LF"]
[646.01030000000003,"Pavement Marking Paint 4-Inch         ","LF"]
[646.01059999999995,"Pavement Marking Epoxy 4-Inch         ","LF"]
[646.01089999999999,"Pavement Marking Preformed Plastic 4-In       ","LF"]
[646.01130000000001,"Pavement Marking Paint 6-Inch      ","LF"]
[646.01160000000004,"Pavement Marking Epoxy 6-Inch         ","LF"]
[646.01189999999997,"Pavement Marking Preformed Plastic 6-In     ","LF"]
["646.0121.S","Pavement Marking Paint High Build 8-Inch    ","LF"]
[646.01229999999998,"Pavement Marking Paint 8-Inch         ","LF"]
[646.01260000000002,"Pavement Marking Epoxy 8-Inch         ","LF"]
[646.01279999999997,"Pavement Mrkg Preform Thermoplastic 8-In       ","LF"]
[646.01289999999995,"Pavement Marking Preformed Plastic 8-In      ","LF"]
[646.01329999999996,"Pavement Marking Paint 12-Inch      ","LF"]
[646.0136,"Pavement Marking Epoxy 12-Inch        ","LF"]
[646.01379999999995,"Pavement Mrkg Preform Thermplastic 12-In     ","LF"]
[646.01390000000004,"Pavement Marking Preformed Plastic 12-In      ","LF"]
[646.01430000000005,"Pavement Marking Paint 16-Inch      ","LF"]
[646.01459999999997,"Pavement Marking Epoxy 16-Inch      ","LF"]
[646.01480000000004,"Pavement Mrkg Preform Thermplastic 16-In     ","LF"]
[646.01490000000001,"Pavement Marking Preformed Plastic 16-In     ","LF"]
[646.01530000000002,"Pavement Marking Paint 18-Inch      ","LF"]
[646.01559999999995,"Pavement Marking Epoxy 18-Inch        ","LF"]
[646.01580000000001,"Pavement Mrkg Preform Thermplastic 18-In       ","LF"]
[646.01589999999999,"Pavement Marking Preformed Plastic 18-In     ","LF"]
[646.04060000000004,"Pavement Marking Same Day Epoxy 4-Inch       ","LF"]
[646.05999999999995,"Removing Pavement Markings          ","LF"]
["646.0790.S","Removing Raised Pavement Markers         ","EACH"]
["646.0805.S","Pavement Marking Outfall          ","EACH"]
["646.0841.S","Pvt Mkng Grvd Wet Rflct Cntrst Tape 4-In   ","LF"]
["646.0843.S","Pvt Mkng Grvd Wet Rflct Cntrst Tape 8-In   ","LF"]
["646.0871.S","Pvmt Mrking Wet Reflective Tape 4-Inch     ","LF"]
["646.0873.S","Pvmt Mrking Wet Reflective Tape 8-Inch     ","LF"]
["646.0881.S","Pvt Mrking Grvd Wet Reflct Tape 4-Inch     ","LF"]
["646.0883.S","Pvt Mrking Grvd Wet Reflct Tape 8-Inch     ","LF"]
["646.0900.S","Pavement Marking Late Season        ","LF"]
["646.2304.S","Pvt Mrking Grvd Wet Reflct Epoxy 4-Inch    ","LF"]
["646.2308.S","Pvt Mrking Grvd Wet Reflct Epoxy 8-Inch    ","LF"]
[647.01049999999998,"Pvt Marking Railroad Crossings Paint       ","EACH"]
[647.01099999999997,"Pvt Marking Railroad Crossings Epoxy        ","EACH"]
[647.01149999999996,"Pvt Marking RR Crossings Pref Plastic    ","EACH"]
[647.01179999999999,"Pvt Mkg RR Xing Preformed Thermoplastic    ","EACH"]
[647.01300000000003,"Pavement Marking Arrows Epoxy Type 7R    ","EACH"]
[647.01310000000001,"Pvmt Mark Arrw Prefrm Thrmoplstc Type 7R   ","EACH"]
[647.01319999999998,"Pvmt Mark Arrows Preform Plastic Type 7R   ","EACH"]
[647.0136,"Pavement Marking Arrows Epoxy Type 7    ","EACH"]
[647.01379999999995,"Pvmt Mark Arrw Prefrmd Thrmoplstc Type 7    ","EACH"]
[647.01390000000004,"Pvmt Marking Arrws Preformd Plstc Type 7   ","EACH"]
[647.01400000000001,"Pavement Marking Arrows Epoxy Type 6R    ","EACH"]
[647.01409999999998,"Pvt Mrkg Arrow Prefrmd Thermplas Type 6R   ","EACH"]
[647.01419999999996,"Pvmt Markng Arrow Prefrmd Plastc Type 6R   ","EACH"]
[647.01459999999997,"Pavement Marking Arrows Epoxy Type 6     ","EACH"]
[647.01480000000004,"Pvmt Mark Arrw Prefrmd Thrmoplstc Type 6   ","EACH"]
[647.01490000000001,"Pvmt Marking Arrws Preformd Plstc Type 6   ","EACH"]
[647.01530000000002,"Pavement Marking Arrows Paint Type 1      ","EACH"]
[647.01559999999995,"Pavement Marking Arrows Epoxy Type 1      ","EACH"]
[647.01580000000001,"Pvmt Mrkg Arrow Preform Thermplas Type 1     ","EACH"]
[647.01589999999999,"Pvt Marking Arrows Pref Plastic Type 1   ","EACH"]
[647.01599999999996,"Pavement Marking Arrows Epoxy Type 2R      ","EACH"]
[647.01610000000005,"Pvt Mrkng Arrow Prefrm Thermplas Type 2R    ","EACH"]
[647.01620000000003,"Pvt Mrkg Arrows Preformd Plastic Type 2R   ","EACH"]
[647.0163,"Pavement Marking Arrows Paint Type 2      ","EACH"]
[647.01660000000004,"Pavement Marking Arrows Epoxy Type 2      ","EACH"]
[647.01679999999999,"Pvmt Mrkg Arrow Preform Thermplas Type 2     ","EACH"]
[647.01689999999996,"Pvt Marking Arrows Pref Plastic Type 2   ","EACH"]
[647.01700000000005,"Pvt Mrkg Arrows Epoxy Type 3R      ","EACH"]
[647.01710000000003,"Pvt Mrkg Arrow Prefrmd Thrmoplas Type 3R    ","EACH"]
[647.0172,"Pvt Mrkg Arrows Prefrmed Plastic Type 3R   ","EACH"]
[647.01729999999998,"Pavement Marking Arrows Paint Type 3    ","EACH"]
[647.01760000000002,"Pavement Marking Arrows Epoxy Type 3      ","EACH"]
[647.01779999999997,"Pvmt Mrkg Arrow Preform Thermplas Type 3     ","EACH"]
[647.01790000000005,"Pvt Marking Arrows Pref Plastic Type 3   ","EACH"]
[647.01829999999995,"Pavement Marking Arrows Paint Type 4    ","EACH"]
[647.01859999999999,"Pavement Marking Arrows Epoxy Type 4      ","EACH"]
[647.01880000000006,"Pvmt Mrkg Arrow Preform Thermplas Type 4    ","EACH"]
[647.01890000000003,"Pvt Marking Arrows Pref Plastic Type 4   ","EACH"]
[647.01930000000004,"Pavement Marking Arrows Paint Type 5    ","EACH"]
[647.01959999999997,"Pavement Marking Arrows Epoxy Type 5      ","EACH"]
[647.01980000000003,"Pvmt Mrkg Arrow Preform Thermplas Type 5    ","EACH"]
[647.01990000000001,"Pvt Marking Arrows Pref Plastic Type 5   ","EACH"]
[647.02030000000002,"Pavement Marking Arrows Bike Lane Paint     ","EACH"]
[647.02059999999994,"Pavement Marking Arrows Bike Lane Epoxy      ","EACH"]
[647.02080000000001,"Pvmt Mrkg Arrow Bike Lane Prefrm Thermop     ","EACH"]
[647.02089999999998,"Pvt Marking Arrow Bike Lane Pref Plastic   ","EACH"]
[647.02530000000002,"Pavement Marking Symbols Paint      ","EACH"]
[647.02560000000005,"Pavement Marking Symbols Epoxy         ","EACH"]
[647.0258,"Pvmt Mrkg Symbols Preform Thermoplastic     ","EACH"]
[647.02589999999998,"Pavement Marking Symbols Pref Plastic     ","EACH"]
[647.03030000000001,"Pavement Marking Symbols Bike Lane Paint     ","EACH"]
[647.03060000000005,"Pavement Marking Symbols Bike Lane Epoxy       ","EACH"]
[647.0308,"Pvmt Mrkg Symbol Bike Ln Prefrm Thermopl    ","EACH"]
[647.03089999999997,"Pvt Marking Syb Bike Lane Pref Plastic   ","EACH"]
[647.03129999999999,"Pvt Mkg Symbols Bike Detector Paint    ","EACH"]
[647.03160000000003,"Pvt Marking Symbols Bike Detector Epoxy    ","EACH"]
[647.03179999999998,"Pvt Mrk Sym Bike Detector Prfrm Thermopl   ","EACH"]
[647.03189999999995,"Pvt Mking Sym Bike Detector Prefmed Plas   ","EACH"]
[647.03229999999996,"Pvmt Mrkg Symbols Bike Crossing Paint    ","EACH"]
[647.0326,"Pvmt Mrkg Symbols Bike Crossing Epoxy    ","EACH"]
[647.03279999999995,"Pvmt Mrkg Symb Bike Cross Prefrm Thermpl   ","EACH"]
[647.03290000000004,"Pvmt Mrkg Symb Bike Cross Prefrm Plastic   ","EACH"]
[647.03330000000005,"Pvmt Mrkg Symb Bike Shared Lane Paint   ","EACH"]
[647.03359999999998,"Pvmt Mrkg Symb Bike Shared Lane Epoxy     ","EACH"]
[647.03380000000004,"Pvmt Mrkg Symb Bike Shrd Ln Pfrm Thermpl  ","EACH"]
[647.03390000000002,"Pvmt Mrkg Symb Bike Shrd Ln Pfrm Plastic  ","EACH"]
[647.03530000000001,"Pavement Marking Words Paint         ","EACH"]
[647.03560000000004,"Pavement Marking Words Epoxy         ","EACH"]
[647.03579999999999,"Pvmt Mrkg Words Preformed Thermoplastic        ","EACH"]
[647.03589999999997,"Pvt Marking Words Preformed Plastic     ","EACH"]
[647.0403,"Pavement Marking Words Bike Lane Paint      ","EACH"]
[647.04060000000004,"Pavement Marking Words Bike Lane Epoxy       ","EACH"]
[647.04079999999999,"Pvmt Mrkg Words Bike Ln Prformd Thermopl     ","EACH"]
[647.04089999999997,"Pvt Marking Words Bike Lane Pref Plastic   ","EACH"]
[647.0453,"Pavement Marking Curb Paint        ","LF"]
[647.04560000000004,"Pavement Marking Curb Epoxy         ","LF"]
[647.05029999999999,"Pavement Marking Curb Ramp Paint     ","LF"]
[647.05060000000003,"Pavement Marking Curb Ramp Epoxy      ","LF"]
[647.05089999999996,"Pavement Marking Curb Ramp Pref Plastic    ","LF"]
[647.05229999999995,"Pvmt Mark Yield Line Symb Paint 18-Inch   ","EACH"]
[647.05259999999998,"Pvmt Mark Yield Line Symb Epoxy 18-Inch     ","EACH"]
[647.05280000000005,"Pvmt Mrk Yld Line Symb Prfrm Thrm 18-In  ","EACH"]
[647.05290000000002,"Pvmt Mrk Yld Line Symb Prfrm Plas 18-In  ","EACH"]
[647.05430000000001,"Pvmt Mrkg Yield Line Symb Paint 36-In   ","EACH"]
[647.05460000000005,"Pvmt Mrkg Yield Line Symb Epoxy 36-In    ","EACH"]
[647.0548,"Pvmt Mrk Yld Line Symb Prfrm Therm 36-In  ","EACH"]
[647.05489999999998,"Pvmt Mrk Yld Line Symb Prfrm Plas 36-In  ","EACH"]
[647.05529999999999,"Pavement Marking Stop Line Paint 12-Inch       ","LF"]
[647.05560000000003,"Pavement Marking Stop Line Epoxy 12-Inch       ","LF"]
[647.05579999999998,"Pvmt Mrkg Stop Line Prfrm Thermopl 12-In    ","LF"]
[647.05589999999995,"Pvt Marking Stop Line Pref Plastic 12-In    ","LF"]
[647.05629999999996,"Pavement Marking Stop Line Paint 18-Inch     ","LF"]
[647.0566,"Pavement Marking Stop Line Epoxy 18-Inch      ","LF"]
[647.05679999999995,"Pvmt Mrkg Stop Line Prfrm Thermopl 18-In     ","LF"]
[647.05690000000004,"Pvt Marking Stop Line Pref Plastic 18-In   ","LF"]
[647.05730000000005,"Pavement Marking Stop Line Paint 24-Inch    ","LF"]
[647.05759999999998,"Pavement Marking Stop Line Epoxy 24-Inch      ","LF"]
[647.05780000000004,"Pvmt Mrkg Stop Line Prfrm Thermopl 24-In   ","LF"]
[647.05790000000002,"Pvt Marking Stop Line Pref Plastic 24-In   ","LF"]
[647.06029999999998,"Pavement Marking Island Nose Paint      ","EACH"]
[647.06060000000002,"Pavement Marking Island Nose Epoxy        ","EACH"]
[647.06529999999998,"Pavement Marking Parking Stall Paint       ","LF"]
[647.06560000000002,"Pavement Marking Parking Stall Epoxy        ","LF"]
[647.06579999999997,"Pvmt Mrkg Parking Stall Prfrmd Thermopl    ","LF"]
[647.06590000000006,"Pvt Marking Parking Stall Pref Plastic    ","LF"]
[647.07060000000001,"Pavement Marking Diagonal Epoxy 6-Inch        ","LF"]
[647.07129999999995,"Pavement Marking Diagonal Paint 8-Inch        ","LF"]
[647.07159999999999,"Pavement Marking Diagonal Epoxy 8-Inch        ","LF"]
[647.07180000000005,"Pvmt Mrkg Diagonal Preformd Thermpl 8-In    ","LF"]
[647.07190000000003,"Pvt Marking Diagonal Pref Plastic 8-In    ","LF"]
[647.07230000000004,"Pavement Marking Diagonal Paint 12-Inch       ","LF"]
[647.07259999999997,"Pavement Marking Diagonal Epoxy 12-Inch        ","LF"]
[647.07280000000003,"Pvmt Mrkg Diagonal Prfrmd Thermopl 12-In      ","LF"]
[647.0729,"Pvt Marking Diagonal Pref Plastic 12-In    ","LF"]
[647.07330000000002,"Pavement Marking Diagonal Paint 18-Inch     ","LF"]
[647.07360000000006,"Pavement Marking Diagonal Epoxy 18-Inch       ","LF"]
[647.07380000000001,"Pvmt Mrkg Diagonal Prfrmd Thermopl 18-In    ","LF"]
[647.07389999999998,"Pvt Mking Diagonal Prefmed Plastic 18-In    ","LF"]
[647.07429999999999,"Pavement Marking Diagonal Paint 24-Inch     ","LF"]
[647.07460000000003,"Pavement Marking Diagonal Epoxy 24-Inch       ","LF"]
[647.07479999999998,"Pvmt Mrkg Diagonal Prfrmd Thermopl 24-In    ","LF"]
[647.07489999999996,"Pvt Marking Diagonal Pref Plastic 24-In    ","LF"]
[647.07629999999995,"Pavement Marking Crosswalk Paint 6-Inch      ","LF"]
[647.07659999999998,"Pavement Marking Crosswalk Epoxy 6-In       ","LF"]
[647.07680000000005,"Pvmt Mrkg Crosswalk Prfrmd Thermopl 6-In      ","LF"]
[647.07690000000002,"Pvet Marking Crosswalk Pref Platic 6-In    ","LF"]
[647.07730000000004,"Pavement Marking Crosswalk Paint 12-In       ","LF"]
[647.07759999999996,"Pavement Marking Crosswalk Epoxy 12-In       ","LF"]
[647.07780000000002,"Pvmt Mrkg Crosswalk Prfrm Thermopl 12-In     ","LF"]
[647.0779,"Pvt Marking Crosswalk Pref Plastic 12-In     ","LF"]
[647.07830000000001,"Pavement Marking Crosswalk Paint 18-In     ","LF"]
[647.07860000000005,"Pavement Marking Crosswalk Epoxy 18-In       ","LF"]
[647.0788,"Pvmt Mrkg Crosswalk Prfrm Thermopl 18-In    ","LF"]
[647.07889999999998,"Pvt Marking Crosswalk Pref Plastic 18-In    ","LF"]
[647.07929999999999,"Pavement Marking Crosswalk Paint 24-Inch      ","LF"]
[647.07960000000003,"Pavement Marking Crosswalk Epoxy 24-Inch        ","LF"]
[647.07979999999998,"Pvmt Mrkg Crosswalk Prfrm Thermopl 24-In    ","LF"]
[647.07989999999995,"Pvmt Mrkg Crosswalk Prfrmd Plastic 24-In    ","LF"]
[647.08029999999997,"Pvt Marking Aerial Enforce Bars Ep 24-In     ","LF"]
[647.0806,"Pvt Marking Aerial Enforce Bars Pp 24-In   ","LF"]
[647.08079999999995,"Pvt Mkg Aerial Enfrc Bar Prfrm Thrm 24in  ","LF"]
[647.08529999999996,"Pvt Marking Conc Corrugated Median Paint    ","SF"]
[647.0856,"Pvt Marking Conc Corrugated Median Epoxy       ","SF"]
[647.09550000000002,"Removing Pavement Markings Arrows         ","EACH"]
[647.096,"Removing Pavement Markings Symbols         ","EACH"]
[647.09649999999999,"Removing Pavement Markings Words         ","EACH"]
[648.01,"Locating No-Passing Zones          ","MI"]
[649.01,"Temporary Pavement Marking 4-Inch         ","LF"]
[649.02,"Temp Pvt Marking Reflective Paint 4-In       ","LF"]
[649.03,"Temp Pvt Marking Reflective Tape 4-In       ","LF"]
[649.04,"Temp Pvt Marking Removable Tape 4-In       ","LF"]
[649.04020000000003,"Temporary Pavement Marking Paint 4-Inch     ","LF"]
[649.0403,"Temporary Pavement Marking Epoxy 4-Inch     ","LF"]
[649.05060000000003,"Temp Pvmt Mark Remove MaskOut Tape 6-In   ","LF"]
[649.05100000000004,"Temporary Pavement Marking Paint 10-In     ","LF"]
[649.05999999999995,"Temp Pvmt Marking Removable Tape 6-Inch      ","LF"]
[649.07010000000002,"Temporary Pavement Marking 8-Inch        ","LF"]
[649.08010000000002,"Temp Pvt Mking Removable Tape 8-Inch       ","LF"]
[649.08019999999999,"Temporary Pavement Marking Paint 8-Inch     ","LF"]
[649.08029999999997,"Temporary Pavement Marking Epoxy 8-Inch     ","LF"]
[649.09,"Temp Pvt Marking Stop Line 12-In       ","LF"]
[649.1,"Temp Pvt Marking Stop Line Rem Tape 12in   ","LF"]
[649.11,"Temp Pvt Marking Stop Line 18-In      ","LF"]
[649.12,"Temp Pvt Marking Stop Line Rem Tape 18in   ","LF"]
[649.13,"Temp Pvt Marking Stop Line 24-In      ","LF"]
[649.14,"Temp Pvt Marking Stop Line Rem Tape 24in   ","LF"]
[649.15,"Temp Pvt Marking Diagonal 12-In        ","LF"]
[649.16,"Temp Pvt Marking Diagonal Rem Tape 12-In     ","LF"]
[649.16999999999996,"Temporary Pavement Marking Arrows         ","EACH"]
[649.17999999999995,"Temp Pvt Marking Arrows Removable Tape       ","EACH"]
[649.18020000000001,"Temporary Pavement Marking Arrows Paint     ","EACH"]
[649.18029999999999,"Temporary Pavement Marking Arrows Epoxy     ","EACH"]
[649.19000000000005,"Temporary Pavement Marking Words        ","EACH"]
[649.20000000000005,"Temp Pvt Marking Words Removable Tape       ","EACH"]
[649.2002,"Temporary Pavement Marking Words Paint     ","EACH"]
[649.20029999999997,"Temporary Pavement Marking Words Epoxy     ","EACH"]
[649.21,"Temporary Raised Pavement Markers         ","EACH"]
[650.4,"Construction Staking Storm Sewer         ","EACH"]
[650.45000000000005,"Construction Staking Subgrade          ","LF"]
[650.5,"Construction Staking Base          ","LF"]
[650.54999999999995,"Construction Staking Curb Gutter & C&G       ","LF"]
[650.6,"Construction Staking Pipe Culverts         ","EACH"]
[650.65,"Construction Staking Structure Layout         ","LS"]
[650.70000000000005,"Construction Staking Conc Pavement         ","LF"]
[650.75,"Construction Staking Concrete Barrier         ","LF"]
[650.79999999999995,"Construction Staking Resurfacing Ref         ","LF"]
[650.85,"Const Staking Elec Install (project)        ","LS"]
[650.99099999999999,"Const Staking Supplemental Contrl (proj)        ","LS"]
[650.99199999999996,"Construction Staking Slope Stakes         ","LF"]
["651.1000.S","Signal Controller Training         ","LS"]
[652.01049999999998,"Conduit Rigid Metallic 3/4-Inch        ","LF"]
[652.01099999999997,"Conduit Rigid Metallic 1-Inch        ","LF"]
[652.01149999999996,"Conduit Rigid Metallic 1 1/4-Inch        ","LF"]
[652.01199999999994,"Conduit Rigid Metallic 1 1/2-Inch      ","LF"]
[652.01250000000005,"Conduit Rigid Metallic 2-Inch         ","LF"]
[652.01300000000003,"Conduit Rigid Metallic 2 1/2-Inch       ","LF"]
[652.01350000000002,"Conduit Rigid Metallic 3-Inch         ","LF"]
[652.01400000000001,"Conduit Rigid Metallic 3 1/2-Inch     ","LF"]
[652.0145,"Conduit Rigid Metallic 4-Inch       ","LF"]
[652.02049999999997,"Conduit Rigid Nonmetallic Sch 40 3/4-In       ","LF"]
[652.02099999999996,"Conduit Rigid Nonmetallic Sch 40 1-In       ","LF"]
[652.02149999999995,"Conduit Rigid Nonmetallic Sch 40 11/4-In       ","LF"]
[652.02200000000005,"Conduit Rigid Nonmetallic Sch 40 11/2-In       ","LF"]
[652.02250000000004,"Conduit Rigid Nonmetallic Sch 40 2-In       ","LF"]
[652.02300000000002,"Conduit Rigid Nonmetallic Sch 40 21/2-In       ","LF"]
[652.02350000000001,"Conduit Rigid Nonmetallic Sch 40 3-In       ","LF"]
[652.024,"Conduit Rigid Nonmetallic Sch 40 4-In       ","LF"]
[652.03049999999996,"Conduit Rigid Nonmetallic Sch 80 3/4-In     ","LF"]
[652.03099999999995,"Conduit Rigid Nonmetallic Sch 80 1-In       ","LF"]
[652.03150000000005,"Conduit Rigid Nometallic Sch 80 1 1/4-In    ","LF"]
[652.03200000000004,"Conduit Rigid Nometallic Sch 80 1 1/2-In   ","LF"]
[652.03250000000003,"Conduit Rigid Nonmetallic Sch 80 2-In       ","LF"]
[652.03300000000002,"Conduit Rigid Nonmetallic Sch 80 21/2-In    ","LF"]
[652.0335,"Conduit Rigid Nonmetallic Sch 80 3-In       ","LF"]
[652.03399999999999,"Conduit Rigid Nonmetallic Sch 80 4-In       ","LF"]
[652.04049999999995,"Conduit Reinf Thermosetting Resin 2-In        ","LF"]
[652.04100000000005,"Conduit Reinf Thermosetting Resin 3-In      ","LF"]
[652.04150000000004,"Conduit Reinf Thermosetting Resin 4-In     ","LF"]
[652.06050000000005,"Conduit Special 2-Inch          ","LF"]
[652.06100000000004,"Conduit Special 2 1/2-Inch        ","LF"]
[652.06150000000002,"Conduit Special 3-Inch         ","LF"]
[652.06200000000001,"Conduit Special 3 1/2-Inch       ","LF"]
[652.0625,"Conduit Special 4-Inch         ","LF"]
[652.06899999999996,"Conduit Special (inch)         ","LF"]
["652.0700.S","Install Conduit into Existing         ","EACH"]
[652.08000000000004,"Conduit Loop Detector          ","LF"]
[652.09,"Loop Detector Slots          ","LF"]
[653.01049999999998,"Pull Boxes Steel 12x24-Inch         ","EACH"]
[653.01099999999997,"Pull Boxes Steel 12x30-Inch       ","EACH"]
[653.01149999999996,"Pull Boxes Steel 12x36-Inch       ","EACH"]
[653.01199999999994,"Pull Boxes Steel 18x24-Inch         ","EACH"]
[653.01250000000005,"Pull Boxes Steel 18x30-Inch       ","EACH"]
[653.01300000000003,"Pull Boxes Steel 18x36-Inch         ","EACH"]
[653.01350000000002,"Pull Boxes Steel 24x36-Inch         ","EACH"]
[653.01400000000001,"Pull Boxes Steel 24x42-Inch         ","EACH"]
[653.0145,"Pull Boxes Steel 24x48-Inch         ","EACH"]
[653.01800000000003,"Pull Boxes Steel Communications (inch)        ","EACH"]
[653.02080000000001,"Junction Boxes 8x8x8-Inch          ","EACH"]
[653.02200000000005,"Junction Boxes 18x6x6-Inch          ","EACH"]
[653.0222,"Junction Boxes 18x12x6-Inch          ","EACH"]
[653.09,"Adjusting Pull Boxes          ","EACH"]
[653.09050000000002,"Removing Pull Boxes          ","EACH"]
[654.01009999999997,"Concrete Bases Type 1         ","EACH"]
[654.01020000000005,"Concrete Bases Type 2         ","EACH"]
[654.01049999999998,"Concrete Bases Type 5         ","EACH"]
[654.01059999999995,"Concrete Bases Type 6         ","EACH"]
[654.01070000000004,"Concrete Bases Type 7         ","EACH"]
[654.01080000000002,"Concrete Bases Type 8         ","EACH"]
[654.01099999999997,"Concrete Bases Type 10         ","EACH"]
[654.01110000000006,"Concrete Bases Type 11        ","EACH"]
[654.01130000000001,"Concrete Bases Type          ","EACH"]
[654.02,"Concrete Control Cabinet Bases Type 6       ","EACH"]
[654.02049999999997,"Concrete Control Cabinet Bases Type 7      ","EACH"]
[654.02099999999996,"Concrete Control Cabinet Bases Type 8       ","EACH"]
[654.02149999999995,"Concrete Control Cabinet Bases Type 9       ","EACH"]
[654.02170000000001,"Conc Cntrl Cabinet Bases Type 9 Special     ","EACH"]
[654.02200000000005,"Concrete Control Cabinet Bases Type 10       ","EACH"]
[654.02239999999995,"Concrete Control Cabinet Bases Type L24     ","EACH"]
[654.02300000000002,"Concrete Control Cabinet Bases Type L30     ","EACH"]
[655.01020000000005,"Cable In Duct 42037 AWG      ","LF"]
[655.0104,"Cable In Duct 42039 AWG     ","LF"]
[655.01059999999995,"Cable In Duct 42041 AWG     ","LF"]
[655.01080000000002,"Cable In Duct 42043 AWG       ","LF"]
[655.01099999999997,"Cable In Duct 42045 AWG     ","LF"]
[655.01220000000001,"Cable In Duct 42065 AWG      ","LF"]
[655.01239999999996,"Cable In Duct 42067 AWG       ","LF"]
[655.01260000000002,"Cable In Duct 42069 AWG      ","LF"]
[655.01279999999997,"Cable In Duct 42071 AWG       ","LF"]
[655.01300000000003,"Cable In Duct 42073 AWG     ","LF"]
[655.01440000000002,"Cable In Duct 42098 AWG       ","LF"]
[655.01459999999997,"Cable In Duct 42100 AWG       ","LF"]
[655.01480000000004,"Cable In Duct 42102 AWG      ","LF"]
[655.01499999999999,"Cable In Duct 42104 AWG      ","LF"]
[655.02049999999997,"Cable Traffic Signal 42075 AWG     ","LF"]
[655.02099999999996,"Cable Traffic Signal 42077 AWG        ","LF"]
[655.02149999999995,"Cable Traffic Signal 42106 AWG     ","LF"]
[655.02200000000005,"Cable Traffic Signal 42108 AWG        ","LF"]
[655.02229999999997,"Cable Traffic Signal 42134 AWG     ","LF"]
[655.02250000000004,"Cable Traffic Signal 42136 AWG        ","LF"]
[655.02300000000002,"Cable Traffic Signal 42138 AWG        ","LF"]
[655.02329999999995,"Cable Traffic Signal 42195 AWG     ","LF"]
[655.02350000000001,"Cable Traffic Signal 42197 AWG     ","LF"]
[655.024,"Cable Traffic Signal 42199 AWG        ","LF"]
[655.02430000000004,"Cable Traffic Signal 42257 AWG     ","LF"]
[655.02449999999999,"Cable Traffic Signal 42259 AWG     ","LF"]
[655.02499999999998,"Cable Traffic Signal 42261 AWG        ","LF"]
[655.02530000000002,"Cable Traffic Signal 42348 AWG     ","LF"]
[655.02549999999997,"Cable Traffic Signal 42350 AWG        ","LF"]
[655.02599999999995,"Cable Traffic Signal 42352 AWG        ","LF"]
[655.02629999999999,"Cable Traffic Signal 15-10 AWG     ","LF"]
[655.02650000000006,"Cable Traffic Signal 15-12 AWG        ","LF"]
[655.02700000000004,"Cable Traffic Signal 15-14 AWG        ","LF"]
[655.02729999999997,"Cable Traffic Signal 19-10 AWG     ","LF"]
[655.02750000000003,"Cable Traffic Signal 19-12 AWG     ","LF"]
[655.02800000000002,"Cable Traffic Signal 19-14 AWG        ","LF"]
[655.02850000000001,"Cable Traffic Signal 21-12 AWG     ","LF"]
[655.029,"Cable Traffic Signal 21-14 AWG        ","LF"]
[655.03049999999996,"Cable Type UF 42047 AWG Grounded       ","LF"]
[655.03099999999995,"Cable Type UF 42047 AWG        ","LF"]
[655.03150000000005,"Cable Type UF 42045 AWG       ","LF"]
[655.03200000000004,"Cable Type UF 42045 AWG Grounded       ","LF"]
[655.04,"Communication Cable Plowed       ","LF"]
[655.04049999999995,"Communication Cable Trenched       ","LF"]
[655.04100000000005,"Communication Cable Installed in Conduit       ","LF"]
[655.05050000000006,"Electrical Wire Traffic Signals  AWG       ","LF"]
[655.05100000000004,"Electrical Wire Traffic Signals 12 AWG      ","LF"]
[655.05150000000003,"Electrical Wire Traffic Signals 10 AWG       ","LF"]
[655.05200000000002,"Electrical Wire Traffic Signals 8 AWG      ","LF"]
[655.05250000000001,"Electrical Wire Traffic Signals 6 AWG       ","LF"]
[655.053,"Electrical Wire Traffic Signals 4 AWG    ","LF"]
[655.05349999999999,"Electrical Wire Traffic Signals 2 AWG    ","LF"]
[655.06100000000004,"Electrical Wire Lighting 12 AWG        ","LF"]
[655.06150000000002,"Electrical Wire Lighting 10 AWG        ","LF"]
[655.06200000000001,"Electrical Wire Lighting 8 AWG        ","LF"]
[655.0625,"Electrical Wire Lighting 6 AWG        ","LF"]
[655.06299999999999,"Electrical Wire Lighting 4 AWG        ","LF"]
[655.06349999999998,"Electrical Wire Lighting 2 AWG        ","LF"]
[655.06399999999996,"Electrical Wire Lighting 1 AWG        ","LF"]
[655.06449999999995,"Electrical Wire Lighting 36526 AWG       ","LF"]
[655.07000000000005,"Loop Detector Lead In Cable        ","LF"]
[655.08000000000004,"Loop Detector Wire          ","LF"]
[655.09,"Traffic Signal EVP Detector Cable        ","LF"]
[656.01,"Electrical Service Meter Socket (loc)        ","LS"]
[656.02,"Elec Service Meter Breaker Pedestal        ","LS"]
[656.03,"Electrical Service Unmetered (location)        ","LS"]
[656.04,"Elec Service Main Lugs Only Meter Ped     ","LS"]
[656.05,"Elec Service Breaker Disconnect Box        ","LS"]
[657.01,"Pedestal Bases           ","EACH"]
[657.02049999999997,"Transf Base Brkawy 13-15 In Bolt Circle    ","EACH"]
[657.02099999999996,"Transf Base Brkawy 15-17 In Bolt Circle     ","EACH"]
[657.02549999999997,"Trans Base Brkwy 11 1/2-Inch Bolt Circle     ","EACH"]
[657.03049999999996,"Poles Type 2          ","EACH"]
[657.03099999999995,"Poles Type 3          ","EACH"]
[657.03150000000005,"Poles Type 4          ","EACH"]
[657.03210000000001,"Poles Type 5-Steel          ","EACH"]
[657.03219999999999,"Poles Type 5-Aluminum          ","EACH"]
[657.0326,"Poles Type 6-Steel       ","EACH"]
[657.03269999999998,"Poles Type 6-Aluminum          ","EACH"]
[657.03300000000002,"Poles Type 7         ","EACH"]
[657.03359999999998,"Poles Type 17-Steel       ","EACH"]
[657.03369999999995,"Poles Type 17-Aluminum          ","EACH"]
[657.03750000000002,"Poles Type A          ","EACH"]
[657.03800000000001,"Poles Type E         ","EACH"]
[657.04049999999995,"Traffic Signal Standards Aluminum 3.5-FT        ","EACH"]
[657.04100000000005,"Traffic Signal Standards Aluminum 9-FT        ","EACH"]
[657.04150000000004,"Traffic Signal Standards Aluminum 11-FT       ","EACH"]
[657.04200000000003,"Traffic Signal Standards Aluminum 13-FT        ","EACH"]
[657.04250000000002,"Traffic Signal Standards Aluminum 15-FT        ","EACH"]
[657.04300000000001,"Traffic Signal Standards Aluminum 10-FT        ","EACH"]
[657.05849999999998,"Trombone Arms 15-FT          ","EACH"]
[657.05899999999997,"Trombone Arms 20-FT          ","EACH"]
[657.05949999999996,"Trombone Arms 25-FT          ","EACH"]
[657.06050000000005,"Lum Arms Singl Membr 4 1/2-In Clamp 4-FT   ","EACH"]
[657.06089999999995,"Lmnair Arm Singl Membr 4-Inch Clamp 6-FT    ","EACH"]
[657.06100000000004,"Lum Arms Singl Membr 4 1/2-In Clamp 6-FT   ","EACH"]
[657.06140000000005,"Lmnair Arm Singl Membr 4-Inch Clamp 8-FT    ","EACH"]
[657.06150000000002,"Lum Arms Singl Membr 4 1/2-In Clamp 8-FT   ","EACH"]
[657.06200000000001,"Lum Arms Single Member 6-In Clamp 4-FT     ","EACH"]
[657.0625,"Lum Arms Single Member 6-In Clamp 6-FT    ","EACH"]
[657.06299999999999,"Lum Arms Single Member 6-In Clamp 8-FT     ","EACH"]
[657.06349999999998,"Lum Arms Single Member 6-In Clamp 10-FT    ","EACH"]
[657.06399999999996,"Lum Arms Single Member 6-In Clamp 15-FT     ","EACH"]
[657.07039999999995,"Lmnair Arm Truss Type 4-Inch Clamp 10-FT    ","EACH"]
[657.07050000000004,"Lum Arms Truss Type 4 1/2-In Clamp 10-FT   ","EACH"]
[657.07090000000005,"Lmnair Arm Truss Type 4-Inch Clamp 12-FT    ","EACH"]
[657.07100000000003,"Lum Arms Truss Type 4 1/2-In Clamp 12-FT   ","EACH"]
[657.07140000000004,"Lmnair Arm Truss Type 4-Inch Clamp 15-FT    ","EACH"]
[657.07150000000001,"Lum Arms Truss Type 4 1/2-In Clamp 15-FT   ","EACH"]
[657.072,"Lum Arms Truss Type 6-In Clamp 20-FT    ","EACH"]
[657.07249999999999,"Lum Arms Truss Type 6-Inch Clamp 15-FT     ","EACH"]
[657.07299999999998,"Lum Arms Truss Type 6-In Clamp 12-FT     ","EACH"]
[657.07349999999997,"Lum Arms Truss Type 6-Inch Clamp 10-FT   ","EACH"]
[657.1345,"Install Poles Type 9         ","EACH"]
[657.13499999999999,"Install Poles Type 10         ","EACH"]
[657.13549999999998,"Install Poles Type 12         ","EACH"]
[657.13599999999997,"Install Poles Type          ","EACH"]
[657.15150000000006,"Install Monotube Arms 15-FT         ","EACH"]
[657.15200000000004,"Install Monotube Arms 20-FT         ","EACH"]
[657.15250000000003,"Install Monotube Arms 25-FT         ","EACH"]
[657.15300000000002,"Install Monotube Arms 30-FT         ","EACH"]
[657.15350000000001,"Install Monotube Arms 35-FT         ","EACH"]
[657.154,"Install Monotube Arms 40-FT         ","EACH"]
[657.15449999999998,"Install Monotube Arms 45-FT         ","EACH"]
[657.15499999999997,"Install Monotube Arms 50-FT         ","EACH"]
[657.15549999999996,"Install Monotube Arms 55-FT         ","EACH"]
[657.18060000000003,"Install Luminaire Arms Steel 6-FT      ","EACH"]
[657.18079999999998,"Install Luminaire Arms Steel 8-FT       ","EACH"]
[657.18100000000004,"Install Luminaire Arms Steel 10-FT        ","EACH"]
[657.18119999999999,"Install Luminaire Arms Steel 12-FT        ","EACH"]
[657.18150000000003,"Install Luminaire Arms Steel 15-FT        ","EACH"]
["657.6005.S","Anchor Assembl Light Poles on Structures       ","EACH"]
[658.01009999999997,"Traffic Signal Face 42012 Inch Vertical     ","EACH"]
[658.01030000000003,"Traffic Signal Face 42016 Inch Vertical       ","EACH"]
[658.01049999999998,"Traffic Sig Face 42016 Inch 42043 Inch Vert  ","EACH"]
[658.01099999999997,"Traffic Signal Face 42075 Inch Vertical       ","EACH"]
[658.01149999999996,"Traffic Signal Face 42106 Inch Vertical       ","EACH"]
[658.01199999999994,"Traffic Signal Face 42136 Inch Vertical       ","EACH"]
[658.01549999999997,"Traffic Signal Face 42075 Inch Horizontal       ","EACH"]
[658.01599999999996,"Traffic Signal Face 42106 Inch Horizontal     ","EACH"]
[658.01649999999995,"Traffic Signal Face 42136 Inch Horizontal       ","EACH"]
["658.0190.S",{"$error":"#NAME?"},"EACH"]
[658.02049999999997,"Backplates Signal Face 1 Section 8-Inch     ","EACH"]
[658.02099999999996,"Backplates Signal Face 1 Section 12-Inch       ","EACH"]
[658.02149999999995,"Backplates Signal Face 3 Section 12-Inch       ","EACH"]
[658.02200000000005,"Backplates Signal Face 4 Section 12-Inch       ","EACH"]
[658.02250000000004,"Backplates Signal Face 5 Section 12-Inch       ","EACH"]
[658.03,"Backplates Signal Face 39790 Inch     ","EACH"]
[658.0412,"Pedestrian Signal Face 12-Inch         ","EACH"]
[658.04160000000002,"Pedestrian Signal Face 16-Inch         ","EACH"]
["658.0420.S",{"$error":"#NAME?"},"EACH"]
[658.05,"Pedestrian Push Buttons          ","EACH"]
[658.06,"Led Modules 12-Inch Red Ball        ","EACH"]
[658.06050000000005,"Led Modules 12-Inch Yellow Ball        ","EACH"]
[658.06100000000004,"Led Modules 12-Inch Green Ball        ","EACH"]
[658.06150000000002,"Led Modules 12-Inch Red Arrow        ","EACH"]
[658.06200000000001,"Led Modules 12-Inch Yellow Arrow        ","EACH"]
[658.0625,"Led Modules 12-Inch Green Arrow        ","EACH"]
[658.06349999999998,"Led Modules Ped Countdwn Timer 16-Inch       ","EACH"]
[658.06600000000003,"Led Modules Countdwn Timer 12-Inch        ","EACH"]
[658.11099999999999,"Progrm Traffic Signal Face 42075 Vertical      ","EACH"]
[658.11149999999998,"Progrm Traffic Signal Face 42106 Vertical    ","EACH"]
[658.11199999999997,"Progrm Traffic Signal Face 42136 Vertical    ","EACH"]
[658.1155,"Progrm Traffic Signal Face 42075 Horizntl    ","EACH"]
[658.11599999999999,"Progrm Traffic Signal Face 42106 Horizntl    ","EACH"]
[658.11649999999997,"Progrm Traffic Signal Face 42136 Horizntl    ","EACH"]
[658.50689999999997,"Signal Mounting Hardware (location)         ","LS"]
[659.01149999999996,"Luminaires Utility HPS 150 Watts        ","EACH"]
[659.01250000000005,"Luminaires Utility HPS 250 Watts        ","EACH"]
[659.01350000000002,"Luminaires Utility HPS 400 Watts      ","EACH"]
[659.01499999999999,"Luminaires Utility MH 250 Watts     ","EACH"]
[659.02049999999997,"Luminaires Underdeck 70 Watts      ","EACH"]
[659.02099999999996,"Luminaires Underdeck 100 Watts        ","EACH"]
[659.02149999999995,"Luminaires Underdeck 150 Watts        ","EACH"]
[659.04,"Luminaires High Mast Lighting       ","EACH"]
[659.06,"Underdeck Lighting (location)          ","LS"]
[659.07,"Lighting s Walkway        ","EACH"]
[659.08019999999999,"Plaques Sequence Identification          ","EACH"]
[659.11149999999998,"Luminaires Utility LED A        ","EACH"]
[659.11199999999997,"Luminaires Utility LED B        ","EACH"]
[659.11249999999995,"Luminaires Utility LED C        ","EACH"]
[659.11300000000006,"Luminaires Utility LED D        ","EACH"]
[659.12049999999999,"Luminaires Underdeck LED A        ","EACH"]
[659.12099999999998,"Luminaires Underdeck LED B       ","EACH"]
[659.12149999999997,"Luminaires Underdeck LED C       ","EACH"]
[659.2124,"Lighting Control Cabinets 120/240 24-In      ","EACH"]
[659.21299999999997,"Lighting Control Cabinets 120/240 30-In      ","EACH"]
[659.22299999999996,"Lighting Control Cabinets 240/480 30-In      ","EACH"]
[660.01,"High Mast Foundation (location)      ","LS"]
[660.02,"High Mast Lighting Tower (location)      ","LS"]
[661.01,"Temporary Traffic Signals for Bridges        ","LS"]
[661.02,"Temp Traffic Signals for Intersections        ","LS"]
[661.03,"Generators            ","DAY"]
[661.07,"Temporary Ramp Meter (location)       ","LS"]
["662.1024.S","Ramp Closure Gates Hardwired 24-FT     ","EACH"]
["662.1026.S","Ramp Closure Gates Hardwired 26-FT      ","EACH"]
["662.1028.S","Ramp Closure Gates Hardwired 28-FT      ","EACH"]
["662.1030.S","Ramp Closure Gates Hardwired 30-FT     ","EACH"]
["662.1032.S","Ramp Closure Gates Hardwired 32-FT       ","EACH"]
["662.1037.S","Ramp Closure Gates Hardwired 37-FT       ","EACH"]
["662.1040.S","Ramp Closure Gates Hardwired 40-FT       ","EACH"]
["662.2024.S","Ramp Closure Gates Solar 24-FT       ","EACH"]
["662.2026.S","Ramp Closure Gates Solar 26-FT      ","EACH"]
["662.2028.S","Ramp Closure Gates Solar 28-FT      ","EACH"]
["662.2030.S","Ramp Closure Gates Solar 30-FT       ","EACH"]
["662.2032.S","Ramp Closure Gates Solar 32-FT       ","EACH"]
["662.2037.S","Ramp Closure Gates Solar 37-FT       ","EACH"]
["662.2040.S","Ramp Closure Gates Solar 40-FT       ","EACH"]
["662.3024.S","Ramp Closure Gate Arms Stockpile 24-FT    ","EACH"]
["662.3026.S","Ramp Closure Gate Arms Stockpile 26-FT     ","EACH"]
["662.3028.S","Ramp Closure Gate Arms Stockpile 28-FT     ","EACH"]
["662.3030.S","Ramp Closure Gate Arms Stockpile 30-FT      ","EACH"]
["662.3032.S","Ramp Closure Gate Arms Stockpile 32-FT     ","EACH"]
["662.3037.S","Ramp Closure Gate Arms Stockpile 37-FT      ","EACH"]
["662.3040.S","Ramp Closure Gate Arms Stockpile 40-FT     ","EACH"]
["662.4000.S","Ramp Closure Gate Flashers Stockpile       ","EACH"]
["662.6020.S","Ramp Closure Barricade Rack 2-      ","EACH"]
["662.6030.S","Ramp Closure Barricade Rack 3-       ","EACH"]
[670.01,"Field System Integrator          ","LS"]
[670.02,"ITS Documentation           ","LS"]
[671.01,"Conduit HDPE 4-Duct 1 1/4-Inch     ","LF"]
[671.01120000000003,"Conduit HDPE 1-Duct 2-Inch         ","LF"]
[671.01220000000001,"Conduit HDPE 2-Duct 2-Inch        ","LF"]
[671.01319999999998,"Conduit HDPE 3-Duct 2-Inch         ","LF"]
[671.01419999999996,"Conduit HDPE 4-Duct 2-Inch       ","LF"]
[671.02,"Conduit HDPE Dir Bore 4-Duct 1 1/4-In   ","LF"]
[671.02120000000002,"Conduit HDPE Dir Bore 1-Duct 2-In       ","LF"]
[671.0222,"Conduit HDPE Dir Bore 2-Duct 2-In      ","LF"]
[671.02319999999997,"Conduit HDPE Dir Bore 3-Duct 2-In      ","LF"]
[671.02419999999995,"Conduit HDPE Dir Bore 4-Duct 2-In     ","LF"]
[671.02440000000001,"Conduit HDPE Dir Bore 4-Duct 4-In     ","LF"]
[671.03,"Fiber Optic Cable Marker         ","EACH"]
[672.01,"Base ITS Controller Cabinet         ","EACH"]
[672.02300000000002,"Base Camera Pole 30-FT        ","EACH"]
[672.02499999999998,"Base Camera Pole 50-FT         ","EACH"]
[672.02800000000002,"Base Camera Pole 80-FT         ","EACH"]
[673.01049999999998,"Communication Vault Type 1         ","EACH"]
["673.0200.S","Install ITS Field Cabinet         ","EACH"]
["673.0225.S","Install Pole Mounted Cabinet         ","EACH"]
[674.01059999999995,"Cable ITS Communication 6 Pair       ","LF"]
[674.01120000000003,"Cable ITS Communication 12 Pair       ","LF"]
[674.01250000000005,"Cable ITS Communication 25 Pair       ","LF"]
[674.02,"Cable Microwave Detector          ","LF"]
[674.03,"Remove Cable           ","LF"]
[674.04,"Reinstall Cable           ","LF"]
[675.01,"Install Cont Ramp Meter Processor Ass       ","EACH"]
[675.02,"Install Contr Detector Processor Ass     ","EACH"]
[675.03,"Install Mounted Contr Microwave Det Ass       ","EACH"]
["675.0400.S","Install Ethernet Switch          ","EACH"]
[676.01,"Signal Assembly Ramp Control Sidemount        ","EACH"]
[676.01049999999998,"Signal Assembly Ramp Control Overhead        ","EACH"]
[676.02,"Signal Assembly Display Enforcement      ","EACH"]
[676.03,"Signal Assembly Advance Flasher Type 1       ","EACH"]
[676.03049999999996,"Signal Assembly Advance Flasher Type 2     ","EACH"]
["676.9001.S","Remov Adv Flasher Assemblies Type 1       ","EACH"]
["676.9002.S","Remov Adv Flasher Assemblies Type 2       ","EACH"]
[677.01,"Install Camera Pole          ","EACH"]
[677.02,"Install Camera Assembly          ","EACH"]
["677.0300.S","Install Video Encoder          ","EACH"]
["677.0400.S","Install Video Image Detector Card      ","EACH"]
["677.0500.S","Install Video Detection Camera       ","EACH"]
["677.0600.S","Install Video Detection Processor       ","EACH"]
["677.9050.S","Salv 50-FT Camera Pole w/Lowering Sys      ","EACH"]
["677.9051.S","Removing 50-FT Camera Pole         ","EACH"]
["677.9080.S","Salv 80-FT Camera Pole w/Lowering Sys    ","EACH"]
["677.9081.S","Removing 80-Foot Camera Pole      ","EACH"]
["677.9200.S","Removing CCTV Camera          ","EACH"]
[678.00059999999996,"Install Fbr Opt Cable Outdoor Plant 6CT     ","LF"]
[678.00120000000004,"Install Fbr Opt Cable Outdoor Plant 12CT     ","LF"]
[678.00239999999997,"Install Fbr Opt Cable Outdoor Plant 24CT     ","LF"]
[678.00360000000001,"Install Fbr Opt Cable Outdoor Plant 36CT     ","LF"]
[678.00480000000005,"Install Fbr Opt Cable Outdoor Plant 48CT   ","LF"]
[678.00720000000001,"Install Fbr Opt Cable Outdoor Plant 72CT     ","LF"]
[678.00959999999998,"Install Fbr Opt Cable Outdoor Plant 96CT   ","LF"]
["678.0100.S","Install Overhead Freeway DMS Full Matrix     ","EACH"]
[678.01440000000002,"Instal Fbr Opt Cable Outdoor Plant 144CT   ","LF"]
[678.02,"Fiber Optic Splice Enclosure         ","EACH"]
[678.03,"Fiber Optic Splice          ","EACH"]
[678.04,"Fiber Optic Termination          ","EACH"]
[678.05,"Communication System Testing          ","LS"]
[690.01499999999999,"Sawing Asphalt           ","LF"]
[690.02499999999998,"Sawing Concrete           ","LF"]
["999.1000.S","Seismograph            ","LS"]
["999.1500.S","Crack and Damage Survey         ","LS"]
["999.1800.S","Picnic Tables Single Pedestal       ","EACH"]
["999.1950.S","Bicycle Rack Asphalt or Concrete-Mounted      ","EACH"]

{"sheet":"State Wide Totals","index":4,"n_rows":3,"n_cols":28,"rows_kept":3,"cut":false,"hidden":false,"merged":[]}
["Date","Project #","Miles","Mode","Material Type","Bid Item","Baghouse Fines","Blast Furnace Slag","Coal Bottom Ash","Coal Fly Ash","Foundry Sand","Kiln Dust","Mineral Processing Waste","MSW Combuster Ash","Nickel Slag","Copper Slag","Phosphorus Slag","Lead, Lead-Zinc and Zinc Slag","Reclaimed Asphalt Pavement","Recycled Asphalt Shingles","Reclaimed Concrete Material","Scrap Tires","Sewage Sludge Ash","Reinforcing Steel","Steel Slag","Sulfate Wastes","Waste Glass (Fine)","Waste Glass (Coarse)"]
[]
[null,null,null,null,null,"Total:",{"$f":"SUM(OFFSET(G1,1,0):OFFSET(G3,-1,0))","v":0},{"$f":"SUM(OFFSET(H1,1,0):OFFSET(H3,-1,0))","v":0},{"$f":"SUM(OFFSET(I1,1,0):OFFSET(I3,-1,0))","v":0},{"$f":"SUM(OFFSET(J1,1,0):OFFSET(J3,-1,0))","v":0},{"$f":"SUM(OFFSET(K1,1,0):OFFSET(K3,-1,0))","v":0},{"$f":"SUM(OFFSET(L1,1,0):OFFSET(L3,-1,0))","v":0},{"$f":"SUM(OFFSET(M1,1,0):OFFSET(M3,-1,0))","v":0},{"$f":"SUM(OFFSET(N1,1,0):OFFSET(N3,-1,0))","v":0},{"$f":"SUM(OFFSET(O1,1,0):OFFSET(O3,-1,0))","v":0},{"$f":"SUM(OFFSET(P1,1,0):OFFSET(P3,-1,0))","v":0},{"$f":"SUM(OFFSET(Q1,1,0):OFFSET(Q3,-1,0))","v":0},{"$f":"SUM(OFFSET(R1,1,0):OFFSET(R3,-1,0))","v":0},{"$f":"SUM(OFFSET(S1,1,0):OFFSET(S3,-1,0))","v":0},{"$f":"SUM(OFFSET(T1,1,0):OFFSET(T3,-1,0))","v":0},{"$f":"SUM(OFFSET(U1,1,0):OFFSET(U3,-1,0))","v":0},{"$f":"SUM(OFFSET(V1,1,0):OFFSET(V3,-1,0))","v":0},{"$f":"SUM(OFFSET(W1,1,0):OFFSET(W3,-1,0))","v":0},{"$f":"SUM(OFFSET(X1,1,0):OFFSET(X3,-1,0))","v":0},{"$f":"SUM(OFFSET(Y1,1,0):OFFSET(Y3,-1,0))","v":0},{"$f":"SUM(OFFSET(Z1,1,0):OFFSET(Z3,-1,0))","v":0},{"$f":"SUM(OFFSET(AA1,1,0):OFFSET(AA3,-1,0))","v":0},{"$f":"SUM(OFFSET(AB1,1,0):OFFSET(AB3,-1,0))","v":0}]

{"sheet":"Totals By Project","index":5,"n_rows":3,"n_cols":24,"rows_kept":3,"cut":false,"hidden":false,"merged":[]}
["Date Last Updated","Project #","Baghouse Fines","Blast Furnace Slag","Coal Bottom Ash","Coal Fly Ash","Foundry Sand","Kiln Dust","Mineral Processing Waste","MSW Combuster Ash","Nickel Slag","Copper Slag","Phosphorus Slag","Lead, Lead-Zinc and Zinc Slag","Reclaimed Asphalt Pavement","Recycled Asphalt Shingles","Reclaimed Concrete Material","Scrap Tires","Sewage Sludge Ash","Reinforcing Steel","Steel Slag","Sulfate Wastes","Waste Glass (Fine)","Waste Glass (Coarse)"]
[]
[null,"Total:",{"$f":"SUM(OFFSET(C1,1,0):OFFSET(C3,-1,0))","v":0},{"$f":"SUM(OFFSET(D1,1,0):OFFSET(D3,-1,0))","v":0},{"$f":"SUM(OFFSET(E1,1,0):OFFSET(E3,-1,0))","v":0},{"$f":"SUM(OFFSET(F1,1,0):OFFSET(F3,-1,0))","v":0},{"$f":"SUM(OFFSET(G1,1,0):OFFSET(G3,-1,0))","v":0},{"$f":"SUM(OFFSET(H1,1,0):OFFSET(H3,-1,0))","v":0},{"$f":"SUM(OFFSET(I1,1,0):OFFSET(I3,-1,0))","v":0},{"$f":"SUM(OFFSET(J1,1,0):OFFSET(J3,-1,0))","v":0},{"$f":"SUM(OFFSET(K1,1,0):OFFSET(K3,-1,0))","v":0},{"$f":"SUM(OFFSET(L1,1,0):OFFSET(L3,-1,0))","v":0},{"$f":"SUM(OFFSET(M1,1,0):OFFSET(M3,-1,0))","v":0},{"$f":"SUM(OFFSET(N1,1,0):OFFSET(N3,-1,0))","v":0},{"$f":"SUM(OFFSET(O1,1,0):OFFSET(O3,-1,0))","v":0},{"$f":"SUM(OFFSET(P1,1,0):OFFSET(P3,-1,0))","v":0},{"$f":"SUM(OFFSET(Q1,1,0):OFFSET(Q3,-1,0))","v":0},{"$f":"SUM(OFFSET(R1,1,0):OFFSET(R3,-1,0))","v":0},{"$f":"SUM(OFFSET(S1,1,0):OFFSET(S3,-1,0))","v":0},{"$f":"SUM(OFFSET(T1,1,0):OFFSET(T3,-1,0))","v":0},{"$f":"SUM(OFFSET(U1,1,0):OFFSET(U3,-1,0))","v":0},{"$f":"SUM(OFFSET(V1,1,0):OFFSET(V3,-1,0))","v":0},{"$f":"SUM(OFFSET(W1,1,0):OFFSET(W3,-1,0))","v":0},{"$f":"SUM(OFFSET(X1,1,0):OFFSET(X3,-1,0))","v":0}]